Workbook

Sheet ES(50)
B2: Excel Business Statistical Analysis:
B8: Simple Linear Regression Complete Story. All 12 Formulas!
B12: Excel Business Statistics 50
B17: Excel Statistical Analysis 24: Build Discrete Probability Distribution, Expected Value, S. Deviation
B18: =LEN(B17) -> 100
C19: =LEN(C18) -> 0
H23: Microsoft 365 Excel
C24: Sample Covariance
C25: Coefficient of Correlation
C26: Slope
C27: Y Intercept
C28: Experimental Range
C29: Sum of Squares Total = SST
C30: Sum of Squares Regression = SSR
C31: Sum of Squares Error (Residual) = SSE
C32: R Squared = Coefficient of Determination
C33: Mean Square Error = MSE
C34: Standard Error of Estimate (y) = s
C35: Mean Square Regression = MSR
C36: F Test Statistic
C37: p-value for F

Sheet Topics
B2: Goals:
B3: 1) Visually plot relationship: X-Y Scatter
B4: 2) Numerical measure for Correlation: rxy
B5: 3) Numerical measure for slope: b1
B6: 4) Numerical measure for y-intercept: b0
B7: 5) Create estimated equation to predict y based on x: ӯ = yhat = b1*x + b0 OR y = m*x + b
B8: 6) Numerical measure for goodness of fit of estimated equation/line to sample data
B9: 7) Numerical measure for standard deviation of estimated equation/line
B10: 8) Test if it is reasonable to assume that there is a relationship between X and Y
B12: Ad Dollars Spent per Week (X) | C12: Weekly Sales (Y) | L12: Bike Weight (pound) =x | M12: Price ($) = y
B13: 63566 | C13: 651334.36 | L13: 22.4 | M13: 299
B14: 50762 | C14: 527670.42 | L14: 21 | M14: 462
B15: 50941 | C15: 523751.3 | L15: 21 | M15: 549
B16: 17597 | C16: 175466.61 | L16: 26 | M16: 180
B17: 33029 | C17: 377977.97 | L17: 21.1 | M17: 549
B18: 58543 | C18: 520100.29 | L18: 26 | M18: 240
B19: 60492 | C19: 620856.28 | L19: 26.4 | M19: 180
B20: 59686 | C20: 593739.46 | L20: 21 | M20: 431
B21: 16432 | C21: 181948.96 | L21: 25.2 | M21: 360
B22: 17262 | C22: 184643.6 | L22: 26 | M22: 230
B23: 39118 | C23: 379373.56 | L23: 25 | M23: 270
B24: 36078 | C24: 238687.94 | L24: 26.8 | M24: 150
B25: 42113 | C25: 410066.15 | L25: 25.2 | M25: 170
B26: 50562 | C26: 413540.78 | L26: 27 | M26: 160
B27: 38240 | C27: 340241.6 | L27: 25.4 | M27: 159
B28: 59870 | C28: 582843 | L28: 20.7 | M28: 500
B29: 46056 | C29: 433185.92 | L29: 21.9 | M29: 560
B30: 33349 | C30: 270770.38 | L30: 22.5 | M30: 560
B31: 16207 | C31: 164421.42 | L31: 20.1 | M31: 499
B32: 57077 | C32: 478077.5 | L32: 23 | M32: 379
B33: 30893 | C33: 393839.09
B34: 54153 | C34: 430154.06
B35: 14591 | C35: 210792.82
B36: 50138 | C36: 343808.68
B37: 55253 | C37: 565510.49
B38: 34944 | C38: 330250.88
B39: 26413 | C39: 295905.03
B40: 54660 | C40: 562164.2
B41: 35887 | C41: 257067.99
B42: 42021 | C42: 384066.95
B43: 47349 | C43: 441576.23
B44: 24364 | C44: 252221.2
B45: 58406 | C45: 552875.66
B46: 51643 | C46: 446101.81
B47: 55115 | C47: 476038.95
B48: 35416 | C48: 393889.36
B49: 37274 | C49: 328436.78
B50: 36148 | C50: 408949.64
B51: 32192 | C51: 394776.32
B52: 51238 | C52: 455804.96
B53: 59235 | C53: 526249.4
B54: 59329 | C54: 562602.56
B55: 22739 | C55: 180749.25
B56: 28654 | C56: 275506.98
B57: 36786 | C57: 372981.08
B58: 20813 | C58: 216087.74
B59: 57259 | C59: 470281.06
B60: 57707 | C60: 481071.29
B61: 61539 | C61: 612466.46
B62: 36635 | C62: 370922.6
B63: 39086 | C63: 448677.2
B64: 33062 | C64: 259282.46
B65: 42144 | C65: 354279.68
B66: 18828 | C66: 185749.88
B67: 57070 | C67: 415818.7
B68: 27991 | C68: 252095.02
B69: 37876 | C69: 329524.88
B70: 16134 | C70: 233120.9
B71: 55466 | C71: 376140.08
B72: 26100 | C72: 208166
B73: 23787 | C73: 226261.67
B74: 30895 | C74: 249581.7
B75: 31845 | C75: 278010.2
B76: 50618 | C76: 537451.34
B77: 62293 | C77: 448052.27
B78: 61228 | C78: 519618.76
B79: 32558 | C79: 364510.28
B80: 40694 | C80: 351135.6
B81: 46333 | C81: 390547.55
B82: 28415 | C82: 234129.2
B83: 19993 | C83: 224538.89
B84: 34414 | C84: 248912.92
B85: 52078 | C85: 328096.52
B86: 24507 | C86: 262965.83
B87: 28516 | C87: 334304.52
B88: 17554 | C88: 216060.84
B89: 16662 | C89: 183462.62
B90: 57162 | C90: 517013.54
B91: 57297 | C91: 731834.3
B92: 64112 | C92: 439159.84
B93: 37237 | C93: 453649.08
B94: 55058 | C94: 495969.8
B95: 30791 | C95: 306489.03
B96: 19784 | C96: 226868.96
B97: 32463 | C97: 316845.86
B98: 59364 | C98: 496417.28
B99: 64632 | C99: 527881.68
B100: 58106 | C100: 535766.16
B101: 60333 | C101: 469314.35
B102: 58353 | C102: 558254.63
B103: 22672 | C103: 197141.28
B104: 64325 | C104: 563313.5
B105: 32326 | C105: 365825.02
B106: 16138 | C106: 206538.6
B107: 34957 | C107: 320916.75
B108: 26159 | C108: 294325.06
B109: 42098 | C109: 329951.7
B110: 20582 | C110: 161277.7
B111: 45614 | C111: 428140.06
B112: 42729 | C112: 433279.13
B113: 40053 | C113: 346792.73
B114: 51749 | C114: 540063.03
B115: 59753 | C115: 588972.06
B116: 34045 | C116: 290698.15
B117: 56384 | C117: 544487.68
B118: 33242 | C118: 206569.82
B119: 49060 | C119: 550902.6
B120: 38219 | C120: 321737.09
B121: 56891 | C121: 568845.92
B122: 52906 | C122: 426690.72
B123: 44835 | C123: 430649.15
B124: 45028 | C124: 400768.12
B125: 15988 | C125: 175665.68
B126: 64717 | C126: 558028.45
B127: 15196 | C127: 163514.12
B128: 45093 | C128: 398568.89
B129: 51099 | C129: 483830.51
B130: 40839 | C130: 292958.72
B131: 29773 | C131: 275083.88
B132: 60954 | C132: 599805.08
B133: 53820 | C133: 524692.4
B134: 19365 | C134: 196012.1
B135: 39109 | C135: 360134.37
B136: 40439 | C136: 312044.72
B137: 35117 | C137: 268076.57
B138: 50624 | C138: 394243.2
B139: 55174 | C139: 474839.8
B140: 52278 | C140: 474497.36
B141: 30557 | C141: 301178.54
B142: 62145 | C142: 642241.85
B143: 58106 | C143: 475335.92
B144: 55233 | C144: 543230.69
B145: 51653 | C145: 343389.04
B146: 16221 | C146: 195989
B147: 28538 | C147: 295141.42
B148: 33546 | C148: 355268.6
B149: 50539 | C149: 505356.39
B150: 14677 | C150: 180772.07
B151: 15835 | C151: 146751.85
B152: 24504 | C152: 198984.32
B153: 21816 | C153: 210783.92
B154: 28370 | C154: 246604.1
B155: 46733 | C155: 430873.95
B156: 46568 | C156: 393671.84
B157: 42540 | C157: 363945.2
B158: 39348 | C158: 275857.52
B159: 34125 | C159: 350641.25
B160: 61572 | C160: 580750.64
B161: 54730 | C161: 410123.4
B162: 38799 | C162: 332068.73
B163: 22293 | C163: 208949.09
B164: 37202 | C164: 346499.94
B165: 53171 | C165: 474836.29
B166: 33287 | C166: 255380.79
B167: 35445 | C167: 237858.5
B168: 21723 | C168: 224001.23
B169: 40939 | C169: 439329.89
B170: 45048 | C170: 362182.64
B171: 30296 | C171: 299639.04
B172: 53521 | C172: 457210.54
B173: 24680 | C173: 209679.6
B174: 46956 | C174: 426587.12
B175: 16392 | C175: 200150.72
B176: 53761 | C176: 534924.22
B177: 56104 | C177: 460681.28
B178: 15241 | C178: 151200.24
B179: 19284 | C179: 212426.64
B180: 14673 | C180: 181763.54
B181: 57793 | C181: 497895.75
B182: 28259 | C182: 242161.2
B183: 30304 | C183: 206671.68
B184: 62568 | C184: 496735.52
B185: 56139 | C185: 513074.17
B186: 23120 | C186: 214614.4
B187: 17006 | C187: 110924.66
B188: 31596 | C188: 329940.56
B189: 40607 | C189: 363486.04
B190: 61771 | C190: 569494.11
B191: 30412 | C191: 279610.6
B192: 36947 | C192: 361463.21
B193: 43194 | C193: 395552
B194: 56866 | C194: 492417.48
B195: 39851 | C195: 367213.96
B196: 36617 | C196: 312177.72
B197: 46438 | C197: 331878.66
B198: 27520 | C198: 266032
B199: 28852 | C199: 311399.12
B200: 60878 | C200: 505367.44
B201: 32779 | C201: 211928.26
B202: 49959 | C202: 401211.77

Sheet ScatterExamples
A1: Team | B1: Season | C1: BattingAvg x | D1: RunsScored y | E1: AtBats x | F1: Hits | G1: Homeruns y | H1: Walks x | I1: Strikeouts y | J1: StolenBases | K1: OBP y | L1: SLG | M1: OPS | O1: ="Is there a relationship between "&C1&" and "&D1&"?" -> Is there a relationship between BattingAvg x and RunsScored y? | P1: ="Is there a relationship between "&E1&" and "&G1&"?" -> Is there a relationship between AtBats x and Homeruns y? | Q1: ="Is there a relationship between "&H1&" and "&I1&"?" -> Is there a relationship between Walks x and Strikeouts y? | R1: ="Is there a relationship between "&C1&" and "&K1&"?" -> Is there a relationship between BattingAvg x and OBP y? | Y1: Example 5: | Z1: Relationship Between Temperature and Energy Expense, relationship looks nonlinear: as x increases, y decreases for a while and then increases
A2: ARI | B2: 2011 | C2: 0.25 | D2: 731 | E2: 5421 | F2: 1357 | G2: 172 | H2: 531 | I2: 1249 | J2: 133 | K2: 0.322 | L2: 0.413 | M2: 0.736
A3: ATL | B3: 2011 | C3: 0.243 | D3: 641 | E3: 5528 | F3: 1345 | G3: 173 | H3: 504 | I3: 1260 | J3: 77 | K3: 0.308 | L3: 0.387 | M3: 0.695
A4: BAL | B4: 2011 | C4: 0.257 | D4: 708 | E4: 5585 | F4: 1434 | G4: 191 | H4: 452 | I4: 1120 | J4: 81 | K4: 0.316 | L4: 0.413 | M4: 0.729 | Y4: Sample Point | Z4: x | AA4: y
A5: BOS | B5: 2011 | C5: 0.28 | D5: 875 | E5: 5710 | F5: 1600 | G5: 203 | H5: 578 | I5: 1108 | J5: 102 | K5: 0.349 | L5: 0.461 | M5: 0.81
A6: CHC | B6: 2011 | C6: 0.256 | D6: 654 | E6: 5549 | F6: 1423 | G6: 148 | H6: 425 | I6: 1202 | J6: 69 | K6: 0.314 | L6: 0.401 | M6: 0.715 | Y6: Date | Z6: Temperature X | AA6: Energy Expense Y
A7: CHW | B7: 2011 | C7: 0.252 | D7: 654 | E7: 5502 | F7: 1387 | G7: 154 | H7: 475 | I7: 989 | J7: 81 | K7: 0.319 | L7: 0.388 | M7: 0.706 | Y7: 2015-01-12 | Z7: 46 | AA7: 236
A8: CIN | B8: 2011 | C8: 0.256 | D8: 735 | E8: 5612 | F8: 1438 | G8: 183 | H8: 535 | I8: 1250 | J8: 97 | K8: 0.326 | L8: 0.408 | M8: 0.734 | Y8: 2015-01-13 | Z8: 52 | AA8: 304
A9: CLE | B9: 2011 | C9: 0.25 | D9: 704 | E9: 5509 | F9: 1380 | G9: 154 | H9: 494 | I9: 1269 | J9: 89 | K9: 0.317 | L9: 0.396 | M9: 0.714 | Y9: 2015-01-14 | Z9: 55 | AA9: 163.5
A10: COL | B10: 2011 | C10: 0.258 | D10: 735 | E10: 5544 | F10: 1429 | G10: 163 | H10: 555 | I10: 1201 | J10: 118 | K10: 0.329 | L10: 0.41 | M10: 0.739 | Y10: 2015-01-15 | Z10: 46 | AA10: 214
A11: DET | B11: 2011 | C11: 0.277 | D11: 787 | E11: 5563 | F11: 1540 | G11: 169 | H11: 521 | I11: 1143 | J11: 49 | K11: 0.34 | L11: 0.434 | M11: 0.773 | Y11: 2015-01-16 | Z11: 47 | AA11: 210
A12: FLA | B12: 2011 | C12: 0.247 | D12: 625 | E12: 5508 | F12: 1358 | G12: 149 | H12: 542 | I12: 1244 | J12: 95 | K12: 0.318 | L12: 0.388 | M12: 0.706 | Y12: 2015-01-17 | Z12: 50 | AA12: 508
A13: HOU | B13: 2011 | C13: 0.258 | D13: 615 | E13: 5598 | F13: 1442 | G13: 95 | H13: 401 | I13: 1164 | J13: 118 | K13: 0.311 | L13: 0.374 | M13: 0.684 | Y13: 2015-01-18 | Z13: 36 | AA13: 294.55
A14: KCR | B14: 2011 | C14: 0.275 | D14: 730 | E14: 5672 | F14: 1560 | G14: 129 | H14: 442 | I14: 1006 | J14: 153 | K14: 0.329 | L14: 0.415 | M14: 0.744 | Y14: 2015-01-19 | Z14: 47 | AA14: 250
A15: LAA | B15: 2011 | C15: 0.253 | D15: 667 | E15: 5513 | F15: 1394 | G15: 155 | H15: 442 | I15: 1086 | J15: 135 | K15: 0.313 | L15: 0.402 | M15: 0.714 | Y15: 2015-01-20 | Z15: 40 | AA15: 371.95
A16: LAD | B16: 2011 | C16: 0.257 | D16: 644 | E16: 5436 | F16: 1395 | G16: 117 | H16: 498 | I16: 1087 | J16: 126 | K16: 0.322 | L16: 0.375 | M16: 0.697 | Y16: 2015-01-21 | Z16: 46 | AA16: 478
A17: MIL | B17: 2011 | C17: 0.261 | D17: 721 | E17: 5447 | F17: 1422 | G17: 185 | H17: 481 | I17: 1083 | J17: 94 | K17: 0.325 | L17: 0.425 | M17: 0.75 | Y17: 2015-01-22 | Z17: 55 | AA17: 258
A18: MIN | B18: 2011 | C18: 0.247 | D18: 619 | E18: 5487 | F18: 1357 | G18: 103 | H18: 440 | I18: 1048 | J18: 92 | K18: 0.306 | L18: 0.36 | M18: 0.666 | Y18: 2015-01-23 | Z18: 40 | AA18: 559
A19: NYM | B19: 2011 | C19: 0.264 | D19: 718 | E19: 5600 | F19: 1477 | G19: 108 | H19: 571 | I19: 1085 | J19: 130 | K19: 0.335 | L19: 0.391 | M19: 0.725 | O19: Slope | P19: =SLOPE(D2:D91,C2:C91) -> 5521.581144 | R19: =P19/1000 -> 5.521581144 | S19: /1000 to get slope for every .001 | Y19: 2015-01-24 | Z19: 53 | AA19: 536
A20: NYY | B20: 2011 | C20: 0.263 | D20: 867 | E20: 5518 | F20: 1452 | G20: 222 | H20: 627 | I20: 1138 | J20: 147 | K20: 0.343 | L20: 0.444 | M20: 0.788 | O20: Y-Intercept | P20: =INTERCEPT(D2:D91,C2:C91) -> -708.4939941 | Y20: 2015-01-25 | Z20: 44 | AA20: 576
A21: OAK | B21: 2011 | C21: 0.244 | D21: 645 | E21: 5452 | F21: 1330 | G21: 114 | H21: 509 | I21: 1094 | J21: 117 | K21: 0.311 | L21: 0.369 | M21: 0.68 | Y21: 2015-01-26 | Z21: 48 | AA21: 446
A22: PHI | B22: 2011 | C22: 0.253 | D22: 713 | E22: 5579 | F22: 1409 | G22: 153 | H22: 539 | I22: 1024 | J22: 96 | K22: 0.323 | L22: 0.395 | M22: 0.717 | Y22: 2015-01-27 | Z22: 46 | AA22: 300
A23: PIT | B23: 2011 | C23: 0.244 | D23: 610 | E23: 5421 | F23: 1325 | G23: 107 | H23: 489 | I23: 1308 | J23: 108 | K23: 0.309 | L23: 0.368 | M23: 0.676 | O23: x | P23: 0.231 | Y23: 2015-01-28 | Z23: 56 | AA23: 250.5
A24: SDP | B24: 2011 | C24: 0.237 | D24: 593 | E24: 5417 | F24: 1284 | G24: 91 | H24: 501 | I24: 1320 | J24: 170 | K24: 0.305 | L24: 0.349 | M24: 0.653 | O24: Predicted | P24: =$P$19*P23+$P$20 -> 566.9912502 | Y24: 2015-01-29 | Z24: 36 | AA24: 412.8
A25: SEA | B25: 2011 | C25: 0.233 | D25: 556 | E25: 5421 | F25: 1263 | G25: 109 | H25: 435 | I25: 1280 | J25: 125 | K25: 0.292 | L25: 0.348 | M25: 0.64 | O25: x | P25: 0.232 | Y25: 2015-01-30 | Z25: 38 | AA25: 511.7
A26: SFG | B26: 2011 | C26: 0.242 | D26: 570 | E26: 5486 | F26: 1327 | G26: 121 | H26: 448 | I26: 1122 | J26: 85 | K26: 0.303 | L26: 0.368 | M26: 0.671 | O26: Predicted | P26: =$P$19*P25+$P$20 -> 572.5128314 | Y26: 2015-01-31 | Z26: 37 | AA26: 311.75
A27: STL | B27: 2011 | C27: 0.273 | D27: 762 | E27: 5532 | F27: 1513 | G27: 162 | H27: 542 | I27: 978 | J27: 57 | K27: 0.341 | L27: 0.425 | M27: 0.766 | O27: Diff | P27: =P26-P24 -> 5.521581144 | Y27: 2015-02-01 | Z27: 44 | AA27: 478
A28: TBR | B28: 2011 | C28: 0.244 | D28: 707 | E28: 5436 | F28: 1324 | G28: 172 | H28: 571 | I28: 1193 | J28: 155 | K28: 0.322 | L28: 0.402 | M28: 0.724 | Y28: 2015-02-02 | Z28: 30 | AA28: 282.5
A29: TEX | B29: 2011 | C29: 0.283 | D29: 855 | E29: 5659 | F29: 1599 | G29: 210 | H29: 475 | I29: 930 | J29: 143 | K29: 0.34 | L29: 0.46 | M29: 0.8 | Y29: 2015-02-03 | Z29: 48 | AA29: 476
A30: TOR | B30: 2011 | C30: 0.249 | D30: 743 | E30: 5559 | F30: 1384 | G30: 186 | H30: 525 | I30: 1184 | J30: 131 | K30: 0.317 | L30: 0.413 | M30: 0.73 | Y30: 2015-02-04 | Z30: 37 | AA30: 565.45
A31: WSN | B31: 2011 | C31: 0.242 | D31: 624 | E31: 5441 | F31: 1319 | G31: 154 | H31: 470 | I31: 1323 | J31: 106 | K31: 0.309 | L31: 0.383 | M31: 0.691 | Y31: 2015-02-05 | Z31: 43 | AA31: 567.6
A32: ARI | B32: 2010 | C32: 0.25 | D32: 713 | E32: 5473 | F32: 1366 | G32: 180 | H32: 589 | I32: 1529 | J32: 86 | K32: 0.325 | L32: 0.416 | M32: 0.74 | Y32: 2015-02-06 | Z32: 39 | AA32: 634.25
A33: ATL | B33: 2010 | C33: 0.258 | D33: 738 | E33: 5463 | F33: 1411 | G33: 139 | H33: 634 | I33: 1140 | J33: 63 | K33: 0.339 | L33: 0.401 | M33: 0.74 | Y33: 2015-02-07 | Z33: 34 | AA33: 266.6
A34: BAL | B34: 2010 | C34: 0.259 | D34: 613 | E34: 5554 | F34: 1440 | G34: 133 | H34: 424 | I34: 1056 | J34: 76 | K34: 0.316 | L34: 0.386 | M34: 0.702 | Y34: 2015-02-08 | Z34: 33 | AA34: 345
A35: BOS | B35: 2010 | C35: 0.268 | D35: 818 | E35: 5646 | F35: 1511 | G35: 211 | H35: 587 | I35: 1140 | J35: 68 | K35: 0.339 | L35: 0.451 | M35: 0.79 | Y35: 2015-02-09 | Z35: 38 | AA35: 393.45
A36: CHC | B36: 2010 | C36: 0.257 | D36: 685 | E36: 5512 | F36: 1414 | G36: 149 | H36: 479 | I36: 1236 | J36: 55 | K36: 0.32 | L36: 0.401 | M36: 0.721 | Y36: 2015-02-10 | Z36: 38 | AA36: 567.6
A37: CHW | B37: 2010 | C37: 0.268 | D37: 752 | E37: 5484 | F37: 1467 | G37: 177 | H37: 467 | I37: 922 | J37: 160 | K37: 0.332 | L37: 0.42 | M37: 0.752 | Y37: 2015-02-11 | Z37: 37 | AA37: 266.6
A38: CIN | B38: 2010 | C38: 0.272 | D38: 790 | E38: 5579 | F38: 1515 | G38: 188 | H38: 522 | I38: 1218 | J38: 93 | K38: 0.338 | L38: 0.436 | M38: 0.774 | Y38: 2015-02-12 | Z38: 35 | AA38: 503.1
A39: CLE | B39: 2010 | C39: 0.248 | D39: 646 | E39: 5487 | F39: 1362 | G39: 128 | H39: 545 | I39: 1184 | J39: 91 | K39: 0.322 | L39: 0.378 | M39: 0.7 | Y39: 2015-02-13 | Z39: 53 | AA39: 242
A40: COL | B40: 2010 | C40: 0.263 | D40: 770 | E40: 5530 | F40: 1452 | G40: 173 | H40: 585 | I40: 1274 | J40: 99 | K40: 0.336 | L40: 0.425 | M40: 0.76 | Y40: 2015-02-14 | Z40: 55 | AA40: 216
A41: DET | B41: 2010 | C41: 0.268 | D41: 751 | E41: 5643 | F41: 1515 | G41: 152 | H41: 546 | I41: 1147 | J41: 69 | K41: 0.335 | L41: 0.415 | M41: 0.75 | Y41: 2015-02-15 | Z41: 58 | AA41: 354
A42: FLA | B42: 2010 | C42: 0.254 | D42: 719 | E42: 5531 | F42: 1403 | G42: 152 | H42: 514 | I42: 1375 | J42: 92 | K42: 0.321 | L42: 0.403 | M42: 0.724 | Y42: 2015-02-16 | Z42: 41 | AA42: 432.15
A43: HOU | B43: 2010 | C43: 0.247 | D43: 611 | E43: 5452 | F43: 1348 | G43: 108 | H43: 415 | I43: 1025 | J43: 100 | K43: 0.303 | L43: 0.362 | M43: 0.665 | Y43: 2015-02-17 | Z43: 43 | AA43: 406.35
A44: KCR | B44: 2010 | C44: 0.274 | D44: 676 | E44: 5604 | F44: 1534 | G44: 121 | H44: 471 | I44: 905 | J44: 115 | K44: 0.331 | L44: 0.399 | M44: 0.73 | Y44: 2015-02-18 | Z44: 43 | AA44: 627.8
A45: LAA | B45: 2010 | C45: 0.248 | D45: 681 | E45: 5488 | F45: 1363 | G45: 155 | H45: 466 | I45: 1070 | J45: 104 | K45: 0.311 | L45: 0.39 | M45: 0.702 | Y45: 2015-02-19 | Z45: 32 | AA45: 705
A46: LAD | B46: 2010 | C46: 0.252 | D46: 667 | E46: 5426 | F46: 1368 | G46: 120 | H46: 533 | I46: 1184 | J46: 92 | K46: 0.322 | L46: 0.379 | M46: 0.7 | Y46: 2015-02-20 | Z46: 53 | AA46: 534
A47: MIL | B47: 2010 | C47: 0.262 | D47: 750 | E47: 5606 | F47: 1471 | G47: 182 | H47: 546 | I47: 1216 | J47: 81 | K47: 0.335 | L47: 0.424 | M47: 0.759 | Y47: 2015-02-21 | Z47: 54 | AA47: 282
A48: MIN | B48: 2010 | C48: 0.273 | D48: 781 | E48: 5568 | F48: 1521 | G48: 142 | H48: 559 | I48: 967 | J48: 68 | K48: 0.341 | L48: 0.422 | M48: 0.762 | Y48: 2015-02-22 | Z48: 56 | AA48: 435
A49: NYM | B49: 2010 | C49: 0.249 | D49: 656 | E49: 5465 | F49: 1361 | G49: 128 | H49: 502 | I49: 1095 | J49: 130 | K49: 0.314 | L49: 0.383 | M49: 0.697 | Y49: 2015-02-23 | Z49: 52 | AA49: 380
A50: NYY | B50: 2010 | C50: 0.267 | D50: 859 | E50: 5567 | F50: 1485 | G50: 201 | H50: 662 | I50: 1136 | J50: 103 | K50: 0.35 | L50: 0.436 | M50: 0.786 | Y50: 2015-02-24 | Z50: 57 | AA50: 372
A51: OAK | B51: 2010 | C51: 0.256 | D51: 663 | E51: 5448 | F51: 1396 | G51: 109 | H51: 527 | I51: 1061 | J51: 156 | K51: 0.324 | L51: 0.378 | M51: 0.702 | Y51: 2015-02-25 | Z51: 51 | AA51: 240
A52: PHI | B52: 2010 | C52: 0.26 | D52: 772 | E52: 5581 | F52: 1451 | G52: 166 | H52: 560 | I52: 1064 | J52: 108 | K52: 0.332 | L52: 0.413 | M52: 0.745 | Y52: 2015-02-26 | Z52: 40 | AA52: 346.15
A53: PIT | B53: 2010 | C53: 0.242 | D53: 587 | E53: 5386 | F53: 1303 | G53: 126 | H53: 463 | I53: 1207 | J53: 87 | K53: 0.304 | L53: 0.373 | M53: 0.678 | Y53: 2015-02-27 | Z53: 32 | AA53: 577.5
A54: SDP | B54: 2010 | C54: 0.246 | D54: 665 | E54: 5434 | F54: 1338 | G54: 132 | H54: 538 | I54: 1183 | J54: 124 | K54: 0.317 | L54: 0.371 | M54: 0.689 | Y54: 2015-02-28 | Z54: 34 | AA54: 406.35
A55: SEA | B55: 2010 | C55: 0.236 | D55: 513 | E55: 5409 | F55: 1274 | G55: 101 | H55: 459 | I55: 1184 | J55: 142 | K55: 0.298 | L55: 0.339 | M55: 0.637 | Y55: 2015-03-01 | Z55: 37 | AA55: 468.7
A56: SFG | B56: 2010 | C56: 0.257 | D56: 697 | E56: 5488 | F56: 1411 | G56: 162 | H56: 487 | I56: 1099 | J56: 55 | K56: 0.321 | L56: 0.408 | M56: 0.729 | Y56: 2015-03-02 | Z56: 39 | AA56: 483.75
A57: STL | B57: 2010 | C57: 0.263 | D57: 736 | E57: 5542 | F57: 1456 | G57: 150 | H57: 541 | I57: 1027 | J57: 79 | K57: 0.332 | L57: 0.402 | M57: 0.733 | Y57: 2015-03-03 | Z57: 22 | AA57: 462.5
A58: TBR | B58: 2010 | C58: 0.247 | D58: 802 | E58: 5439 | F58: 1343 | G58: 160 | H58: 672 | I58: 1292 | J58: 172 | K58: 0.333 | L58: 0.403 | M58: 0.736 | Y58: 2015-03-04 | Z58: 38 | AA58: 408.5
A59: TEX | B59: 2010 | C59: 0.276 | D59: 787 | E59: 5635 | F59: 1556 | G59: 162 | H59: 511 | I59: 986 | J59: 123 | K59: 0.338 | L59: 0.419 | M59: 0.757 | Y59: 2015-03-05 | Z59: 40 | AA59: 311.75
A60: TOR | B60: 2010 | C60: 0.248 | D60: 755 | E60: 5495 | F60: 1364 | G60: 257 | H60: 471 | I60: 1164 | J60: 58 | K60: 0.312 | L60: 0.454 | M60: 0.766 | Y60: 2015-03-06 | Z60: 51 | AA60: 420
A61: WSN | B61: 2010 | C61: 0.25 | D61: 655 | E61: 5418 | F61: 1355 | G61: 149 | H61: 503 | I61: 1220 | J61: 110 | K61: 0.318 | L61: 0.39 | M61: 0.708 | Y61: 2015-03-07 | Z61: 32 | AA61: 410
A62: ARI | B62: 2009 | C62: 0.253 | D62: 720 | E62: 5565 | F62: 1408 | G62: 173 | H62: 571 | I62: 1298 | J62: 102 | K62: 0.324 | L62: 0.418 | M62: 0.742 | Y62: 2015-03-08 | Z62: 45 | AA62: 400
A63: ATL | B63: 2009 | C63: 0.263 | D63: 735 | E63: 5539 | F63: 1459 | G63: 149 | H63: 602 | I63: 1064 | J63: 58 | K63: 0.339 | L63: 0.405 | M63: 0.744 | Y63: 2015-03-09 | Z63: 40 | AA63: 460.1
A64: BAL | B64: 2009 | C64: 0.268 | D64: 741 | E64: 5618 | F64: 1508 | G64: 160 | H64: 517 | I64: 1013 | J64: 76 | K64: 0.332 | L64: 0.415 | M64: 0.747 | Y64: 2015-03-10 | Z64: 52 | AA64: 538
A65: BOS | B65: 2009 | C65: 0.27 | D65: 872 | E65: 5543 | F65: 1495 | G65: 212 | H65: 659 | I65: 1120 | J65: 126 | K65: 0.352 | L65: 0.454 | M65: 0.806 | Y65: 2015-03-11 | Z65: 25 | AA65: 597.5
A66: CHC | B66: 2009 | C66: 0.255 | D66: 707 | E66: 5486 | F66: 1398 | G66: 161 | H66: 592 | I66: 1185 | J66: 56 | K66: 0.332 | L66: 0.407 | M66: 0.738 | Y66: 2015-03-12 | Z66: 42 | AA66: 389.15
A67: CHW | B67: 2009 | C67: 0.258 | D67: 724 | E67: 5463 | F67: 1410 | G67: 184 | H67: 534 | I67: 1022 | J67: 113 | K67: 0.329 | L67: 0.411 | M67: 0.74 | Y67: 2015-03-13 | Z67: 45 | AA67: 228
A68: CIN | B68: 2009 | C68: 0.247 | D68: 673 | E68: 5462 | F68: 1349 | G68: 158 | H68: 531 | I68: 1129 | J68: 96 | K68: 0.318 | L68: 0.394 | M68: 0.712 | Y68: 2015-03-14 | Z68: 31 | AA68: 627.5
A69: CLE | B69: 2009 | C69: 0.264 | D69: 773 | E69: 5568 | F69: 1468 | G69: 161 | H69: 582 | I69: 1211 | J69: 84 | K69: 0.339 | L69: 0.417 | M69: 0.756 | Y69: 2015-03-15 | Z69: 51 | AA69: 408
A70: COL | B70: 2009 | C70: 0.261 | D70: 804 | E70: 5398 | F70: 1408 | G70: 190 | H70: 660 | I70: 1277 | J70: 106 | K70: 0.343 | L70: 0.441 | M70: 0.784 | Y70: 2015-03-16 | Z70: 34 | AA70: 339.7
A71: DET | B71: 2009 | C71: 0.26 | D71: 743 | E71: 5540 | F71: 1443 | G71: 183 | H71: 540 | I71: 1114 | J71: 72 | K71: 0.331 | L71: 0.416 | M71: 0.747 | Y71: 2015-03-17 | Z71: 21 | AA71: 527.5
A72: FLA | B72: 2009 | C72: 0.268 | D72: 772 | E72: 5572 | F72: 1493 | G72: 159 | H72: 568 | I72: 1226 | J72: 75 | K72: 0.34 | L72: 0.416 | M72: 0.756 | Y72: 2015-03-18 | Z72: 55 | AA72: 364.5
A73: HOU | B73: 2009 | C73: 0.26 | D73: 643 | E73: 5436 | F73: 1415 | G73: 142 | H73: 448 | I73: 990 | J73: 113 | K73: 0.319 | L73: 0.4 | M73: 0.719 | Y73: 2015-03-19 | Z73: 24 | AA73: 695
A74: KCR | B74: 2009 | C74: 0.259 | D74: 686 | E74: 5532 | F74: 1432 | G74: 144 | H74: 457 | I74: 1091 | J74: 88 | K74: 0.318 | L74: 0.405 | M74: 0.724 | Y74: 2015-03-20 | Z74: 42 | AA74: 462.25
A75: LAA | B75: 2009 | C75: 0.285 | D75: 883 | E75: 5622 | F75: 1604 | G75: 173 | H75: 547 | I75: 1054 | J75: 148 | K75: 0.35 | L75: 0.441 | M75: 0.792 | Y75: 2015-03-21 | Z75: 38 | AA75: 277.35
A76: LAD | B76: 2009 | C76: 0.27 | D76: 780 | E76: 5592 | F76: 1511 | G76: 145 | H76: 607 | I76: 1068 | J76: 116 | K76: 0.346 | L76: 0.412 | M76: 0.758 | Y76: 2015-03-22 | Z76: 48 | AA76: 334
A77: MIL | B77: 2009 | C77: 0.263 | D77: 785 | E77: 5510 | F77: 1447 | G77: 182 | H77: 610 | I77: 1231 | J77: 68 | K77: 0.341 | L77: 0.426 | M77: 0.767 | Y77: 2015-03-23 | Z77: 40 | AA77: 445.05
A78: MIN | B78: 2009 | C78: 0.274 | D78: 817 | E78: 5608 | F78: 1539 | G78: 172 | H78: 585 | I78: 1021 | J78: 85 | K78: 0.345 | L78: 0.429 | M78: 0.774 | Y78: 2015-03-24 | Z78: 45 | AA78: 496
A79: NYM | B79: 2009 | C79: 0.27 | D79: 671 | E79: 5453 | F79: 1472 | G79: 95 | H79: 526 | I79: 928 | J79: 122 | K79: 0.335 | L79: 0.394 | M79: 0.729 | Y79: 2015-03-25 | Z79: 45 | AA79: 514
A80: NYY | B80: 2009 | C80: 0.283 | D80: 915 | E80: 5660 | F80: 1604 | G80: 244 | H80: 663 | I80: 1014 | J80: 111 | K80: 0.362 | L80: 0.478 | M80: 0.839 | Y80: 2015-03-26 | Z80: 46 | AA80: 350
A81: OAK | B81: 2009 | C81: 0.262 | D81: 759 | E81: 5584 | F81: 1464 | G81: 135 | H81: 527 | I81: 1046 | J81: 133 | K81: 0.328 | L81: 0.397 | M81: 0.726 | Y81: 2015-03-27 | Z81: 33 | AA81: 697.5
A82: PHI | B82: 2009 | C82: 0.258 | D82: 820 | E82: 5578 | F82: 1439 | G82: 224 | H82: 589 | I82: 1155 | J82: 119 | K82: 0.334 | L82: 0.447 | M82: 0.781 | Y82: 2015-03-28 | Z82: 37 | AA82: 258
A83: PIT | B83: 2009 | C83: 0.252 | D83: 636 | E83: 5417 | F83: 1364 | G83: 125 | H83: 499 | I83: 1142 | J83: 90 | K83: 0.318 | L83: 0.387 | M83: 0.705 | Y83: 2015-03-29 | Z83: 24 | AA83: 257.5
A84: SDP | B84: 2009 | C84: 0.242 | D84: 638 | E84: 5425 | F84: 1315 | G84: 141 | H84: 586 | I84: 1182 | J84: 82 | K84: 0.321 | L84: 0.381 | M84: 0.701 | Y84: 2015-03-30 | Z84: 36 | AA84: 313.9
A85: SEA | B85: 2009 | C85: 0.258 | D85: 640 | E85: 5543 | F85: 1430 | G85: 160 | H85: 421 | I85: 1093 | J85: 89 | K85: 0.314 | L85: 0.402 | M85: 0.716 | Y85: 2015-03-31 | Z85: 37 | AA85: 481.6
A86: SFG | B86: 2009 | C86: 0.257 | D86: 657 | E86: 5493 | F86: 1411 | G86: 122 | H86: 392 | I86: 1158 | J86: 78 | K86: 0.309 | L86: 0.389 | M86: 0.699 | Y86: 2015-04-01 | Z86: 47 | AA86: 594
A87: STL | B87: 2009 | C87: 0.263 | D87: 730 | E87: 5465 | F87: 1436 | G87: 160 | H87: 528 | I87: 1041 | J87: 75 | K87: 0.332 | L87: 0.415 | M87: 0.747 | Y87: 2015-04-02 | Z87: 64 | AA87: 442.5
A88: TBR | B88: 2009 | C88: 0.263 | D88: 803 | E88: 5462 | F88: 1434 | G88: 199 | H88: 642 | I88: 1229 | J88: 194 | K88: 0.343 | L88: 0.439 | M88: 0.782 | Y88: 2015-04-03 | Z88: 60 | AA88: 397.5
A89: TEX | B89: 2009 | C89: 0.26 | D89: 784 | E89: 5526 | F89: 1436 | G89: 224 | H89: 472 | I89: 1253 | J89: 149 | K89: 0.32 | L89: 0.445 | M89: 0.764 | Y89: 2015-04-04 | Z89: 50 | AA89: 272
A90: TOR | B90: 2009 | C90: 0.266 | D90: 798 | E90: 5696 | F90: 1516 | G90: 209 | H90: 548 | I90: 1028 | J90: 73 | K90: 0.333 | L90: 0.44 | M90: 0.773 | Y90: 2015-04-05 | Z90: 62 | AA90: 208.5
A91: WSN | B91: 2009 | C91: 0.258 | D91: 710 | E91: 5493 | F91: 1416 | G91: 156 | H91: 617 | I91: 1208 | J91: 73 | K91: 0.337 | L91: 0.406 | M91: 0.743 | Y91: 2015-04-06 | Z91: 50 | AA91: 200
Y92: 2015-04-07 | Z92: 62 | AA92: 301.5
Y93: 2015-04-08 | Z93: 68 | AA93: 187
Y94: 2015-04-09 | Z94: 65 | AA94: 150
Y95: 2015-04-10 | Z95: 57 | AA95: 445.5
Y96: 2015-04-11 | Z96: 53 | AA96: 498
Y97: 2015-04-12 | Z97: 43 | AA97: 599.85
Y98: 2015-04-13 | Z98: 39 | AA98: 393.45
Y99: 2015-04-14 | Z99: 61 | AA99: 196.5
Y100: 2015-04-15 | Z100: 42 | AA100: 457.95
Y101: 2015-04-16 | Z101: 42 | AA101: 225.75
Y102: 2015-04-17 | Z102: 52 | AA102: 598
Y103: 2015-04-18 | Z103: 68 | AA103: 268
Y104: 2015-04-19 | Z104: 50 | AA104: 468
Y105: 2015-04-20 | Z105: 46 | AA105: 236
Y106: 2015-04-21 | Z106: 58 | AA106: 415.5
Y107: 2015-04-22 | Z107: 56 | AA107: 418.5
Y108: 2015-04-23 | Z108: 61 | AA108: 279
Y109: 2015-04-24 | Z109: 56 | AA109: 195
Y110: 2015-04-25 | Z110: 61 | AA110: 325.5
Y111: 2015-04-26 | Z111: 67 | AA111: 283
Y112: 2015-04-27 | Z112: 68 | AA112: 281
Y113: 2015-04-28 | Z113: 61 | AA113: 313.5
Y114: 2015-04-29 | Z114: 52 | AA114: 466
Y115: 2015-04-30 | Z115: 63 | AA115: 351
Y116: 2015-05-01 | Z116: 80 | AA116: 226
Y117: 2015-05-02 | Z117: 75 | AA117: 165
Y118: 2015-05-03 | Z118: 51 | AA118: 532
Y119: 2015-05-04 | Z119: 44 | AA119: 410
Y120: 2015-05-05 | Z120: 79 | AA120: 121
Y121: 2015-05-06 | Z121: 61 | AA121: 340.5
Y122: 2015-05-07 | Z122: 49 | AA122: 264
Y123: 2015-05-08 | Z123: 80 | AA123: 212
Y124: 2015-05-09 | Z124: 47 | AA124: 590
Y125: 2015-05-10 | Z125: 77 | AA125: 153
Y126: 2015-05-11 | Z126: 60 | AA126: 202.5
Y127: 2015-05-12 | Z127: 54 | AA127: 564
Y128: 2015-05-13 | Z128: 44 | AA128: 326
Y129: 2015-05-14 | Z129: 50 | AA129: 308
Y130: 2015-05-15 | Z130: 69 | AA130: 220
Y131: 2015-05-16 | Z131: 59 | AA131: 448.5
Y132: 2015-05-17 | Z132: 81 | AA132: 239
Y133: 2015-05-18 | Z133: 82 | AA133: 227
Y134: 2015-05-19 | Z134: 59 | AA134: 222
Y135: 2015-05-20 | Z135: 47 | AA135: 282
Y136: 2015-05-21 | Z136: 71 | AA136: 225
Y137: 2015-05-22 | Z137: 45 | AA137: 332
Y138: 2015-05-23 | Z138: 65 | AA138: 178
Y139: 2015-05-24 | Z139: 78 | AA139: 290
Y140: 2015-05-25 | Z140: 54 | AA140: 246
Y141: 2015-05-26 | Z141: 46 | AA141: 598
Y142: 2015-05-27 | Z142: 81 | AA142: 186
Y143: 2015-05-28 | Z143: 52 | AA143: 584
Y144: 2015-05-29 | Z144: 79 | AA144: 259
Y145: 2015-05-30 | Z145: 77 | AA145: 162
Y146: 2015-05-31 | Z146: 66 | AA146: 162
Y147: 2015-06-01 | Z147: 60 | AA147: 300
Y148: 2015-06-02 | Z148: 66 | AA148: 228
Y149: 2015-06-03 | Z149: 63 | AA149: 336
Y150: 2015-06-04 | Z150: 76 | AA150: 164
Y151: 2015-06-05 | Z151: 64 | AA151: 238.5
Y152: 2015-06-06 | Z152: 54 | AA152: 548
Y153: 2015-06-07 | Z153: 62 | AA153: 187.5
Y154: 2015-06-08 | Z154: 75 | AA154: 208
Y155: 2015-06-09 | Z155: 60 | AA155: 153
Y156: 2015-06-10 | Z156: 61 | AA156: 343.5
Y157: 2015-06-11 | Z157: 74 | AA157: 275
Y158: 2015-06-12 | Z158: 72 | AA158: 138
Y159: 2015-06-13 | Z159: 77 | AA159: 168
Y160: 2015-06-14 | Z160: 56 | AA160: 289.5
Y161: 2015-06-15 | Z161: 73 | AA161: 156
Y162: 2015-06-16 | Z162: 60 | AA162: 345
Y163: 2015-06-17 | Z163: 72 | AA163: 292
Y164: 2015-06-18 | Z164: 66 | AA164: 100
Y165: 2015-06-19 | Z165: 57 | AA165: 355.5
Y166: 2015-06-20 | Z166: 57 | AA166: 171
Y167: 2015-06-21 | Z167: 78 | AA167: 253
Y168: 2015-06-22 | Z168: 56 | AA168: 303
Y169: 2015-06-23 | Z169: 59 | AA169: 319.5
Y170: 2015-06-24 | Z170: 71 | AA170: 115
Y171: 2015-06-25 | Z171: 66 | AA171: 133
Y172: 2015-06-26 | Z172: 58 | AA172: 318
Y173: 2015-06-27 | Z173: 67 | AA173: 137
Y174: 2015-06-28 | Z174: 66 | AA174: 275
Y175: 2015-06-29 | Z175: 76 | AA175: 132
Y176: 2015-06-30 | Z176: 57 | AA176: 244.5
Y177: 2015-07-01 | Z177: 72 | AA177: 135
Y178: 2015-07-02 | Z178: 62 | AA178: 246
Y179: 2015-07-03 | Z179: 79 | AA179: 222
Y180: 2015-07-04 | Z180: 83 | AA180: 297
Y181: 2015-07-05 | Z181: 71 | AA181: 173
Y182: 2015-07-06 | Z182: 78 | AA182: 154
Y183: 2015-07-07 | Z183: 70 | AA183: 160
Y184: 2015-07-08 | Z184: 81 | AA184: 139
Y185: 2015-07-09 | Z185: 74 | AA185: 103
Y186: 2015-07-10 | Z186: 92 | AA186: 508
Y187: 2015-07-11 | Z187: 78 | AA187: 172
Y188: 2015-07-12 | Z188: 87 | AA188: 429
Y189: 2015-07-13 | Z189: 62 | AA189: 406.5
Y190: 2015-07-14 | Z190: 85 | AA190: 340.5
Y191: 2015-07-15 | Z191: 92 | AA191: 268
Y192: 2015-07-16 | Z192: 84 | AA192: 235
Y193: 2015-07-17 | Z193: 90 | AA193: 396
Y194: 2015-07-18 | Z194: 66 | AA194: 254
Y195: 2015-07-19 | Z195: 67 | AA195: 189
Y196: 2015-07-20 | Z196: 79 | AA196: 293
Y197: 2015-07-21 | Z197: 74 | AA197: 115
Y198: 2015-07-22 | Z198: 84 | AA198: 181
Y199: 2015-07-23 | Z199: 73 | AA199: 200
Y200: 2015-07-24 | Z200: 72 | AA200: 234
... 160 more rows

Sheet NoRelationship
B2: Customer Age | C2: Amount Spent
B3: 21 | C3: 45.9
B4: 57 | C4: 19.95
B5: 25 | C5: 21.95
B6: 38 | C6: 19.95
B7: 22 | C7: 79.8
B8: 29 | C8: 79.8
B9: 18 | C9: 59.85
B10: 64 | C10: 139.65
B11: 27 | C11: 119.7
B12: 22 | C12: 43.9
B13: 39 | C13: 43.9
B14: 61 | C14: 99.75
B15: 18 | C15: 114.75
B16: 22 | C16: 91.8
B17: 52 | C17: 114.75
B18: 22 | C18: 22.95
B19: 18 | C19: 124.75
B20: 55 | C20: 19.95
B21: 20 | C21: 87.8
B22: 42 | C22: 22.95
B23: 30 | C23: 299.5
B24: 64 | C24: 19.95
B25: 63 | C25: 99.75
B26: 41 | C26: 39.9
B27: 21 | C27: 65.85
B28: 63 | C28: 24.95
B29: 54 | C29: 21.95
B30: 18 | C30: 19.95
B31: 26 | C31: 91.8
B32: 59 | C32: 65.85
B33: 30 | C33: 39.9
B34: 64 | C34: 43.9
B35: 30 | C35: 65.85
B36: 41 | C36: 43.9
B37: 23 | C37: 99.75
B38: 52 | C38: 29.95
B39: 18 | C39: 65.85
B40: 32 | C40: 22.95
B41: 22 | C41: 19.95
B42: 29 | C42: 99.75
B43: 25 | C43: 124.75
B44: 63 | C44: 21.95
B45: 26 | C45: 174.65
B46: 31 | C46: 29.95
B47: 23 | C47: 149.75
B48: 42 | C48: 29.95
B49: 28 | C49: 45.9
B50: 23 | C50: 160.65
B51: 19 | C51: 160.65
B52: 37 | C52: 119.7
B53: 38 | C53: 43.9
B54: 50 | C54: 119.7
B55: 26 | C55: 65.85
B56: 33 | C56: 22.95
B57: 59 | C57: 65.85
B58: 32 | C58: 109.75
B59: 27 | C59: 114.75
B60: 54 | C60: 249.5
B61: 63 | C61: 109.75
B62: 48 | C62: 114.75
B63: 29 | C63: 114.75
B64: 38 | C64: 119.8
B65: 24 | C65: 29.95
B66: 51 | C66: 114.75
B67: 25 | C67: 209.65
B68: 65 | C68: 114.75
B69: 35 | C69: 59.85
B70: 35 | C70: 124.75
B71: 21 | C71: 39.9
B72: 47 | C72: 124.75
B73: 62 | C73: 24.95
B74: 63 | C74: 22.95
B75: 23 | C75: 249.5
B76: 59 | C76: 59.85
B77: 48 | C77: 43.9
B78: 57 | C78: 19.95
B79: 19 | C79: 29.95
B80: 48 | C80: 19.95
B81: 21 | C81: 65.85
B82: 40 | C82: 22.95
B83: 25 | C83: 79.8
B84: 59 | C84: 79.8
B85: 57 | C85: 114.75
B86: 56 | C86: 22.95
B87: 19 | C87: 19.95
B88: 54 | C88: 109.75
B89: 65 | C89: 59.9
B90: 25 | C90: 43.9
B91: 30 | C91: 39.9
B92: 57 | C92: 209.65
B93: 43 | C93: 19.95
B94: 44 | C94: 79.8
B95: 21 | C95: 124.75
B96: 20 | C96: 24.95
B97: 49 | C97: 160.65
B98: 37 | C98: 65.85
B99: 26 | C99: 137.7
B100: 62 | C100: 29.95
B101: 38 | C101: 119.7
B102: 55 | C102: 19.95
B103: 24 | C103: 39.9
B104: 30 | C104: 114.75
B105: 39 | C105: 21.95
B106: 59 | C106: 179.7
B107: 26 | C107: 39.9
B108: 33 | C108: 24.95
B109: 20 | C109: 99.8
B110: 18 | C110: 87.8
B111: 19 | C111: 39.9
B112: 61 | C112: 65.85
B113: 39 | C113: 199.5
B114: 52 | C114: 21.95
B115: 20 | C115: 124.75
B116: 50 | C116: 29.95
B117: 29 | C117: 21.95
B118: 55 | C118: 119.8
B119: 18 | C119: 89.85
B120: 39 | C120: 65.85
B121: 35 | C121: 91.8
B122: 38 | C122: 149.7
B123: 20 | C123: 59.85
B124: 60 | C124: 131.7
B125: 61 | C125: 49.9
B126: 62 | C126: 43.9
B127: 21 | C127: 19.95
B128: 40 | C128: 21.95
B129: 25 | C129: 24.95
B130: 50 | C130: 39.9
B131: 24 | C131: 24.95
B132: 28 | C132: 114.75
B133: 22 | C133: 119.7
B134: 22 | C134: 43.9
B135: 27 | C135: 24.95
B136: 54 | C136: 174.65
B137: 25 | C137: 24.95
B138: 25 | C138: 49.9
B139: 30 | C139: 19.95
B140: 59 | C140: 39.9
B141: 51 | C141: 45.9
B142: 38 | C142: 179.7
B143: 28 | C143: 160.65
B144: 30 | C144: 21.95
B145: 43 | C145: 124.75
B146: 42 | C146: 89.85
B147: 24 | C147: 49.9
B148: 47 | C148: 22.95
B149: 23 | C149: 19.95
B150: 59 | C150: 99.75
B151: 22 | C151: 91.8
B152: 27 | C152: 49.9
B153: 65 | C153: 21.95
B154: 27 | C154: 45.9
B155: 27 | C155: 22.95
B156: 28 | C156: 45.9
B157: 22 | C157: 24.95
B158: 42 | C158: 39.9
B159: 25 | C159: 179.7
B160: 41 | C160: 21.95
B161: 46 | C161: 24.95
B162: 41 | C162: 74.85
B163: 29 | C163: 79.8
B164: 50 | C164: 19.95
B165: 50 | C165: 22.95
B166: 34 | C166: 45.9
B167: 24 | C167: 65.85
B168: 29 | C168: 139.65
B169: 35 | C169: 22.95
B170: 24 | C170: 39.9
B171: 23 | C171: 109.75
B172: 31 | C172: 160.65
B173: 24 | C173: 49.9
B174: 30 | C174: 22.95
B175: 22 | C175: 45.9
B176: 43 | C176: 68.85
B177: 55 | C177: 229.5
B178: 38 | C178: 29.95
B179: 28 | C179: 39.9
B180: 30 | C180: 43.9
B181: 35 | C181: 19.95
B182: 41 | C182: 59.9
B183: 28 | C183: 99.75
B184: 65 | C184: 174.65
B185: 20 | C185: 65.85
B186: 39 | C186: 124.75
B187: 19 | C187: 87.8
B188: 64 | C188: 229.5
B189: 42 | C189: 99.75
B190: 24 | C190: 19.95
B191: 24 | C191: 19.95
B192: 18 | C192: 99.8
B193: 36 | C193: 24.95
B194: 61 | C194: 114.75
B195: 22 | C195: 59.85
B196: 55 | C196: 43.9
B197: 27 | C197: 74.85
B198: 49 | C198: 19.95
B199: 29 | C199: 22.95
B200: 33 | C200: 153.65
B201: 52 | C201: 39.9
... 1 more rows

Sheet Formulas

Sheet xAd-ySales
E2: =_xlfn.IFNA(_xlfn.FORMULATEXT(E5:O6),"") -> =AVERAGE(D10:D199) | F2: =AVERAGE(E10:E199) | H2: =MIN(D10:D199) | I2: =$F$5 | K2: =$E$5 | L2: =MIN(E10:E199)
H3: =MAX(D10:D199) | I3: =$F$5 | K3: =$E$5 | L3: =MAX(E10:E199) | N3: =E5:F5
E4: X | F4: Y | H4: X Min Max | I4: Ybar | K4: Xbar | L4: Y Min Max | N4: XY Mean Plot
D5: Sample Means | E5: =AVERAGE(D10:D199) -> 40429.52632 | F5: =AVERAGE(E10:E199) -> 370058.9506 | H5: =MIN(D10:D199) -> 14591 | I5: =$F$5 -> 370058.9506 | K5: =$E$5 -> 40429.52632 | L5: =MIN(E10:E199) -> 110924.66 | N5: Xbar | O5: Ybar
D6: Sample sx and sy | H6: =MAX(D10:D199) -> 64717 | I6: =$F$5 -> 370058.9506 | K6: =$E$5 -> 40429.52632 | L6: =MAX(E10:E199) -> 731834.3 | N6: =E5:F5 -> 40429.52632 | O6: 370058.9506
D8: Particular X = Xi | E8: Particular Y = Yi | F8: X Deviations | G8: Y Deviations | H8: (X Deviations)^2 | I8: (Y Deviations)^2 | J8: (X Deviations)* (Y Deviations) | K8: Estimated y value based on known x value | L8: Residual = How far is Yi from Predicted Yhat? | M8: Amount that Estimated Simple Linear Equation Explains Over Ybar Line | N8: Residual^2 | O8: Regression^2
C9: Date | D9: Ad Dollars Spent per Week (X) | E9: Weekly Sales (Y) | F9: Xi - Xbar | G9: Yi - Ybar | H9: (Xi - Xbar)^2 | I9: (Yi - Ybar)^2 | J9: (Xi - Xbar)* (Yi - Ybar) | K9: Yhat = b1 * x + b0 | L9: Yi - Yhat | M9: Yhat - Ybar | N9: ="("&L9:M9&")^2" -> (Yi - Yhat)^2 | O9: (Yhat - Ybar)^2
C10: 2018-01-01 | D10: 63566 | E10: 651334.36
C11: 2018-01-08 | D11: 50762 | E11: 527670.42
C12: 2018-01-15 | D12: 50941 | E12: 523751.3
C13: 2018-01-22 | D13: 17597 | E13: 175466.61
C14: 2018-01-29 | D14: 33029 | E14: 377977.97
C15: 2018-02-05 | D15: 58543 | E15: 520100.29
C16: 2018-02-12 | D16: 60492 | E16: 620856.28
C17: 2018-02-19 | D17: 59686 | E17: 593739.46
C18: 2018-02-26 | D18: 16432 | E18: 181948.96
C19: 2018-03-05 | D19: 17262 | E19: 184643.6
C20: 2018-03-12 | D20: 39118 | E20: 379373.56
C21: 2018-03-19 | D21: 36078 | E21: 238687.94
C22: 2018-03-26 | D22: 42113 | E22: 410066.15
C23: 2018-04-02 | D23: 50562 | E23: 413540.78
C24: 2018-04-09 | D24: 38240 | E24: 340241.6
C25: 2018-04-16 | D25: 59870 | E25: 582843
C26: 2018-04-23 | D26: 46056 | E26: 433185.92
C27: 2018-04-30 | D27: 33349 | E27: 270770.38
C28: 2018-05-07 | D28: 16207 | E28: 164421.42
C29: 2018-05-14 | D29: 57077 | E29: 478077.5
C30: 2018-05-21 | D30: 30893 | E30: 393839.09
C31: 2018-05-28 | D31: 54153 | E31: 430154.06
C32: 2018-06-04 | D32: 14591 | E32: 210792.82
C33: 2018-06-11 | D33: 50138 | E33: 343808.68
C34: 2018-06-18 | D34: 55253 | E34: 565510.49
C35: 2018-06-25 | D35: 34944 | E35: 330250.88
C36: 2018-07-02 | D36: 26413 | E36: 295905.03
C37: 2018-07-09 | D37: 54660 | E37: 562164.2
C38: 2018-07-16 | D38: 35887 | E38: 257067.99
C39: 2018-07-23 | D39: 42021 | E39: 384066.95
C40: 2018-07-30 | D40: 47349 | E40: 441576.23
C41: 2018-08-06 | D41: 24364 | E41: 252221.2
C42: 2018-08-13 | D42: 58406 | E42: 552875.66
C43: 2018-08-20 | D43: 51643 | E43: 446101.81
C44: 2018-08-27 | D44: 55115 | E44: 476038.95
C45: 2018-09-03 | D45: 35416 | E45: 393889.36
C46: 2018-09-10 | D46: 37274 | E46: 328436.78
C47: 2018-09-17 | D47: 36148 | E47: 408949.64
C48: 2018-09-24 | D48: 32192 | E48: 394776.32
C49: 2018-10-01 | D49: 51238 | E49: 455804.96
C50: 2018-10-08 | D50: 59235 | E50: 526249.4
C51: 2018-10-15 | D51: 59329 | E51: 562602.56
C52: 2018-10-22 | D52: 22739 | E52: 180749.25
C53: 2018-10-29 | D53: 28654 | E53: 275506.98
C54: 2018-11-05 | D54: 36786 | E54: 372981.08
C55: 2018-11-12 | D55: 20813 | E55: 216087.74
C56: 2018-11-19 | D56: 57259 | E56: 470281.06
C57: 2018-11-26 | D57: 57707 | E57: 481071.29
C58: 2018-12-03 | D58: 61539 | E58: 612466.46
C59: 2018-12-10 | D59: 36635 | E59: 370922.6
C60: 2018-12-17 | D60: 39086 | E60: 448677.2
C61: 2018-12-24 | D61: 33062 | E61: 259282.46
C62: 2018-12-31 | D62: 42144 | E62: 354279.68
C63: 2019-01-07 | D63: 18828 | E63: 185749.88
C64: 2019-01-14 | D64: 57070 | E64: 415818.7
C65: 2019-01-21 | D65: 27991 | E65: 252095.02
C66: 2019-01-28 | D66: 37876 | E66: 329524.88
C67: 2019-02-04 | D67: 16134 | E67: 233120.9
C68: 2019-02-11 | D68: 55466 | E68: 376140.08
C69: 2019-02-18 | D69: 26100 | E69: 208166
C70: 2019-02-25 | D70: 23787 | E70: 226261.67
C71: 2019-03-04 | D71: 30895 | E71: 249581.7
C72: 2019-03-11 | D72: 31845 | E72: 278010.2
C73: 2019-03-18 | D73: 50618 | E73: 537451.34
C74: 2019-03-25 | D74: 62293 | E74: 448052.27
C75: 2019-04-01 | D75: 61228 | E75: 519618.76
C76: 2019-04-08 | D76: 32558 | E76: 364510.28
C77: 2019-04-15 | D77: 40694 | E77: 351135.6
C78: 2019-04-22 | D78: 46333 | E78: 390547.55
C79: 2019-04-29 | D79: 28415 | E79: 234129.2
C80: 2019-05-06 | D80: 19993 | E80: 224538.89
C81: 2019-05-13 | D81: 34414 | E81: 248912.92
C82: 2019-05-20 | D82: 52078 | E82: 328096.52
C83: 2019-05-27 | D83: 24507 | E83: 262965.83
C84: 2019-06-03 | D84: 28516 | E84: 334304.52
C85: 2019-06-10 | D85: 17554 | E85: 216060.84
C86: 2019-06-17 | D86: 16662 | E86: 183462.62
C87: 2019-06-24 | D87: 57162 | E87: 517013.54
C88: 2019-07-01 | D88: 57297 | E88: 731834.3
C89: 2019-07-08 | D89: 64112 | E89: 439159.84
C90: 2019-07-15 | D90: 37237 | E90: 453649.08
C91: 2019-07-22 | D91: 55058 | E91: 495969.8
C92: 2019-07-29 | D92: 30791 | E92: 306489.03
C93: 2019-08-05 | D93: 19784 | E93: 226868.96
C94: 2019-08-12 | D94: 32463 | E94: 316845.86
C95: 2019-08-19 | D95: 59364 | E95: 496417.28
C96: 2019-08-26 | D96: 64632 | E96: 527881.68
C97: 2019-09-02 | D97: 58106 | E97: 535766.16
C98: 2019-09-09 | D98: 60333 | E98: 469314.35
C99: 2019-09-16 | D99: 58353 | E99: 558254.63
C100: 2019-09-23 | D100: 22672 | E100: 197141.28
C101: 2019-09-30 | D101: 64325 | E101: 563313.5
C102: 2019-10-07 | D102: 32326 | E102: 365825.02
C103: 2019-10-14 | D103: 16138 | E103: 206538.6
C104: 2019-10-21 | D104: 34957 | E104: 320916.75
C105: 2019-10-28 | D105: 26159 | E105: 294325.06
C106: 2019-11-04 | D106: 42098 | E106: 329951.7
C107: 2019-11-11 | D107: 20582 | E107: 161277.7
C108: 2019-11-18 | D108: 45614 | E108: 428140.06
C109: 2019-11-25 | D109: 42729 | E109: 433279.13
C110: 2019-12-02 | D110: 40053 | E110: 346792.73
C111: 2019-12-09 | D111: 51749 | E111: 540063.03
C112: 2019-12-16 | D112: 59753 | E112: 588972.06
C113: 2019-12-23 | D113: 34045 | E113: 290698.15
C114: 2019-12-30 | D114: 56384 | E114: 544487.68
C115: 2020-01-06 | D115: 33242 | E115: 206569.82
C116: 2020-01-13 | D116: 49060 | E116: 550902.6
C117: 2020-01-20 | D117: 38219 | E117: 321737.09
C118: 2020-01-27 | D118: 56891 | E118: 568845.92
C119: 2020-02-03 | D119: 52906 | E119: 426690.72
C120: 2020-02-10 | D120: 44835 | E120: 430649.15
C121: 2020-02-17 | D121: 45028 | E121: 400768.12
C122: 2020-02-24 | D122: 15988 | E122: 175665.68
C123: 2020-03-02 | D123: 64717 | E123: 558028.45
C124: 2020-03-09 | D124: 15196 | E124: 163514.12
C125: 2020-03-16 | D125: 45093 | E125: 398568.89
C126: 2020-03-23 | D126: 51099 | E126: 483830.51
C127: 2020-03-30 | D127: 40839 | E127: 292958.72
C128: 2020-04-06 | D128: 29773 | E128: 275083.88
C129: 2020-04-13 | D129: 60954 | E129: 599805.08
C130: 2020-04-20 | D130: 53820 | E130: 524692.4
C131: 2020-04-27 | D131: 19365 | E131: 196012.1
C132: 2020-05-04 | D132: 39109 | E132: 360134.37
C133: 2020-05-11 | D133: 40439 | E133: 312044.72
C134: 2020-05-18 | D134: 35117 | E134: 268076.57
C135: 2020-05-25 | D135: 50624 | E135: 394243.2
C136: 2020-06-01 | D136: 55174 | E136: 474839.8
C137: 2020-06-08 | D137: 52278 | E137: 474497.36
C138: 2020-06-15 | D138: 30557 | E138: 301178.54
C139: 2020-06-22 | D139: 62145 | E139: 642241.85
C140: 2020-06-29 | D140: 58106 | E140: 475335.92
C141: 2020-07-06 | D141: 55233 | E141: 543230.69
C142: 2020-07-13 | D142: 51653 | E142: 343389.04
C143: 2020-07-20 | D143: 16221 | E143: 195989
C144: 2020-07-27 | D144: 28538 | E144: 295141.42
C145: 2020-08-03 | D145: 33546 | E145: 355268.6
C146: 2020-08-10 | D146: 50539 | E146: 505356.39
C147: 2020-08-17 | D147: 14677 | E147: 180772.07
C148: 2020-08-24 | D148: 15835 | E148: 146751.85
C149: 2020-08-31 | D149: 24504 | E149: 198984.32
C150: 2020-09-07 | D150: 21816 | E150: 210783.92
C151: 2020-09-14 | D151: 28370 | E151: 246604.1
C152: 2020-09-21 | D152: 46733 | E152: 430873.95
C153: 2020-09-28 | D153: 46568 | E153: 393671.84
C154: 2020-10-05 | D154: 42540 | E154: 363945.2
C155: 2020-10-12 | D155: 39348 | E155: 275857.52
C156: 2020-10-19 | D156: 34125 | E156: 350641.25
C157: 2020-10-26 | D157: 61572 | E157: 580750.64
C158: 2020-11-02 | D158: 54730 | E158: 410123.4
C159: 2020-11-09 | D159: 38799 | E159: 332068.73
C160: 2020-11-16 | D160: 22293 | E160: 208949.09
C161: 2020-11-23 | D161: 37202 | E161: 346499.94
C162: 2020-11-30 | D162: 53171 | E162: 474836.29
C163: 2020-12-07 | D163: 33287 | E163: 255380.79
C164: 2020-12-14 | D164: 35445 | E164: 237858.5
C165: 2020-12-21 | D165: 21723 | E165: 224001.23
C166: 2020-12-28 | D166: 40939 | E166: 439329.89
C167: 2021-01-04 | D167: 45048 | E167: 362182.64
C168: 2021-01-11 | D168: 30296 | E168: 299639.04
C169: 2021-01-18 | D169: 53521 | E169: 457210.54
C170: 2021-01-25 | D170: 24680 | E170: 209679.6
C171: 2021-02-01 | D171: 46956 | E171: 426587.12
C172: 2021-02-08 | D172: 16392 | E172: 200150.72
C173: 2021-02-15 | D173: 53761 | E173: 534924.22
C174: 2021-02-22 | D174: 56104 | E174: 460681.28
C175: 2021-03-01 | D175: 15241 | E175: 151200.24
C176: 2021-03-08 | D176: 19284 | E176: 212426.64
C177: 2021-03-15 | D177: 14673 | E177: 181763.54
C178: 2021-03-22 | D178: 57793 | E178: 497895.75
C179: 2021-03-29 | D179: 28259 | E179: 242161.2
C180: 2021-04-05 | D180: 30304 | E180: 206671.68
C181: 2021-04-12 | D181: 62568 | E181: 496735.52
C182: 2021-04-19 | D182: 56139 | E182: 513074.17
C183: 2021-04-26 | D183: 23120 | E183: 214614.4
C184: 2021-05-03 | D184: 17006 | E184: 110924.66
C185: 2021-05-10 | D185: 31596 | E185: 329940.56
C186: 2021-05-17 | D186: 40607 | E186: 363486.04
C187: 2021-05-24 | D187: 61771 | E187: 569494.11
C188: 2021-05-31 | D188: 30412 | E188: 279610.6
C189: 2021-06-07 | D189: 36947 | E189: 361463.21
C190: 2021-06-14 | D190: 43194 | E190: 395552
C191: 2021-06-21 | D191: 56866 | E191: 492417.48
C192: 2021-06-28 | D192: 39851 | E192: 367213.96
C193: 2021-07-05 | D193: 36617 | E193: 312177.72
C194: 2021-07-12 | D194: 46438 | E194: 331878.66
C195: 2021-07-19 | D195: 27520 | E195: 266032
C196: 2021-07-26 | D196: 28852 | E196: 311399.12
C197: 2021-08-02 | D197: 60878 | E197: 505367.44
C198: 2021-08-09 | D198: 32779 | E198: 211928.26
C199: 2021-08-16 | D199: 49959 | E199: 401211.77
E200: Totals
H201: Σ(Xi - Xbar)^2 | I201: SST = Σ(Yi - Ybar)^2 | J201: Σ((Xi - Xbar)* (Yi - Ybar)) | N201: SSE = Σ(Yi - Yhat)^2 | O201: SSR = Σ(Yhat - Ybar)^2
A202: . | B202: Relationship from Visual? | C202: It looks like as Ad $ increase, Sales $ increase. A positive or direct relationship. | I202: Sum of Squares Total | N202: Sum of Squares Error | O202: Sum of Squares Regression
... 217 more rows

Sheet xAd-ySales (an)
E2: =_xlfn.IFNA(_xlfn.FORMULATEXT(E5:O6),"") -> =AVERAGE(D10:D199) | F2: =AVERAGE(E10:E199) | H2: =MIN(D10:D199) | I2: =$F$5 | K2: =$E$5 | L2: =MIN(E10:E199)
E3: =SQRT(H200/(C204-1)) | F3: =SQRT(I200/(C204-1)) | H3: =MAX(D10:D199) | I3: =$F$5 | K3: =$E$5 | L3: =MAX(E10:E199) | N3: =E5:F5
E4: X | F4: Y | H4: X Min Max | I4: Ybar | K4: Xbar | L4: Y Min Max | N4: XY Mean Plot
D5: Sample Means | E5: =AVERAGE(D10:D199) -> 40429.52632 | F5: =AVERAGE(E10:E199) -> 370058.9506 | H5: =MIN(D10:D199) -> 14591 | I5: =$F$5 -> 370058.9506 | K5: =$E$5 -> 40429.52632 | L5: =MIN(E10:E199) -> 110924.66 | N5: Xbar | O5: Ybar
D6: Sample sx and sy | E6: =SQRT(H200/(C204-1)) -> 14643.35921 | F6: =SQRT(I200/(C204-1)) -> 131523.1728 | H6: =MAX(D10:D199) -> 64717 | I6: =$F$5 -> 370058.9506 | K6: =$E$5 -> 40429.52632 | L6: =MAX(E10:E199) -> 731834.3 | N6: =E5:F5 -> 40429.52632 | O6: 370058.9506
D8: Particular X = Xi | E8: Particular Y = Yi | F8: X Deviations | G8: Y Deviations | H8: (X Deviations)^2 | I8: (Y Deviations)^2 | J8: (X Deviations)* (Y Deviations) | K8: Estimated y value based on known x value | L8: Residual = How far is Yi from Predicted Yhat? | M8: Amount that Estimated Simple Linear Equation Explains Over Ybar Line | N8: Residual^2 | O8: Regression^2
C9: Date | D9: Ad Dollars Spent per Week (X) | E9: Weekly Sales (Y) | F9: Xi - Xbar | G9: Yi - Ybar | H9: (Xi - Xbar)^2 | I9: (Yi - Ybar)^2 | J9: (Xi - Xbar)* (Yi - Ybar) | K9: Yhat = b1 * x + b0 | L9: Yi - Yhat | M9: Yhat - Ybar | N9: ="("&L9:M9&")^2" -> (Yi - Yhat)^2 | O9: (Yhat - Ybar)^2
C10: 2018-01-01 | D10: 63566 | E10: 651334.36 | F10: =D10:D199-E5 -> 23136.47368 | G10: =E10:E199-F5 -> 281275.4094 | H10: =_xlfn.ANCHORARRAY(F10)^2 -> 535296414.5 | I10: =_xlfn.ANCHORARRAY(G10)^2 -> 7.911585592e+10 | J10: =_xlfn.ANCHORARRAY(F10)*_xlfn.ANCHORARRAY(G10) -> 6507721107 | K10: =C208*D10:D199+C209 -> 560739.3279 | L10: =E10:E199-_xlfn.ANCHORARRAY(K10) -> 90595.03206 | M10: =_xlfn.ANCHORARRAY(K10)-F5 -> 190680.3773 | N10: =_xlfn.ANCHORARRAY(L10)^2 -> 8207459835 | O10: =_xlfn.ANCHORARRAY(M10)^2 -> 3.635900629e+10
C11: 2018-01-08 | D11: 50762 | E11: 527670.42 | F11: 10332.47368 | G11: 157611.4694 | H11: 106760012.4 | I11: 2.484137528e+10 | J11: 1628516360 | K11: 455214.5369 | L11: 72455.88311 | M11: 85155.58626 | N11: 5249854997 | O11: 7251473872
C12: 2018-01-15 | D12: 50941 | E12: 523751.3 | F12: 10511.47368 | G12: 153692.3494 | H12: 110491079 | I12: 2.362133825e+10 | J12: 1615533086 | K12: 456689.7741 | L12: 67061.52587 | M12: 86630.8235 | N12: 4497248252 | O12: 7504899580
C13: 2018-01-22 | D13: 17597 | E13: 175466.61 | F13: -22832.52632 | G13: -194592.3406 | H13: 521324258 | I13: 3.786617903e+10 | J13: 4443034738 | K13: 181883.5704 | L13: -6416.960401 | M13: -188175.3802 | N13: 41177380.78 | O13: 3.540997373e+10
C14: 2018-01-29 | D14: 33029 | E14: 377977.97 | F14: -7400.526316 | G14: 7919.019368 | H14: 54767789.75 | I14: 62710867.76 | J14: -58604911.23 | K14: 309067.1517 | L14: 68910.81827 | M14: -60991.7989 | N14: 4748700874 | O14: 3719999533
C15: 2018-02-05 | D15: 58543 | E15: 520100.29 | F15: 18113.47368 | G15: 150041.3394 | H15: 328097928.9 | I15: 2.251240352e+10 | J15: 2717769852 | K15: 519342.0282 | L15: 758.2617673 | M15: 149283.0776 | N15: 574960.9077 | O15: 2.228543726e+10
C16: 2018-02-12 | D16: 60492 | E16: 620856.28 | F16: 20062.47368 | G16: 250797.3294 | H16: 402502850.3 | I16: 6.289930042e+10 | J16: 5031614821 | K16: 535404.8069 | L16: 85451.47312 | M16: 165345.8562 | N16: 7301954259 | O16: 2.733925218e+10
C17: 2018-02-19 | D17: 59686 | E17: 593739.46 | F17: 19256.47368 | G17: 223680.5094 | H17: 370811778.8 | I17: 5.003297027e+10 | J17: 4307297842 | K17: 528762.1185 | L17: 64977.34147 | M17: 158703.1679 | N17: 4222054905 | O17: 2.51866955e+10
C18: 2018-02-26 | D18: 16432 | E18: 181948.96 | F18: -23997.52632 | G18: -188109.9906 | H18: 575881269.3 | I18: 3.538536858e+10 | J18: 4514174450 | K18: 172282.166 | L18: 9666.79397 | M18: -197776.7846 | N18: 93446905.67 | O18: 3.911565653e+10
C19: 2018-03-05 | D19: 17262 | E19: 184643.6 | F19: -23167.52632 | G19: -185415.3506 | H19: 536734275.6 | I19: 3.437885225e+10 | J19: 4295615015 | K19: 179122.6515 | L19: 5520.948453 | M19: -190936.2991 | N19: 30480871.82 | O19: 3.645667031e+10
C20: 2018-03-12 | D20: 39118 | E20: 379373.56 | F20: -1311.526316 | G20: 9314.609368 | H20: 1720101.277 | I20: 86761947.69 | J20: -12216355.31 | K20: 359249.9425 | L20: 20123.61752 | M20: -10809.00816 | N20: 404959982.2 | O20: 116834657.3
C21: 2018-03-19 | D21: 36078 | E21: 238687.94 | F21: -4351.526316 | G21: -131371.0106 | H21: 18935781.28 | I21: 1.725834243e+10 | J21: 571664409.9 | K21: 334195.6341 | L21: -95507.69407 | M21: -35863.31656 | N21: 9121719627 | O21: 1286177474
C22: 2018-03-26 | D22: 42113 | E22: 410066.15 | F22: 1683.473684 | G22: 40007.19937 | H22: 2834083.645 | I22: 1600576001 | J22: 67351067.32 | K22: 383933.3812 | L22: 26132.76882 | M22: 13874.43055 | N22: 682921606.1 | O22: 192499823.1
C23: 2018-04-02 | D23: 50562 | E23: 413540.78 | F23: 10132.47368 | G23: 43481.82937 | H23: 102667023 | I23: 1890669485 | J23: 440578491.8 | K23: 453566.2271 | L23: -40025.44713 | M23: 83507.2765 | N23: 1602036418 | O23: 6973465228
C24: 2018-04-09 | D24: 38240 | E24: 340241.6 | F24: -2189.526316 | G24: -29817.35063 | H24: 4794025.488 | I24: 889074398.7 | J24: 65285873.87 | K24: 352013.8626 | L24: -11772.26262 | M24: -18045.08802 | N24: 138586167.1 | O24: 325625201.5
C25: 2018-04-16 | D25: 59870 | E25: 582843 | F25: 19440.47368 | G25: 212784.0494 | H25: 377932017.1 | I25: 4.527705167e+10 | J25: 4136622712 | K25: 530278.5635 | L25: 52564.43649 | M25: 160219.6129 | N25: 2763019983 | O25: 2.567032435e+10
C26: 2018-04-23 | D26: 46056 | E26: 433185.92 | F26: 5626.473684 | G26: 63126.96937 | H26: 31657206.12 | I26: 3985014262 | J26: 355182231.9 | K26: 416429.8082 | L26: 16756.11184 | M26: 46370.85753 | N26: 280767283.9 | O26: 2150256428
C27: 2018-04-30 | D27: 33349 | E27: 270770.38 | F27: -7080.526316 | G27: -99288.57063 | H27: 50133852.91 | I27: 9858220258 | J27: 703015337.2 | K27: 311704.4474 | L27: -40934.06735 | M27: -58354.50328 | N27: 1675597870 | O27: 3405248053
C28: 2018-05-07 | D28: 16207 | E28: 164421.42 | F28: -24222.52632 | G28: -205637.5306 | H28: 586730781.1 | I28: 4.2286794e+10 | J28: 4981060497 | K28: 170427.8175 | L28: -6006.397546 | M28: -199631.1331 | N28: 36076811.48 | O28: 3.98525893e+10
C29: 2018-05-14 | D29: 57077 | E29: 478077.5 | F29: 16647.47368 | G29: 108018.5494 | H29: 277138380.1 | I29: 1.166800701e+10 | J29: 1798235958 | K29: 507259.9177 | L29: -29182.41767 | M29: 137200.967 | N29: 851613501 | O29: 1.882410536e+10
C30: 2018-05-21 | D30: 30893 | E30: 393839.09 | F30: -9536.526316 | G30: 23780.13937 | H30: 90945334.17 | I30: 565495028.4 | J30: -226779924.9 | K30: 291463.2035 | L30: 102375.8865 | M30: -78595.74717 | N30: 1.048082214e+10 | O30: 6177291473
C31: 2018-05-28 | D31: 54153 | E31: 430154.06 | F31: 13723.47368 | G31: 60095.10937 | H31: 188333730 | I31: 3611422170 | J31: 824713652 | K31: 483161.6289 | L31: -53007.56893 | M31: 113102.6783 | N31: 2809802364 | O31: 1.279221584e+10
C32: 2018-06-04 | D32: 14591 | E32: 210792.82 | F32: -25838.52632 | G32: -159266.1306 | H32: 667629442.2 | I32: 2.536570037e+10 | J32: 4115202108 | K32: 157109.4747 | L32: 53683.34534 | M32: -212949.476 | N32: 2881901567 | O32: 4.534747932e+10
C33: 2018-06-11 | D33: 50138 | E33: 343808.68 | F33: 9708.473684 | G33: -26250.27063 | H33: 94254461.28 | I33: 689076708.2 | J33: -254850061.6 | K33: 450071.8104 | L33: -106263.1304 | M33: 80012.8598 | N33: 1.129185289e+10 | O33: 6402057733
C34: 2018-06-18 | D34: 55253 | E34: 565510.49 | F34: 14823.47368 | G34: 195451.5394 | H34: 219735372.1 | I34: 3.820130424e+10 | J34: 2897270750 | K34: 492227.3326 | L34: 73283.15737 | M34: 122168.382 | N34: 5370421155 | O34: 1.492511356e+10
C35: 2018-06-25 | D35: 34944 | E35: 330250.88 | F35: -5485.526316 | G35: -39808.07063 | H35: 30090998.96 | I35: 1584682487 | J35: 218368219 | K35: 324849.7177 | L35: 5401.162283 | M35: -45209.23291 | N35: 29172554.01 | O35: 2043874741
C36: 2018-07-02 | D36: 26413 | E36: 295905.03 | F36: -14016.52632 | G36: -74153.92063 | H36: 196463010 | I36: 5498803945 | J36: 1039380380 | K36: 254541.0648 | L36: 41363.96523 | M36: -115517.8859 | N36: 1710977620 | O36: 1.334438196e+10
C37: 2018-07-09 | D37: 54660 | E37: 562164.2 | F37: 14230.47368 | G37: 192105.2494 | H37: 202506381.3 | I37: 3.690442683e+10 | J37: 2733748696 | K37: 487340.0942 | L37: 74824.10582 | M37: 117281.1435 | N37: 5598646812 | O37: 1.375486663e+10
C38: 2018-07-16 | D38: 35887 | E38: 257067.99 | F38: -4542.526316 | G38: -112990.9606 | H38: 20634545.33 | I38: 1.276695718e+10 | J38: 513264412.1 | K38: 332621.4983 | L38: -75553.50825 | M38: -37437.45238 | N38: 5708332609 | O38: 1401562841
C39: 2018-07-23 | D39: 42021 | E39: 384066.95 | F39: 1591.473684 | G39: 14007.99937 | H39: 2532788.488 | I39: 196224046.3 | J39: 22293362.36 | K39: 383175.1587 | L39: 891.7913101 | M39: 13116.20806 | N39: 795291.7409 | O39: 172034913.8
C40: 2018-07-30 | D40: 47349 | E40: 441576.23 | F40: 6919.473684 | G40: 71517.27937 | H40: 47879116.07 | I40: 5114721248 | J40: 494861932.6 | K40: 427086.1308 | L40: 14490.09922 | M40: 57027.18015 | N40: 209962975.3 | O40: 3252099276
C41: 2018-08-06 | D41: 24364 | E41: 252221.2 | F41: -16065.52632 | G41: -117837.7506 | H41: 258101135.8 | I41: 1.388573547e+10 | J41: 1893125484 | K41: 237654.1312 | L41: 14567.06876 | M41: -132404.8194 | N41: 212199492.2 | O41: 1.75310362e+10
C42: 2018-08-13 | D42: 58406 | E42: 552875.66 | F42: 17976.47368 | G42: 182816.7094 | H42: 323153606.1 | I42: 3.342194922e+10 | J42: 3286399765 | K42: 518212.936 | L42: 34662.72396 | M42: 148153.9854 | N42: 1201504432 | O42: 2.194960339e+10
C43: 2018-08-20 | D43: 51643 | E43: 446101.81 | F43: 11213.47368 | G43: 76042.85937 | H43: 125741992.1 | I43: 5782516461 | J43: 852704602.4 | K43: 462475.3414 | L43: -16373.5314 | M43: 92416.39077 | N43: 268092530.5 | O43: 8540789283
C44: 2018-08-27 | D44: 55115 | E44: 476038.95 | F44: 14685.47368 | G44: 105979.9994 | H44: 215663137.3 | I44: 1.123176027e+10 | J44: 1556366492 | K44: 491089.9989 | L44: -15051.04889 | M44: 121031.0483 | N44: 226534072.7 | O44: 1.464851464e+10
C45: 2018-09-03 | D45: 35416 | E45: 393889.36 | F45: -5013.526316 | G45: 23830.40937 | H45: 25135446.12 | I45: 567888410.7 | J45: -119474384.5 | K45: 328739.7288 | L45: 65149.63124 | M45: -41319.22187 | N45: 4244474451 | O45: 1707278096
C46: 2018-09-10 | D46: 37274 | E46: 328436.78 | F46: -3155.526316 | G46: -41622.17063 | H46: 9957346.33 | I46: 1732405088 | J46: 131339854.7 | K46: 344052.5265 | L46: -15615.74646 | M46: -26006.42417 | N46: 243851537.5 | O46: 676334098.2
C47: 2018-09-17 | D47: 36148 | E47: 408949.64 | F47: -4281.526316 | G47: 38890.68937 | H47: 18331467.59 | I47: 1512485720 | J47: -166511510 | K47: 334772.5425 | L47: 74177.09751 | M47: -35286.40814 | N47: 5502241795 | O47: 1245130599
C48: 2018-09-24 | D48: 32192 | E48: 394776.32 | F48: -8237.526316 | G48: 24717.36937 | H48: 67856839.8 | I48: 610948348.5 | J48: -203609980.6 | K48: 302168.9754 | L48: 92607.34463 | M48: -67889.97526 | N48: 8576120279 | O48: 4609048740
C49: 2018-10-01 | D49: 51238 | E49: 455804.96 | F49: 10808.47368 | G49: 85746.00937 | H49: 116823103.4 | I49: 7352378123 | J49: 926783485.8 | K49: 459137.5141 | L49: -3332.55413 | M49: 89078.5635 | N49: 11105917.03 | O49: 7934990475
C50: 2018-10-08 | D50: 59235 | E50: 526249.4 | F50: 18805.47368 | G50: 156190.4494 | H50: 353645840.5 | I50: 2.439545647e+10 | J50: 2937235385 | K50: 525045.18 | L50: 1204.219986 | M50: 154986.2294 | N50: 1450145.776 | O50: 2.40207313e+10
C51: 2018-10-15 | D51: 59329 | E51: 562602.56 | F51: 18899.47368 | G51: 192543.6094 | H51: 357190105.5 | I51: 3.707304151e+10 | J51: 3638972878 | K51: 525819.8856 | L51: 36782.6744 | M51: 155760.935 | N51: 1352965136 | O51: 2.426146886e+10
C52: 2018-10-22 | D52: 22739 | E52: 180749.25 | F52: -17690.52632 | G52: -189309.7006 | H52: 312954721.3 | I52: 3.583816275e+10 | J52: 3348988241 | K52: 224261.6144 | L52: -43512.36441 | M52: -145797.3362 | N52: 1893325857 | O52: 2.125686325e+10
C53: 2018-10-29 | D53: 28654 | E53: 275506.98 | F53: -11775.52632 | G53: -94551.97063 | H53: 138663020 | I53: 8940075150 | J53: 1113399218 | K53: 273010.3757 | L53: 2496.604338 | M53: -97048.57497 | N53: 6233033.218 | O53: 9418425904
C54: 2018-11-05 | D54: 36786 | E54: 372981.08 | F54: -3643.526316 | G54: 2922.129368 | H54: 13275284.01 | I54: 8538840.046 | J54: -10646855.25 | K54: 340030.6506 | L54: 32950.42936 | M54: -30028.3 | N54: 1085730795 | O54: 901698800.6
C55: 2018-11-12 | D55: 20813 | E55: 216087.74 | F55: -19616.52632 | G55: -153971.2106 | H55: 384808104.7 | I55: 2.37071337e+10 | J55: 3020380305 | K55: 208388.3914 | L55: 7699.348606 | M55: -161670.5592 | N55: 59279968.96 | O55: 2.613736972e+10
C56: 2018-11-19 | D56: 57259 | E56: 470281.06 | F56: 16829.47368 | G56: 100222.1094 | H56: 283231184.5 | I56: 1.004447121e+10 | J56: 1686685352 | K56: 508759.8796 | L56: -38478.81955 | M56: 138700.9289 | N56: 1480619554 | O56: 1.923794768e+10
C57: 2018-11-26 | D57: 57707 | E57: 481071.29 | F57: 17277.47368 | G57: 111012.3394 | H57: 298511096.9 | I57: 1.232373949e+10 | J57: 1918012772 | K57: 512452.0934 | L57: -31380.80342 | M57: 142393.1428 | N57: 984754823.4 | O57: 2.027580711e+10
C58: 2018-12-03 | D58: 61539 | E58: 612466.46 | F58: 21109.47368 | G58: 242407.5094 | H58: 445609879.2 | I58: 5.87614006e+10 | J58: 5117094940 | K58: 544033.7085 | L58: 68432.75151 | M58: 173974.7579 | N58: 4683041480 | O58: 3.026721637e+10
C59: 2018-12-10 | D59: 36635 | E59: 370922.6 | F59: -3794.526316 | G59: 863.6493684 | H59: 14398429.96 | I59: 745890.2316 | J59: -3277140.256 | K59: 338786.1768 | L59: 32136.42323 | M59: -31272.77387 | N59: 1032749698 | O59: 977986385.3
C60: 2018-12-17 | D60: 39086 | E60: 448677.2 | F60: -1343.526316 | G60: 78618.24937 | H60: 1805062.961 | I60: 6180829134 | J60: -105625686.9 | K60: 358986.2129 | L60: 89690.98709 | M60: -11072.73772 | N60: 8044473164 | O60: 122605520.6
C61: 2018-12-24 | D61: 33062 | E61: 259282.46 | F61: -7367.526316 | G61: -110776.4906 | H61: 54280444.01 | I61: 1.227143088e+10 | J61: 816148709.9 | K61: 309339.1228 | L61: -50056.66284 | M61: -60719.82779 | N61: 2505669495 | O61: 3686897486
C62: 2018-12-31 | D62: 42144 | E62: 354279.68 | F62: 1714.473684 | G62: -15779.27063 | H62: 2939420.014 | I62: 248985381.7 | J62: -27053144.25 | K62: 384188.8692 | L62: -29909.18919 | M62: 14129.91856 | N62: 894559598.3 | O62: 199654598.6
C63: 2019-01-07 | D63: 18828 | E63: 185749.88 | F63: -21601.52632 | G63: -184309.0706 | H63: 466625939.2 | I63: 3.396983352e+10 | J63: 3981357239 | K63: 192028.917 | L63: -6279.036993 | M63: -178030.0336 | N63: 39426305.57 | O63: 3.169469288e+10
C64: 2019-01-14 | D64: 57070 | E64: 415818.7 | F64: 16640.47368 | G64: 45759.74937 | H64: 276905364.4 | I64: 2093954662 | J64: 761463905.2 | K64: 507202.2268 | L64: -91383.52683 | M64: 137143.2762 | N64: 8350948975 | O64: 1.880827821e+10
C65: 2019-01-21 | D65: 27991 | E65: 252095.02 | F65: -12438.52632 | G65: -117963.9306 | H65: 154716936.9 | I65: 1.391548893e+10 | J65: 1467297455 | K65: 267546.2288 | L65: -15451.2088 | M65: -102512.7218 | N65: 238739853.3 | O65: 1.050885814e+10
C66: 2019-01-28 | D66: 37876 | E66: 329524.88 | F66: -2553.526316 | G66: -40534.07063 | H66: 6520496.645 | I66: 1643010882 | J66: 103504816 | K66: 349013.9388 | L66: -19489.05885 | M66: -21045.01179 | N66: 379823414.7 | O66: 442892521
C67: 2019-02-04 | D67: 16134 | E67: 233120.9 | F67: -24295.52632 | G67: -136938.0506 | H67: 590272599 | I67: 1.875202971e+10 | J67: 3326982013 | K67: 169826.1845 | L67: 63294.71552 | M67: -200232.7661 | N67: 4006221012 | O67: 4.009316064e+10
C68: 2019-02-11 | D68: 55466 | E68: 376140.08 | F68: 15036.47368 | G68: 6081.129368 | H68: 226095540.9 | I68: 36980134.4 | J68: 91438741.72 | K68: 493982.7825 | L68: -117842.7025 | M68: 123923.8319 | N68: 1.388690254e+10 | O68: 1.535711611e+10
C69: 2019-02-18 | D69: 26100 | E69: 208166 | F69: -14329.52632 | G69: -161892.9506 | H69: 205335324.4 | I69: 2.620932746e+10 | J69: 2319849296 | K69: 251961.46 | L69: -43795.45999 | M69: -118097.4906 | N69: 1918042315 | O69: 1.39470173e+10
C70: 2019-02-25 | D70: 23787 | E70: 226261.67 | F70: -16642.52632 | G70: -143797.2806 | H70: 276973682.2 | I70: 2.067765792e+10 | J70: 2393150027 | K70: 232898.7576 | L70: -6637.087573 | M70: -137160.1931 | N70: 44050931.46 | O70: 1.881291856e+10
C71: 2019-03-04 | D71: 30895 | E71: 249581.7 | F71: -9534.526316 | G71: -120477.2506 | H71: 90907192.07 | I71: 1.451476792e+10 | J71: 1148693517 | K71: 291479.6866 | L71: -41897.98656 | M71: -78579.26407 | N71: 1755441278 | O71: 6174700742
C72: 2019-03-11 | D72: 31845 | E72: 278010.2 | F72: -8584.526316 | G72: -92048.75063 | H72: 73694092.07 | I72: 8472972493 | J72: 790194922.1 | K72: 299309.1579 | L72: -21298.95794 | M72: -70749.7927 | N72: 453645609.1 | O72: 5005533167
C73: 2019-03-18 | D73: 50618 | E73: 537451.34 | F73: 10188.47368 | G73: 167392.3894 | H73: 103804996 | I73: 2.802021202e+10 | J73: 1705472954 | K73: 454027.7539 | L73: 83423.58614 | M73: 83968.80323 | N73: 6959494724 | O73: 7050759916
C74: 2019-03-25 | D74: 62293 | E74: 448052.27 | F74: 21863.47368 | G74: 77993.31937 | H74: 478011481.5 | I74: 6082957866 | J74: 1705204886 | K74: 550247.8363 | L74: -102195.5663 | M74: 180188.8857 | N74: 1.044393377e+10 | O74: 3.246803452e+10
C75: 2019-04-01 | D75: 61228 | E75: 519618.76 | F75: 20798.47368 | G75: 149559.8094 | H75: 432576507.6 | I75: 2.236813658e+10 | J75: 3110615759 | K75: 541470.5868 | L75: -21851.8268 | M75: 171411.6362 | N75: 477502334.7 | O75: 2.938194902e+10
C76: 2019-04-08 | D76: 32558 | E76: 364510.28 | F76: -7871.526316 | G76: -5548.670632 | H76: 61960926.54 | I76: 30787745.78 | J76: 43676506.89 | K76: 305185.3822 | L76: 59324.89776 | M76: -64873.56839 | N76: 3519443494 | O76: 4208579876
C77: 2019-04-15 | D77: 40694 | E77: 351135.6 | F77: 264.4736842 | G77: -18923.35063 | H77: 69946.32964 | I77: 358093199.1 | J77: -5004728.259 | K77: 372238.6234 | L77: -21103.02341 | M77: 2179.672779 | N77: 445337597.1 | O77: 4750973.424
C78: 2019-04-22 | D78: 46333 | E78: 390547.55 | F78: 5903.473684 | G78: 20488.59937 | H78: 34851001.54 | I78: 419782704.1 | J78: 120953907.2 | K78: 418712.7172 | L78: -28165.16719 | M78: 48653.76655 | N78: 793276642.6 | O78: 2367189000
C79: 2019-04-29 | D79: 28415 | E79: 234129.2 | F79: -12014.52632 | G79: -135929.7506 | H79: 144348842.6 | I79: 1.847689711e+10 | J79: 1633131566 | K79: 271040.6455 | L79: -36911.4455 | M79: -99018.30514 | N79: 1362454809 | O79: 9804624752
C80: 2019-05-06 | D80: 19993 | E80: 224538.89 | F80: -20436.52632 | G80: -145520.0606 | H80: 417651607.9 | I80: 2.117608805e+10 | J80: 2973924549 | K80: 201630.3214 | L80: 22908.56864 | M80: -168428.6293 | N80: 524802516.9 | O80: 2.836820316e+10
C81: 2019-05-13 | D81: 34414 | E81: 248912.92 | F81: -6015.526316 | G81: -121146.0306 | H81: 36186556.86 | I81: 1.467636074e+10 | J81: 728757135.3 | K81: 320481.6968 | L81: -71568.77684 | M81: -49577.25379 | N81: 5122089819 | O81: 2457904093
C82: 2019-05-20 | D82: 52078 | E82: 328096.52 | F82: 11648.47368 | G82: -41962.43063 | H82: 135686939.2 | I82: 1760845585 | J82: -488798268.9 | K82: 466060.4151 | L82: -137963.8951 | M82: 96001.4645 | N82: 1.903403636e+10 | O82: 9216281187
C83: 2019-05-27 | D83: 24507 | E83: 262965.83 | F83: -15922.52632 | G83: -107093.1206 | H83: 253526844.3 | I83: 1.146893649e+10 | J83: 1705193031 | K83: 238832.6727 | L83: 24133.15728 | M83: -131226.2779 | N83: 582409280.2 | O83: 1.722033601e+10
C84: 2019-06-03 | D84: 28516 | E84: 334304.52 | F84: -11913.52632 | G84: -35754.43063 | H84: 141932109.3 | I84: 1278379310 | J84: 425961350.2 | K84: 271873.0419 | L84: 62431.47807 | M84: -98185.90871 | N84: 3897689455 | O84: 9640472668
C85: 2019-06-10 | D85: 17554 | E85: 216060.84 | F85: -22875.52632 | G85: -153998.1106 | H85: 523289704.2 | I85: 2.371541808e+10 | J85: 3522787832 | K85: 181529.1838 | L85: 34531.6562 | M85: -188529.7668 | N85: 1192435280 | O85: 3.554347298e+10
C86: 2019-06-17 | D86: 16662 | E86: 183462.62 | F86: -23767.52632 | G86: -186596.3306 | H86: 564895307.2 | I86: 3.481819061e+10 | J86: 4434933199 | K86: 174177.7223 | L86: 9284.897743 | M86: -195881.2284 | N86: 86209326.09 | O86: 3.836945563e+10
C87: 2019-06-24 | D87: 57162 | E87: 517013.54 | F87: 16732.47368 | G87: 146954.5894 | H87: 279975675.6 | I87: 2.159565134e+10 | J87: 2458913799 | K87: 507960.4493 | L87: 9053.090683 | M87: 137901.4987 | N87: 81958450.91 | O87: 1.901682334e+10
C88: 2019-07-01 | D88: 57297 | E88: 731834.3 | F88: 16867.47368 | G88: 361775.3494 | H88: 284511668.5 | I88: 1.308814034e+11 | J88: 6102236185 | K88: 509073.0584 | L88: 222761.2416 | M88: 139014.1078 | N88: 4.962257076e+10 | O88: 1.932492216e+10
C89: 2019-07-08 | D89: 64112 | E89: 439159.84 | F89: 23682.47368 | G89: 69100.88937 | H89: 560859559.8 | I89: 4774932912 | J89: 1636479994 | K89: 565239.2136 | L89: -126079.3736 | M89: 195180.263 | N89: 1.589600845e+10 | O89: 3.809533505e+10
C90: 2019-07-15 | D90: 37237 | E90: 453649.08 | F90: -3192.526316 | G90: 83590.12937 | H90: 10192224.28 | I90: 6987309728 | J90: -266863687.7 | K90: 343747.5892 | L90: 109901.4908 | M90: -26311.36148 | N90: 1.207833769e+10 | O90: 692287742.9
C91: 2019-07-22 | D91: 55058 | E91: 495969.8 | F91: 14628.47368 | G91: 125910.8494 | H91: 213992242.3 | I91: 1.585354199e+10 | J91: 1841883547 | K91: 490620.2306 | L91: 5349.569392 | M91: 120561.28 | N91: 28617892.68 | O91: 1.453502223e+10
C92: 2019-07-29 | D92: 30791 | E92: 306489.03 | F92: -9638.526316 | G92: -63569.92063 | H92: 92901189.54 | I92: 4041134809 | J92: 612720352.9 | K92: 290622.5655 | L92: 15866.46452 | M92: -79436.38515 | N92: 251744696.3 | O92: 6310139285
C93: 2019-08-05 | D93: 19784 | E93: 226868.96 | F93: -20645.52632 | G93: -143189.9906 | H93: 426237756.9 | I93: 2.050337342e+10 | J93: 2956232720 | K93: 199907.8377 | L93: 26961.12234 | M93: -170151.113 | N93: 726902117.7 | O93: 2.895140124e+10
C94: 2019-08-12 | D94: 32463 | E94: 316845.86 | F94: -7966.526316 | G94: -53213.09063 | H94: 63465541.54 | I94: 2831633015 | J94: 423923486.9 | K94: 304402.4351 | L94: 12443.4249 | M94: -65656.51553 | N94: 154838823.2 | O94: 4310778031
C95: 2019-08-19 | D95: 59364 | E95: 496417.28 | F95: 18934.47368 | G95: 126358.3294 | H95: 358514293.7 | I95: 1.59664274e+10 | J95: 2392528462 | K95: 526108.3398 | L95: -29691.05981 | M95: 156049.3892 | N95: 881559032.7 | O95: 2.435141186e+10
C96: 2019-08-26 | D96: 64632 | E96: 527881.68 | F96: 24202.47368 | G96: 157822.7294 | H96: 585759732.4 | I96: 2.490801391e+10 | J96: 3819700454 | K96: 569524.819 | L96: -41643.13898 | M96: 199465.8683 | N96: 1734151024 | O96: 3.978663263e+10
C97: 2019-09-02 | D97: 58106 | E97: 535766.16 | F97: 17676.47368 | G97: 165707.2094 | H97: 312457721.9 | I97: 2.745887924e+10 | J97: 2929119126 | K97: 515740.4714 | L97: 20025.6886 | M97: 145681.5208 | N97: 401028203.9 | O97: 2.122310549e+10
C98: 2019-09-09 | D98: 60333 | E98: 469314.35 | F98: 19903.47368 | G98: 99255.39937 | H98: 396148264.7 | I98: 9851634304 | J98: 1975527229 | K98: 534094.4006 | L98: -64780.05061 | M98: 164035.45 | N98: 4196454958 | O98: 2.690762885e+10
C99: 2019-09-16 | D99: 58353 | E99: 558254.63 | F99: 17923.47368 | G99: 188195.6794 | H99: 321250908.9 | I99: 3.541761373e+10 | J99: 3373120307 | K99: 517776.134 | L99: 40478.49604 | M99: 147717.1833 | N99: 1638508642 | O99: 2.182036625e+10
C100: 2019-09-23 | D100: 22672 | E100: 197141.28 | F100: -17757.52632 | G100: -172917.6706 | H100: 315329740.9 | I100: 2.990052082e+10 | J100: 3070590087 | K100: 223709.4306 | L100: -26568.15064 | M100: -146349.52 | N100: 705866628.6 | O100: 2.1418182e+10
C101: 2019-09-30 | D101: 64325 | E101: 563313.5 | F101: 23895.47368 | G101: 193254.5494 | H101: 570993662.6 | I101: 3.734732085e+10 | J101: 4617908999 | K101: 566994.6635 | L101: -3681.163489 | M101: 196935.7129 | N101: 13550964.63 | O101: 3.8783675e+10
C102: 2019-10-07 | D102: 32326 | E102: 365825.02 | F102: -8103.526316 | G102: -4233.930632 | H102: 65667138.75 | I102: 17926168.59 | J102: 34309768.29 | K102: 303273.3429 | L102: 62551.67708 | M102: -66785.60772 | N102: 3912712306 | O102: 4460317398
C103: 2019-10-14 | D103: 16138 | E103: 206538.6 | F103: -24291.52632 | G103: -163520.3506 | H103: 590078250.8 | I103: 2.673890507e+10 | J103: 3972158901 | K103: 169859.1507 | L103: 36679.44932 | M103: -200199.8 | N103: 1345382003 | O103: 4.00799599e+10
C104: 2019-10-21 | D104: 34957 | E104: 320916.75 | F104: -5472.526316 | G104: -49142.20063 | H104: 29948544.28 | I104: 2414955883 | J104: 268931986.2 | K104: 324956.8579 | L104: -4040.107852 | M104: -45102.09278 | N104: 16322471.45 | O104: 2034198773
C105: 2019-10-28 | D105: 26159 | E105: 294325.06 | F105: -14270.52632 | G105: -75733.89063 | H105: 203647921.3 | I105: 5735622190 | J105: 1080762479 | K105: 252447.7114 | L105: 41877.34863 | M105: -117611.2393 | N105: 1753712329 | O105: 1.38324036e+10
C106: 2019-11-04 | D106: 42098 | E106: 329951.7 | F106: 1668.473684 | G106: -40107.25063 | H106: 2783804.435 | I106: 1608591553 | J106: -66917892.22 | K106: 383809.7579 | L106: -53858.05795 | M106: 13750.80732 | N106: 2900690406 | O106: 189084701.9
C107: 2019-11-11 | D107: 20582 | E107: 161277.7 | F107: -19847.52632 | G107: -208781.2506 | H107: 393924300.9 | I107: 4.358961062e+10 | J107: 4143791366 | K107: 206484.5936 | L107: -45206.89362 | M107: -163574.357 | N107: 2043663231 | O107: 2.675657027e+10
C108: 2019-11-18 | D108: 45614 | E108: 428140.06 | F108: 5184.473684 | G108: 58081.10937 | H108: 26878767.38 | I108: 3373415265 | J108: 301119983.1 | K108: 412787.0436 | L108: 15353.01641 | M108: 42728.09296 | N108: 235715113 | O108: 1825689928
C109: 2019-11-25 | D109: 42729 | E109: 433279.13 | F109: 2299.473684 | G109: 63220.17937 | H109: 5287579.224 | I109: 3996791079 | J109: 145373138.8 | K109: 389010.1753 | L109: 44268.95475 | M109: 18951.22462 | N109: 1959740354 | O109: 359148914.6
C110: 2019-12-02 | D110: 40053 | E110: 346792.73 | F110: -376.5263158 | G110: -23266.22063 | H110: 141772.0665 | I110: 541317022.5 | J110: 8760344.337 | K110: 366955.7906 | L110: -20163.06062 | M110: -3103.160012 | N110: 406549013.5 | O110: 9629602.061
C111: 2019-12-09 | D111: 51749 | E111: 540063.03 | F111: 11319.47368 | G111: 170004.0794 | H111: 128130484.5 | I111: 2.8901387e+10 | J111: 1924356703 | K111: 463348.9456 | L111: 76714.08443 | M111: 93289.99494 | N111: 5885050749 | O111: 8703023157
C112: 2019-12-16 | D112: 59753 | E112: 588972.06 | F112: 19323.47368 | G112: 218913.1094 | H112: 373396635.2 | I112: 4.792294945e+10 | J112: 4230161708 | K112: 529314.3023 | L112: 59657.7577 | M112: 159255.3517 | N112: 3559048054 | O112: 2.536226704e+10
C113: 2019-12-23 | D113: 34045 | E113: 290698.15 | F113: -6384.526316 | G113: -79360.80063 | H113: 40762176.28 | I113: 6298136677 | J113: 506681120.1 | K113: 317440.5653 | L113: -26742.41533 | M113: -52618.3853 | N113: 715156777.7 | O113: 2768694472
C114: 2019-12-30 | D114: 56384 | E114: 544487.68 | F114: 15954.47368 | G114: 174428.7294 | H114: 254545230.5 | I114: 3.042538163e+10 | J114: 2782918572 | K114: 501548.5243 | L114: 42939.15566 | M114: 131489.5737 | N114: 1843771089 | O114: 1.728950799e+10
C115: 2020-01-06 | D115: 33242 | E115: 206569.82 | F115: -7187.526316 | G115: -163489.1306 | H115: 51660534.54 | I115: 2.672869583e+10 | J115: 1175082429 | K115: 310822.6016 | L115: -104252.7816 | M115: -59236.349 | N115: 1.086864248e+10 | O115: 3508945043
C116: 2020-01-13 | D116: 49060 | E116: 550902.6 | F116: 8630.473684 | G116: 180843.6494 | H116: 74485076.01 | I116: 3.270442552e+10 | J116: 1560766357 | K116: 441187.4208 | L116: 109715.1792 | M116: 71128.47018 | N116: 1.203742055e+10 | O116: 5059259270
C117: 2020-01-20 | D117: 38219 | E117: 321737.09 | F117: -2210.526316 | G117: -48321.86063 | H117: 4886426.593 | I117: 2335002215 | J117: 106816744.6 | K117: 351840.7901 | L117: -30103.70009 | M117: -18218.16054 | N117: 906232759.1 | O117: 331901373.5
C118: 2020-01-27 | D118: 56891 | E118: 568845.92 | F118: 16461.47368 | G118: 198786.9694 | H118: 270980115.9 | I118: 3.951625919e+10 | J118: 3272326465 | K118: 505726.9896 | L118: 63118.93041 | M118: 135668.039 | N118: 3983999376 | O118: 1.840581679e+10
C119: 2020-02-03 | D119: 52906 | E119: 426690.72 | F119: 12476.47368 | G119: 56631.76937 | H119: 155662395.6 | I119: 3207157302 | J119: 706564780.2 | K119: 472884.4176 | L119: -46193.69756 | M119: 102825.4669 | N119: 2133857694 | O119: 1.057307665e+10
C120: 2020-02-10 | D120: 44835 | E120: 430649.15 | F120: 4405.473684 | G120: 60590.19937 | H120: 19408198.38 | I120: 3671172260 | J120: 266928528.8 | K120: 406366.8771 | L120: 24282.27294 | M120: 36307.92643 | N120: 589628779.2 | O120: 1318265521
C121: 2020-02-17 | D121: 45028 | E121: 400768.12 | F121: 4598.473684 | G121: 30709.16937 | H121: 21145960.22 | I121: 943053083.3 | J121: 141215307.2 | K121: 407957.496 | L121: -7189.37598 | M121: 37898.54535 | N121: 51687126.99 | O121: 1436299740
C122: 2020-02-24 | D122: 15988 | E122: 175665.68 | F122: -24441.52632 | G122: -194393.2706 | H122: 597388208.6 | I122: 3.778874367e+10 | J122: 4751268240 | K122: 168622.9184 | L122: 7042.761645 | M122: -201436.0323 | N122: 49600491.59 | O122: 4.05764751e+10
C123: 2020-03-02 | D123: 64717 | E123: 558028.45 | F123: 24287.47368 | G123: 187969.4994 | H123: 589881378 | I123: 3.533253269e+10 | J123: 4565304269 | K123: 570225.3506 | L123: -12196.90062 | M123: 200166.4 | N123: 148764384.8 | O123: 4.006658769e+10
C124: 2020-03-09 | D124: 15196 | E124: 163514.12 | F124: -25233.52632 | G124: -206544.8306 | H124: 636730850.3 | I124: 4.266076706e+10 | J124: 5211854419 | K124: 162095.6117 | L124: 1418.508307 | M124: -207963.3389 | N124: 2012165.818 | O124: 4.324875034e+10
C125: 2020-03-16 | D125: 45093 | E125: 398568.89 | F125: 4663.473684 | G125: 28509.93937 | H125: 21747986.8 | I125: 812816642.8 | J125: 132955352 | K125: 408493.1967 | L125: -9924.306654 | M125: 38434.24602 | N125: 98491862.55 | O125: 1477191267
C126: 2020-03-23 | D126: 51099 | E126: 483830.51 | F126: 10669.47368 | G126: 113771.5594 | H126: 113837668.7 | I126: 1.294396772e+10 | J126: 1213882659 | K126: 457991.9388 | L126: 25838.57116 | M126: 87932.98821 | N126: 667631759.4 | O126: 7732210416
C127: 2020-03-30 | D127: 40839 | E127: 292958.72 | F127: 409.4736842 | G127: -77100.23063 | H127: 167668.6981 | I127: 5944445563 | J127: -31570515.49 | K127: 373433.648 | L127: -80474.92799 | M127: 3374.697357 | N127: 6476214035 | O127: 11388582.25
C128: 2020-04-06 | D128: 29773 | E128: 275083.88 | F128: -10656.52632 | G128: -94975.07063 | H128: 113561553.1 | I128: 9020264041 | J128: 1012104340 | K128: 282232.6688 | L128: -7148.788788 | M128: -87826.28184 | N128: 51105181.13 | O128: 7713455782
C129: 2020-04-13 | D129: 60954 | E129: 599805.08 | F129: 20524.47368 | G129: 229746.1294 | H129: 421254020 | I129: 5.278328396e+10 | J129: 4715418386 | K129: 539212.4024 | L129: 60592.67757 | M129: 169153.4518 | N129: 3671472575 | O129: 2.861289025e+10
C130: 2020-04-20 | D130: 53820 | E130: 524692.4 | F130: 13390.47368 | G130: 154633.4494 | H130: 179304785.5 | I130: 2.391150366e+10 | J130: 2070615134 | K130: 480417.1932 | L130: 44275.20683 | M130: 110358.2425 | N130: 1960293940 | O130: 1.21789417e+10
C131: 2020-04-27 | D131: 19365 | E131: 196012.1 | F131: -21064.52632 | G131: -174046.8506 | H131: 443714268.9 | I131: 3.029230621e+10 | J131: 3666214465 | K131: 196454.6287 | L131: -442.5287078 | M131: -173604.3219 | N131: 195831.6573 | O131: 3.013846059e+10
C132: 2020-05-04 | D132: 39109 | E132: 360134.37 | F132: -1320.526316 | G132: -9924.580632 | H132: 1743789.751 | I132: 98497300.71 | J132: 13105669.9 | K132: 359175.7685 | L132: 958.6014632 | M132: -10883.18209 | N132: 918916.7653 | O132: 118443652.5
C133: 2020-05-11 | D133: 40439 | E133: 312044.72 | F133: 9.473684211 | G133: -58014.23063 | H133: 89.75069252 | I133: 3365650956 | J133: -549608.5007 | K133: 370137.0285 | L133: -58092.30846 | M133: 78.07783089 | N133: 3374716302 | O133: 6096.147677
C134: 2020-05-18 | D134: 35117 | E134: 268076.57 | F134: -5312.526316 | G134: -101982.3806 | H134: 28222935.86 | I134: 1.040040596e+10 | J134: 541784080.9 | K134: 326275.5057 | L134: -58198.93566 | M134: -43783.44497 | N134: 3387116112 | O134: 1916990053
C135: 2020-05-25 | D135: 50624 | E135: 394243.2 | F135: 10194.47368 | G135: 24184.24937 | H135: 103927293.7 | I135: 584877917.5 | J135: 246545693.8 | K135: 454077.2032 | L135: -59834.00316 | M135: 84018.25252 | N135: 3580107934 | O135: 7059066757
C136: 2020-06-01 | D136: 55174 | E136: 474839.8 | F136: 14744.47368 | G136: 104780.8494 | H136: 217399504.2 | I136: 1.097902639e+10 | J136: 1544938476 | K136: 491576.2503 | L136: -16736.45027 | M136: 121517.2996 | N136: 280108767.7 | O136: 1.476645411e+10
C137: 2020-06-08 | D137: 52278 | E137: 474497.36 | F137: 11848.47368 | G137: 104438.4094 | H137: 140386328.6 | I137: 1.090738135e+10 | J137: 1237435745 | K137: 467708.7249 | L137: 6788.635101 | M137: 97649.77427 | N137: 46085566.54 | O137: 9535478414
C138: 2020-06-15 | D138: 30557 | E138: 301178.54 | F138: -9872.526316 | G138: -68880.41063 | H138: 97466775.86 | I138: 4744510969 | J138: 680023666.6 | K138: 288694.0431 | L138: 12484.49694 | M138: -81364.90757 | N138: 155862663.8 | O138: 6620248184
C139: 2020-06-22 | D139: 62145 | E139: 642241.85 | F139: 21715.47368 | G139: 272182.8994 | H139: 471561797.3 | I139: 7.408353071e+10 | J139: 5910580589 | K139: 549028.0871 | L139: 93213.76293 | M139: 178969.1364 | N139: 8688805600 | O139: 3.20299518e+10
C140: 2020-06-29 | D140: 58106 | E140: 475335.92 | F140: 17676.47368 | G140: 105276.9694 | H140: 312457721.9 | I140: 1.108324028e+10 | J140: 1860925579 | K140: 515740.4714 | L140: -40404.5514 | M140: 145681.5208 | N140: 1632527774 | O140: 2.122310549e+10
C141: 2020-07-06 | D141: 55233 | E141: 543230.69 | F141: 14803.47368 | G141: 173171.7394 | H141: 219142833.1 | I141: 2.998845132e+10 | J141: 2563543287 | K141: 492062.5017 | L141: 51168.18835 | M141: 122003.551 | N141: 2618183499 | O141: 1.488486646e+10
C142: 2020-07-13 | D142: 51653 | E142: 343389.04 | F142: 11223.47368 | G142: -26669.91063 | H142: 125966361.5 | I142: 711284133.1 | J142: -299329040.1 | K142: 462557.7569 | L142: -119168.7169 | M142: 92498.80626 | N142: 1.420118308e+10 | O142: 8556029159
C143: 2020-07-20 | D143: 16221 | E143: 195989 | F143: -24208.52632 | G143: -174069.9506 | H143: 586052746.4 | I143: 3.030034771e+10 | J143: 4213976981 | K143: 170543.1992 | L143: 25445.80077 | M143: -199515.7514 | N143: 647488776.9 | O143: 3.980653506e+10
C144: 2020-07-27 | D144: 28538 | E144: 295141.42 | F144: -11891.52632 | G144: -74917.53063 | H144: 141408398.1 | I144: 5612636396 | J144: 890883787 | K144: 272054.356 | L144: 23087.064 | M144: -98004.59463 | N144: 533012524.2 | O144: 9604900569
C145: 2020-08-03 | D145: 33546 | E145: 355268.6 | F145: -6883.526316 | G145: -14790.35063 | H145: 47382934.54 | I145: 218754471.8 | J145: 101809767.8 | K145: 313328.0325 | L145: 41940.56753 | M145: -56730.91816 | N145: 1759011205 | O145: 3218397075
C146: 2020-08-10 | D146: 50539 | E146: 505356.39 | F146: 10109.47368 | G146: 135297.4394 | H146: 102201458.2 | I146: 1.83053971e+10 | J146: 1367785903 | K146: 453376.6715 | L146: 51979.71849 | M146: 83317.72088 | N146: 2701891135 | O146: 6941842612
C147: 2020-08-17 | D147: 14677 | E147: 180772.07 | F147: -25752.52632 | G147: -189286.8806 | H147: 663192611.6 | I147: 3.582952318e+10 | J147: 4874615375 | K147: 157818.2479 | L147: 22953.82214 | M147: -212240.7028 | N147: 526877951 | O147: 4.504611591e+10
C148: 2020-08-24 | D148: 15835 | E148: 146751.85 | F148: -24594.52632 | G148: -223307.1006 | H148: 604890724.7 | I148: 4.986606119e+10 | J148: 5492132363 | K148: 167361.9614 | L148: -20610.11139 | M148: -202696.9892 | N148: 424776691.4 | O148: 4.108606945e+10
C149: 2020-08-31 | D149: 24504 | E149: 198984.32 | F149: -15925.52632 | G149: -171074.6306 | H149: 253622388.4 | I149: 2.926652925e+10 | J149: 2724453532 | K149: 238807.9481 | L149: -39823.62807 | M149: -131251.0026 | N149: 1585921353 | O149: 1.722682567e+10
C150: 2020-09-07 | D150: 21816 | E150: 210783.92 | F150: -18613.52632 | G150: -159275.0306 | H150: 346463361.9 | I150: 2.536853538e+10 | J150: 2964669974 | K150: 216654.6649 | L150: -5870.744857 | M150: -153404.2858 | N150: 34465645.17 | O150: 2.353287489e+10
C151: 2020-09-14 | D151: 28370 | E151: 246604.1 | F151: -12059.52632 | G151: -123454.8506 | H151: 145432175 | I151: 1.524110014e+10 | J151: 1488807020 | K151: 270669.7758 | L151: -24065.6758 | M151: -99389.17483 | N151: 579156751.6 | O151: 9878208074
C152: 2020-09-21 | D152: 46733 | E152: 430873.95 | F152: 6303.473684 | G152: 60814.99937 | H152: 39733780.49 | I152: 3698464148 | J152: 383345748.1 | K152: 422009.3367 | L152: 8864.613288 | M152: 51950.38608 | N152: 78581368.74 | O152: 2698842614
C153: 2020-09-28 | D153: 46568 | E153: 393671.84 | F153: 6138.473684 | G153: 23612.88937 | H153: 37680859.17 | I153: 557568544.3 | J153: 144947100 | K153: 420649.4812 | L153: -26977.64116 | M153: 50590.53053 | N153: 727793122.4 | O153: 2559401779
C154: 2020-10-05 | D154: 42540 | E154: 363945.2 | F154: 2110.473684 | G154: -6113.750632 | H154: 4454099.172 | I154: 37377946.79 | J154: -12902909.82 | K154: 387452.5225 | L154: -23507.32253 | M154: 17393.57189 | N154: 552594212.3 | O154: 302536343.2
C155: 2020-10-12 | D155: 39348 | E155: 275857.52 | F155: -1081.526316 | G155: -94201.43063 | H155: 1169699.172 | I155: 8873909533 | J155: 101881326.2 | K155: 361145.4987 | L155: -85287.9787 | M155: -8913.451928 | N155: 7274039311 | O155: 79449625.27
C156: 2020-10-19 | D156: 34125 | E156: 350641.25 | F156: -6304.526316 | G156: -19417.70063 | H156: 39747052.07 | I156: 377047097.8 | J156: 122419404.6 | K156: 318099.8892 | L156: 32541.36076 | M156: -51959.0614 | N156: 1058940160 | O156: 2699744061
C157: 2020-10-26 | D157: 61572 | E157: 580750.64 | F157: 21142.47368 | G157: 210691.6894 | H157: 447004193.5 | I157: 4.439098797e+10 | J157: 4454543498 | K157: 544305.6796 | L157: 36444.9604 | M157: 174246.729 | N157: 1328235139 | O157: 3.036192256e+10
C158: 2020-11-02 | D158: 54730 | E158: 410123.4 | F158: 14300.47368 | G158: 40064.44937 | H158: 204503547.6 | I158: 1605160103 | J158: 572940603.9 | K158: 487917.0026 | L158: -77793.6026 | M158: 117858.052 | N158: 6051844605 | O158: 1.389052041e+10
C159: 2020-11-09 | D159: 38799 | E159: 332068.73 | F159: -1630.526316 | G159: -37990.22063 | H159: 2658616.066 | I159: 1443256864 | J159: 61944054.48 | K159: 356620.8884 | L159: -24552.1584 | M159: -13438.06223 | N159: 602808482.3 | O159: 180581516.4
C160: 2020-11-16 | D160: 22293 | E160: 208949.09 | F160: -18136.52632 | G160: -161109.8606 | H160: 328933586.8 | I160: 2.595638719e+10 | J160: 2921973227 | K160: 220585.8836 | L160: -11636.79364 | M160: -149473.067 | N160: 135414966.3 | O160: 2.234219776e+10
C161: 2020-11-23 | D161: 37202 | E161: 346499.94 | F161: -3227.526316 | G161: -23559.01063 | H161: 10416926.12 | I161: 555026981.9 | J161: 76037326.79 | K161: 343459.1349 | L161: 3040.805056 | M161: -26599.81569 | N161: 9246495.388 | O161: 707550194.6
C162: 2020-11-30 | D162: 53171 | E162: 474836.29 | F162: 12741.47368 | G162: 104777.3394 | H162: 162345151.6 | I162: 1.097829085e+10 | J162: 1335017712 | K162: 475068.428 | L162: -232.1379916 | M162: 105009.4774 | N162: 53888.04713 | O162: 1.102699034e+10
C163: 2020-12-07 | D163: 33287 | E163: 255380.79 | F163: -7142.526316 | G163: -114678.1606 | H163: 51015682.17 | I163: 1.315108053e+10 | J163: 819091780.2 | K163: 311193.4713 | L163: -55812.68133 | M163: -58865.4793 | N163: 3115055397 | O163: 3465144654
C164: 2020-12-14 | D164: 35445 | E164: 237858.5 | F164: -4984.526316 | G164: -132200.4506 | H164: 24845502.59 | I164: 1.747695915e+10 | J164: 658956625.1 | K164: 328978.7337 | L164: -91120.23367 | M164: -41080.21696 | N164: 8302896985 | O164: 1687584225
C165: 2020-12-21 | D165: 21723 | E165: 224001.23 | F165: -18706.52632 | G165: -146057.7206 | H165: 349934126.8 | I165: 2.133285776e+10 | J165: 2732232595 | K165: 215888.2008 | L165: 8113.029183 | M165: -154170.7498 | N165: 65821242.53 | O165: 2.37686201e+10
C166: 2020-12-28 | D166: 40939 | E166: 439329.89 | F166: 509.4736842 | G166: 69270.93937 | H166: 259563.4349 | I166: 4798463041 | J166: 35291720.69 | K166: 374257.8029 | L166: 65072.08713 | M166: 4198.852239 | N166: 4234376523 | O166: 17630360.13
C167: 2021-01-04 | D167: 45048 | E167: 362182.64 | F167: 4618.473684 | G167: -7876.310632 | H167: 21330299.17 | I167: 62036269.17 | J167: -36376533.38 | K167: 408122.327 | L167: -45939.68696 | M167: 38063.37633 | N167: 2110454838 | O167: 1448820617
C168: 2021-01-11 | D168: 30296 | E168: 299639.04 | F168: -10133.52632 | G168: -70419.91063 | H168: 102688355.6 | I168: 4958963813 | J168: 713602017.5 | K168: 286542.9988 | L168: 13096.04118 | M168: -83515.95181 | N168: 171506294.6 | O168: 6974914207
C169: 2021-01-18 | D169: 53521 | E169: 457210.54 | F169: 13091.47368 | G169: 87151.58937 | H169: 171386683.2 | I169: 7595399529 | J169: 1140942739 | K169: 477952.9701 | L169: -20742.43008 | M169: 107894.0194 | N169: 430248405.5 | O169: 1.164111943e+10
C170: 2021-01-25 | D170: 24680 | E170: 209679.6 | F170: -15749.52632 | G170: -160379.3506 | H170: 248047579.2 | I170: 2.572153611e+10 | J170: 2525898803 | K170: 240258.4607 | L170: -30578.86067 | M170: -129800.49 | N170: 935066719.7 | O170: 1.68481672e+10
C171: 2021-02-01 | D171: 46956 | E171: 426587.12 | F171: 6526.473684 | G171: 56528.16937 | H171: 42594858.75 | I171: 3195433932 | J171: 368929609.8 | K171: 423847.2021 | L171: 2739.917902 | M171: 53788.25147 | N171: 7507150.108 | O171: 2893175996
C172: 2021-02-08 | D172: 16392 | E172: 200150.72 | F172: -24037.52632 | G172: -169908.2306 | H172: 577802671.4 | I172: 2.886880684e+10 | J172: 4084173565 | K172: 171952.5041 | L172: 28198.21592 | M172: -198106.4466 | N172: 795139381.2 | O172: 3.924616417e+10
C173: 2021-02-15 | D173: 53761 | E173: 534924.22 | F173: 13331.47368 | G173: 164865.2694 | H173: 177728190.6 | I173: 2.718055704e+10 | J173: 2197897000 | K173: 479930.9418 | L173: 54993.27821 | M173: 109871.9912 | N173: 3024260648 | O173: 1.207185444e+10
C174: 2021-02-22 | D174: 56104 | E174: 460681.28 | F174: 15674.47368 | G174: 90622.32937 | H174: 245689125.3 | I174: 8212406580 | J174: 1420457317 | K174: 499240.8907 | L174: -38559.61067 | M174: 129181.94 | N174: 1486843575 | O174: 1.668797363e+10
C175: 2021-03-01 | D175: 15241 | E175: 151200.24 | F175: -25188.52632 | G175: -218858.7106 | H175: 634461858 | I175: 4.789913522e+10 | J175: 5512728392 | K175: 162466.4814 | L175: -11266.24139 | M175: -207592.4692 | N175: 126928195 | O175: 4.309463329e+10
C176: 2021-03-08 | D176: 19284 | E176: 212426.64 | F176: -21145.52632 | G176: -157632.3106 | H176: 447133283.2 | I176: 2.484794536e+10 | J176: 3333218173 | K176: 195787.0633 | L176: 16639.57675 | M176: -174271.8874 | N176: 276875514.3 | O176: 3.037069073e+10
C177: 2021-03-15 | D177: 14673 | E177: 181763.54 | F177: -25756.52632 | G177: -188295.4106 | H177: 663398647.9 | I177: 3.545516166e+10 | J177: 4849835699 | K177: 157785.2817 | L177: 23978.25834 | M177: -212273.669 | N177: 574956872.9 | O177: 4.506011054e+10
C178: 2021-03-22 | D178: 57793 | E178: 497895.75 | F178: 17363.47368 | G178: 127836.7994 | H178: 301490218.4 | I178: 1.634224727e+10 | J178: 2219690902 | K178: 513160.8666 | L178: -15265.11662 | M178: 143101.916 | N178: 233023785.4 | O178: 2.047815836e+10
C179: 2021-03-29 | D179: 28259 | E179: 242161.2 | F179: -12170.52632 | G179: -127897.7506 | H179: 148121710.8 | I179: 1.635783462e+10 | J179: 1556582940 | K179: 269754.9639 | L179: -27593.76388 | M179: -100303.9868 | N179: 761415805.1 | O179: 1.006088976e+10
C180: 2021-04-05 | D180: 30304 | E180: 206671.68 | F180: -10125.52632 | G180: -163387.2706 | H180: 102526283.2 | I180: 2.66954002e+10 | J180: 1654382108 | K180: 286608.9312 | L180: -79937.25121 | M180: -83450.01942 | N180: 6389964131 | O180: 6963905742
C181: 2021-04-12 | D181: 62568 | E181: 496735.52 | F181: 22138.47368 | G181: 126676.5694 | H181: 490112017.1 | I181: 1.604695323e+10 | J181: 2804425897 | K181: 552514.2622 | L181: -55778.74222 | M181: 182455.3116 | N181: 3111268083 | O181: 3.328994073e+10
C182: 2021-04-19 | D182: 56139 | E182: 513074.17 | F182: 15709.47368 | G182: 143015.2194 | H182: 246787563.4 | I182: 2.045335297e+10 | J182: 2246693825 | K182: 499529.3449 | L182: 13544.82512 | M182: 129470.3942 | N182: 183462287.6 | O182: 1.676258299e+10
C183: 2021-04-26 | D183: 23120 | E183: 214614.4 | F183: -17309.52632 | G183: -155444.5506 | H183: 299619701.3 | I183: 2.416300832e+10 | J183: 2690671540 | K183: 227401.6445 | L183: -12787.24451 | M183: -142657.3061 | N183: 163513622.2 | O183: 2.035110699e+10
C184: 2021-05-03 | D184: 17006 | E184: 110924.66 | F184: -23423.52632 | G184: -259134.2906 | H184: 548661585.1 | I184: 6.715058058e+10 | J184: 6069838876 | K184: 177012.8151 | L184: -66088.15505 | M184: -193046.1356 | N184: 4367644238 | O184: 3.726681046e+10
C185: 2021-05-10 | D185: 31596 | E185: 329940.56 | F185: -8833.526316 | G185: -40118.39063 | H185: 78031187.17 | I185: 1609485267 | J185: 354386859.4 | K185: 297257.0123 | L185: 32683.54772 | M185: -72801.93835 | N185: 1068214292 | O185: 5300122228
C186: 2021-05-17 | D186: 40607 | E186: 363486.04 | F186: 177.4736842 | G186: -6572.910632 | H186: 31496.90859 | I186: 43203154.17 | J186: -1166518.666 | K186: 371521.6087 | L186: -8035.568664 | M186: 1462.658032 | N186: 64570363.75 | O186: 2139368.519
C187: 2021-05-24 | D187: 61771 | E187: 569494.11 | F187: 21341.47368 | G187: 199435.1594 | H187: 455458499 | I187: 3.977438279e+10 | J187: 4256240205 | K187: 545945.7478 | L187: 23548.36219 | M187: 175886.7972 | N187: 554525361.8 | O187: 3.093616542e+10
C188: 2021-05-31 | D188: 30412 | E188: 279610.6 | F188: -10017.52632 | G188: -90448.35063 | H188: 100350833.5 | I188: 8180904132 | J188: 906068732.7 | K188: 287499.0185 | L188: -7888.418481 | M188: -82559.93215 | N188: 62227146.14 | O188: 6816142397
C189: 2021-06-07 | D189: 36947 | E189: 361463.21 | F189: -3482.526316 | G189: -8595.740632 | H189: 12127989.54 | I189: 73886757.01 | J189: 29934892.95 | K189: 341357.54 | L189: 20105.67 | M189: -28701.41064 | N189: 404237966.3 | O189: 823770972.5
C190: 2021-06-14 | D190: 43194 | E190: 395552 | F190: 2764.473684 | G190: 25493.04937 | H190: 7642314.751 | I190: 649895566.1 | J190: 70474864.11 | K190: 392842.4955 | L190: 2709.504549 | M190: 22783.54482 | N190: 7341414.899 | O190: 519089914.6
C191: 2021-06-21 | D191: 56866 | E191: 492417.48 | F191: 16436.47368 | G191: 122358.5294 | H191: 270157667.2 | I191: 1.497160971e+10 | J191: 2011142748 | K191: 505520.9509 | L191: -13103.47087 | M191: 135462.0002 | N191: 171700948.8 | O191: 1.834995351e+10
C192: 2021-06-28 | D192: 39851 | E192: 367213.96 | F192: -578.5263158 | G192: -2844.990632 | H192: 334692.6981 | I192: 8093971.694 | J192: 1645901.949 | K192: 365290.9978 | L192: 1922.962242 | M192: -4767.952873 | N192: 3697783.782 | O192: 22733374.6
C193: 2021-07-05 | D193: 36617 | E193: 312177.72 | F193: -3812.526316 | G193: -57881.23063 | H193: 14535356.91 | I193: 3350236859 | J193: 220673715 | K193: 338637.8289 | L193: -26460.10889 | M193: -31421.12174 | N193: 700137362.3 | O193: 987286891.7
C194: 2021-07-12 | D194: 46438 | E194: 331878.66 | F194: 6008.473684 | G194: -38180.29063 | H194: 36101756.01 | I194: 1457734593 | J194: -229405271.5 | K194: 419578.0798 | L194: -87699.41981 | M194: 49519.12918 | N194: 7691188235 | O194: 2452144155
C195: 2021-07-19 | D195: 27520 | E195: 266032 | F195: -12909.52632 | G195: -104026.9506 | H195: 166655869.7 | I195: 1.082160646e+10 | J195: 1342938657 | K195: 263664.4593 | L195: 2367.540695 | M195: -106394.4913 | N195: 5605248.944 | O195: 1.131978778e+10
C196: 2021-07-26 | D196: 28852 | E196: 311399.12 | F196: -11577.52632 | G196: -58659.83063 | H196: 134039115.6 | I196: 3440975730 | J196: 679135732.8 | K196: 274642.2023 | L196: 36756.91767 | M196: -95416.7483 | N196: 1351070997 | O196: 9104355857
C197: 2021-08-02 | D197: 60878 | E197: 505367.44 | F197: 20448.47368 | G197: 135308.4894 | H197: 418140076 | I197: 1.83083873e+10 | J197: 2766852084 | K197: 538586.0447 | L197: -33218.60472 | M197: 168527.0941 | N197: 1103475699 | O197: 2.840138144e+10
C198: 2021-08-09 | D198: 32779 | E198: 211928.26 | F198: -7650.526316 | G198: -158130.6906 | H198: 58530552.91 | I198: 2.500531532e+10 | J198: 1209783010 | K198: 307006.7645 | L198: -95078.50453 | M198: -63052.1861 | N198: 9039922024 | O198: 3975578172
C199: 2021-08-16 | D199: 49959 | E199: 401211.77 | F199: 9529.473684 | G199: 31152.81937 | H199: 90810868.7 | I199: 970498154.6 | J199: 296869972.4 | K199: 448596.5732 | L199: -47384.80319 | M199: 78537.62256 | N199: 2245319574 | O199: 6168158158
E200: Totals | F200: =SUM(_xlfn.ANCHORARRAY(F10)) -> 4.511093721e-10 | G200: =SUM(_xlfn.ANCHORARRAY(G10)) -> -3.891182132e-08 | H200: =SUM(_xlfn.ANCHORARRAY(H10)) -> 4.052688611e+10 | I200: =SUM(_xlfn.ANCHORARRAY(I10)) -> 3.2693872e+12 | J200: =SUM(_xlfn.ANCHORARRAY(J10)) -> 3.340043102e+11 | L200: =SUM(_xlfn.ANCHORARRAY(L10)) -> -3.352761269e-08 | M200: =SUM(_xlfn.ANCHORARRAY(M10)) -> -4.045432433e-09 | N200: =SUM(_xlfn.ANCHORARRAY(N10)) -> 5.166743727e+11 | O200: =SUM(_xlfn.ANCHORARRAY(O10)) -> 2.752712827e+12
H201: Σ(Xi - Xbar)^2 | I201: SST = Σ(Yi - Ybar)^2 | J201: Σ((Xi - Xbar)* (Yi - Ybar)) | N201: SSE = Σ(Yi - Yhat)^2 | O201: SSR = Σ(Yhat - Ybar)^2
A202: . | B202: Relationship from Visual? | C202: It looks like as Ad $ increase, Sales $ increase. A positive or direct relationship. | I202: Sum of Squares Total | N202: Sum of Squares Error | O202: Sum of Squares Regression
... 225 more rows

Sheet AdSalesRegTool(an)
A1: SUMMARY OUTPUT
A3: Regression Statistics
A4: Multiple R | B4: 0.9175870471
A5: R Square | B5: 0.841965989
A6: Adjusted R Square | B6: 0.8411253826
A7: Standard Error | B7: 52423.92526
A8: Observations | B8: 190
A10: ANOVA
B11: df | C11: SS | D11: MS | E11: F | F11: Significance F
A12: Regression | B12: 1 | C12: 2.752712827e+12 | D12: 2.752712827e+12 | E12: 1001.617341 | F12: 3.04622001e-77
A13: Residual | B13: 188 | C13: 5.166743727e+11 | D13: 2748267940
A14: Total | B14: 189 | C14: 3.2693872e+12
B16: Coefficients | C16: Standard Error | D16: t Stat | E16: P-value | F16: Lower 95% | G16: Upper 95% | H16: Lower 99.0% | I16: Upper 99.0%
A17: Intercept | B17: 36857.03588 | C17: 11194.14182 | D17: 3.292528938 | E17: 0.001186117858 | F17: 14774.76994 | G17: 58939.30182 | H17: 7727.271132 | I17: 65986.80063
A18: Ad Dollars Spent per Week (X) | B18: 8.241548816 | C18: 0.2604101561 | D18: 31.64833868 | E18: 3.04622001e-77 | F18: 7.727847417 | G18: 8.755250216 | H18: 7.563900926 | I18: 8.919196706
A22: RESIDUAL OUTPUT
A24: Observation | B24: Predicted Weekly Sales (Y) | C24: Residuals
A25: 1 | B25: 560739.3279 | C25: 90595.03206
A26: 2 | B26: 455214.5369 | C26: 72455.88311
A27: 3 | B27: 456689.7741 | C27: 67061.52587
A28: 4 | B28: 181883.5704 | C28: -6416.960401
A29: 5 | B29: 309067.1517 | C29: 68910.81827
A30: 6 | B30: 519342.0282 | C30: 758.2617673
A31: 7 | B31: 535404.8069 | C31: 85451.47312
A32: 8 | B32: 528762.1185 | C32: 64977.34147
A33: 9 | B33: 172282.166 | C33: 9666.79397
A34: 10 | B34: 179122.6515 | C34: 5520.948453
A35: 11 | B35: 359249.9425 | C35: 20123.61752
A36: 12 | B36: 334195.6341 | C36: -95507.69407
A37: 13 | B37: 383933.3812 | C37: 26132.76882
A38: 14 | B38: 453566.2271 | C38: -40025.44713
A39: 15 | B39: 352013.8626 | C39: -11772.26262
A40: 16 | B40: 530278.5635 | C40: 52564.43649
A41: 17 | B41: 416429.8082 | C41: 16756.11184
A42: 18 | B42: 311704.4474 | C42: -40934.06735
A43: 19 | B43: 170427.8175 | C43: -6006.397546
A44: 20 | B44: 507259.9177 | C44: -29182.41767
A45: 21 | B45: 291463.2035 | C45: 102375.8865
A46: 22 | B46: 483161.6289 | C46: -53007.56893
A47: 23 | B47: 157109.4747 | C47: 53683.34534
A48: 24 | B48: 450071.8104 | C48: -106263.1304
A49: 25 | B49: 492227.3326 | C49: 73283.15737
A50: 26 | B50: 324849.7177 | C50: 5401.162283
A51: 27 | B51: 254541.0648 | C51: 41363.96523
A52: 28 | B52: 487340.0942 | C52: 74824.10582
A53: 29 | B53: 332621.4983 | C53: -75553.50825
A54: 30 | B54: 383175.1587 | C54: 891.7913101
A55: 31 | B55: 427086.1308 | C55: 14490.09922
A56: 32 | B56: 237654.1312 | C56: 14567.06876
A57: 33 | B57: 518212.936 | C57: 34662.72396
A58: 34 | B58: 462475.3414 | C58: -16373.5314
A59: 35 | B59: 491089.9989 | C59: -15051.04889
A60: 36 | B60: 328739.7288 | C60: 65149.63124
A61: 37 | B61: 344052.5265 | C61: -15615.74646
A62: 38 | B62: 334772.5425 | C62: 74177.09751
A63: 39 | B63: 302168.9754 | C63: 92607.34463
A64: 40 | B64: 459137.5141 | C64: -3332.55413
A65: 41 | B65: 525045.18 | C65: 1204.219986
A66: 42 | B66: 525819.8856 | C66: 36782.6744
A67: 43 | B67: 224261.6144 | C67: -43512.36441
A68: 44 | B68: 273010.3757 | C68: 2496.604338
A69: 45 | B69: 340030.6506 | C69: 32950.42936
A70: 46 | B70: 208388.3914 | C70: 7699.348606
A71: 47 | B71: 508759.8796 | C71: -38478.81955
A72: 48 | B72: 512452.0934 | C72: -31380.80342
A73: 49 | B73: 544033.7085 | C73: 68432.75151
A74: 50 | B74: 338786.1768 | C74: 32136.42323
A75: 51 | B75: 358986.2129 | C75: 89690.98709
A76: 52 | B76: 309339.1228 | C76: -50056.66284
A77: 53 | B77: 384188.8692 | C77: -29909.18919
A78: 54 | B78: 192028.917 | C78: -6279.036993
A79: 55 | B79: 507202.2268 | C79: -91383.52683
A80: 56 | B80: 267546.2288 | C80: -15451.2088
A81: 57 | B81: 349013.9388 | C81: -19489.05885
A82: 58 | B82: 169826.1845 | C82: 63294.71552
A83: 59 | B83: 493982.7825 | C83: -117842.7025
A84: 60 | B84: 251961.46 | C84: -43795.45999
A85: 61 | B85: 232898.7576 | C85: -6637.087573
A86: 62 | B86: 291479.6866 | C86: -41897.98656
A87: 63 | B87: 299309.1579 | C87: -21298.95794
A88: 64 | B88: 454027.7539 | C88: 83423.58614
A89: 65 | B89: 550247.8363 | C89: -102195.5663
A90: 66 | B90: 541470.5868 | C90: -21851.8268
A91: 67 | B91: 305185.3822 | C91: 59324.89776
A92: 68 | B92: 372238.6234 | C92: -21103.02341
A93: 69 | B93: 418712.7172 | C93: -28165.16719
A94: 70 | B94: 271040.6455 | C94: -36911.4455
A95: 71 | B95: 201630.3214 | C95: 22908.56864
A96: 72 | B96: 320481.6968 | C96: -71568.77684
A97: 73 | B97: 466060.4151 | C97: -137963.8951
A98: 74 | B98: 238832.6727 | C98: 24133.15728
A99: 75 | B99: 271873.0419 | C99: 62431.47807
A100: 76 | B100: 181529.1838 | C100: 34531.6562
A101: 77 | B101: 174177.7223 | C101: 9284.897743
A102: 78 | B102: 507960.4493 | C102: 9053.090683
A103: 79 | B103: 509073.0584 | C103: 222761.2416
A104: 80 | B104: 565239.2136 | C104: -126079.3736
A105: 81 | B105: 343747.5892 | C105: 109901.4908
A106: 82 | B106: 490620.2306 | C106: 5349.569392
A107: 83 | B107: 290622.5655 | C107: 15866.46452
A108: 84 | B108: 199907.8377 | C108: 26961.12234
A109: 85 | B109: 304402.4351 | C109: 12443.4249
A110: 86 | B110: 526108.3398 | C110: -29691.05981
A111: 87 | B111: 569524.819 | C111: -41643.13898
A112: 88 | B112: 515740.4714 | C112: 20025.6886
A113: 89 | B113: 534094.4006 | C113: -64780.05061
A114: 90 | B114: 517776.134 | C114: 40478.49604
A115: 91 | B115: 223709.4306 | C115: -26568.15064
A116: 92 | B116: 566994.6635 | C116: -3681.163489
A117: 93 | B117: 303273.3429 | C117: 62551.67708
A118: 94 | B118: 169859.1507 | C118: 36679.44932
A119: 95 | B119: 324956.8579 | C119: -4040.107852
A120: 96 | B120: 252447.7114 | C120: 41877.34863
A121: 97 | B121: 383809.7579 | C121: -53858.05795
A122: 98 | B122: 206484.5936 | C122: -45206.89362
A123: 99 | B123: 412787.0436 | C123: 15353.01641
A124: 100 | B124: 389010.1753 | C124: 44268.95475
A125: 101 | B125: 366955.7906 | C125: -20163.06062
A126: 102 | B126: 463348.9456 | C126: 76714.08443
A127: 103 | B127: 529314.3023 | C127: 59657.7577
A128: 104 | B128: 317440.5653 | C128: -26742.41533
A129: 105 | B129: 501548.5243 | C129: 42939.15566
A130: 106 | B130: 310822.6016 | C130: -104252.7816
A131: 107 | B131: 441187.4208 | C131: 109715.1792
A132: 108 | B132: 351840.7901 | C132: -30103.70009
A133: 109 | B133: 505726.9896 | C133: 63118.93041
A134: 110 | B134: 472884.4176 | C134: -46193.69756
A135: 111 | B135: 406366.8771 | C135: 24282.27294
A136: 112 | B136: 407957.496 | C136: -7189.37598
A137: 113 | B137: 168622.9184 | C137: 7042.761645
A138: 114 | B138: 570225.3506 | C138: -12196.90062
A139: 115 | B139: 162095.6117 | C139: 1418.508307
A140: 116 | B140: 408493.1967 | C140: -9924.306654
A141: 117 | B141: 457991.9388 | C141: 25838.57116
A142: 118 | B142: 373433.648 | C142: -80474.92799
A143: 119 | B143: 282232.6688 | C143: -7148.788788
A144: 120 | B144: 539212.4024 | C144: 60592.67757
A145: 121 | B145: 480417.1932 | C145: 44275.20683
A146: 122 | B146: 196454.6287 | C146: -442.5287078
A147: 123 | B147: 359175.7685 | C147: 958.6014632
A148: 124 | B148: 370137.0285 | C148: -58092.30846
A149: 125 | B149: 326275.5057 | C149: -58198.93566
A150: 126 | B150: 454077.2032 | C150: -59834.00316
A151: 127 | B151: 491576.2503 | C151: -16736.45027
A152: 128 | B152: 467708.7249 | C152: 6788.635101
A153: 129 | B153: 288694.0431 | C153: 12484.49694
A154: 130 | B154: 549028.0871 | C154: 93213.76293
A155: 131 | B155: 515740.4714 | C155: -40404.5514
A156: 132 | B156: 492062.5017 | C156: 51168.18835
A157: 133 | B157: 462557.7569 | C157: -119168.7169
A158: 134 | B158: 170543.1992 | C158: 25445.80077
A159: 135 | B159: 272054.356 | C159: 23087.064
A160: 136 | B160: 313328.0325 | C160: 41940.56753
A161: 137 | B161: 453376.6715 | C161: 51979.71849
A162: 138 | B162: 157818.2479 | C162: 22953.82214
A163: 139 | B163: 167361.9614 | C163: -20610.11139
A164: 140 | B164: 238807.9481 | C164: -39823.62807
A165: 141 | B165: 216654.6649 | C165: -5870.744857
A166: 142 | B166: 270669.7758 | C166: -24065.6758
A167: 143 | B167: 422009.3367 | C167: 8864.613288
A168: 144 | B168: 420649.4812 | C168: -26977.64116
A169: 145 | B169: 387452.5225 | C169: -23507.32253
A170: 146 | B170: 361145.4987 | C170: -85287.9787
A171: 147 | B171: 318099.8892 | C171: 32541.36076
A172: 148 | B172: 544305.6796 | C172: 36444.9604
A173: 149 | B173: 487917.0026 | C173: -77793.6026
A174: 150 | B174: 356620.8884 | C174: -24552.1584
A175: 151 | B175: 220585.8836 | C175: -11636.79364
A176: 152 | B176: 343459.1349 | C176: 3040.805056
A177: 153 | B177: 475068.428 | C177: -232.1379916
A178: 154 | B178: 311193.4713 | C178: -55812.68133
A179: 155 | B179: 328978.7337 | C179: -91120.23367
A180: 156 | B180: 215888.2008 | C180: 8113.029183
A181: 157 | B181: 374257.8029 | C181: 65072.08713
A182: 158 | B182: 408122.327 | C182: -45939.68696
A183: 159 | B183: 286542.9988 | C183: 13096.04118
A184: 160 | B184: 477952.9701 | C184: -20742.43008
A185: 161 | B185: 240258.4607 | C185: -30578.86067
A186: 162 | B186: 423847.2021 | C186: 2739.917902
A187: 163 | B187: 171952.5041 | C187: 28198.21592
A188: 164 | B188: 479930.9418 | C188: 54993.27821
A189: 165 | B189: 499240.8907 | C189: -38559.61067
A190: 166 | B190: 162466.4814 | C190: -11266.24139
A191: 167 | B191: 195787.0633 | C191: 16639.57675
A192: 168 | B192: 157785.2817 | C192: 23978.25834
A193: 169 | B193: 513160.8666 | C193: -15265.11662
A194: 170 | B194: 269754.9639 | C194: -27593.76388
A195: 171 | B195: 286608.9312 | C195: -79937.25121
A196: 172 | B196: 552514.2622 | C196: -55778.74222
A197: 173 | B197: 499529.3449 | C197: 13544.82512
A198: 174 | B198: 227401.6445 | C198: -12787.24451
A199: 175 | B199: 177012.8151 | C199: -66088.15505
A200: 176 | B200: 297257.0123 | C200: 32683.54772
A201: 177 | B201: 371521.6087 | C201: -8035.568664
A202: 178 | B202: 545945.7478 | C202: 23548.36219
A203: 179 | B203: 287499.0185 | C203: -7888.418481
A204: 180 | B204: 341357.54 | C204: 20105.67
A205: 181 | B205: 392842.4955 | C205: 2709.504549
A206: 182 | B206: 505520.9509 | C206: -13103.47087
A207: 183 | B207: 365290.9978 | C207: 1922.962242
... 7 more rows

Sheet Reg Tool
A1: ith Sample Point | B1: Weekly $ Ad Expense (x) | C1: Weekly $ Sales (y) | E1: SUMMARY OUTPUT
A2: 1 | B2: 63566 | C2: 651334.36
A3: 2 | B3: 50762 | C3: 527670.42 | E3: Regression Statistics
A4: 3 | B4: 50941 | C4: 523751.3 | E4: Multiple R | F4: 0.9175870471
A5: 4 | B5: 17597 | C5: 175466.61 | E5: R Square | F5: 0.841965989
A6: 5 | B6: 33029 | C6: 377977.97 | E6: Adjusted R Square | F6: 0.8411253826
A7: 6 | B7: 58543 | C7: 520100.29 | E7: Standard Error | F7: 52423.92526
A8: 7 | B8: 60492 | C8: 620856.28 | E8: Observations | F8: 190
A9: 8 | B9: 59686 | C9: 593739.46
A10: 9 | B10: 16432 | C10: 181948.96 | E10: ANOVA
A11: 10 | B11: 17262 | C11: 184643.6 | F11: df | G11: SS | H11: MS | I11: F | J11: Significance F
A12: 11 | B12: 39118 | C12: 379373.56 | E12: Regression | F12: 1 | G12: 2.752712827e+12 | H12: 2.752712827e+12 | I12: 1001.617341 | J12: 3.04622001e-77
A13: 12 | B13: 36078 | C13: 238687.94 | E13: Residual | F13: 188 | G13: 5.166743727e+11 | H13: 2748267940
A14: 13 | B14: 42113 | C14: 410066.15 | E14: Total | F14: 189 | G14: 3.2693872e+12
A15: 14 | B15: 50562 | C15: 413540.78
A16: 15 | B16: 38240 | C16: 340241.6 | F16: Coefficients | G16: Standard Error | H16: t Stat | I16: P-value | J16: Lower 95% | K16: Upper 95% | L16: Lower 99.0% | M16: Upper 99.0%
A17: 16 | B17: 59870 | C17: 582843 | E17: Intercept | F17: 36857.03588 | G17: 11194.14182 | H17: 3.292528938 | I17: 0.001186117858 | J17: 14774.76994 | K17: 58939.30182 | L17: 7727.271132 | M17: 65986.80063
A18: 17 | B18: 46056 | C18: 433185.92 | E18: Weekly $ Ad Expense (x) | F18: 8.241548816 | G18: 0.2604101561 | H18: 31.64833868 | I18: 3.04622001e-77 | J18: 7.727847417 | K18: 8.755250216 | L18: 7.563900926 | M18: 8.919196706
A19: 18 | B19: 33349 | C19: 270770.38
A20: 19 | B20: 16207 | C20: 164421.42
A21: 20 | B21: 57077 | C21: 478077.5
A22: 21 | B22: 30893 | C22: 393839.09 | E22: RESIDUAL OUTPUT
A23: 22 | B23: 54153 | C23: 430154.06
A24: 23 | B24: 14591 | C24: 210792.82 | E24: Observation | F24: Predicted Weekly $ Sales (y) | G24: Residuals
A25: 24 | B25: 50138 | C25: 343808.68 | E25: 1 | F25: 560739.3279 | G25: 90595.03206
A26: 25 | B26: 55253 | C26: 565510.49 | E26: 2 | F26: 455214.5369 | G26: 72455.88311
A27: 26 | B27: 34944 | C27: 330250.88 | E27: 3 | F27: 456689.7741 | G27: 67061.52587
A28: 27 | B28: 26413 | C28: 295905.03 | E28: 4 | F28: 181883.5704 | G28: -6416.960401
A29: 28 | B29: 54660 | C29: 562164.2 | E29: 5 | F29: 309067.1517 | G29: 68910.81827
A30: 29 | B30: 35887 | C30: 257067.99 | E30: 6 | F30: 519342.0282 | G30: 758.2617673
A31: 30 | B31: 42021 | C31: 384066.95 | E31: 7 | F31: 535404.8069 | G31: 85451.47312
A32: 31 | B32: 47349 | C32: 441576.23 | E32: 8 | F32: 528762.1185 | G32: 64977.34147
A33: 32 | B33: 24364 | C33: 252221.2 | E33: 9 | F33: 172282.166 | G33: 9666.79397
A34: 33 | B34: 58406 | C34: 552875.66 | E34: 10 | F34: 179122.6515 | G34: 5520.948453
A35: 34 | B35: 51643 | C35: 446101.81 | E35: 11 | F35: 359249.9425 | G35: 20123.61752
A36: 35 | B36: 55115 | C36: 476038.95 | E36: 12 | F36: 334195.6341 | G36: -95507.69407
A37: 36 | B37: 35416 | C37: 393889.36 | E37: 13 | F37: 383933.3812 | G37: 26132.76882
A38: 37 | B38: 37274 | C38: 328436.78 | E38: 14 | F38: 453566.2271 | G38: -40025.44713
A39: 38 | B39: 36148 | C39: 408949.64 | E39: 15 | F39: 352013.8626 | G39: -11772.26262
A40: 39 | B40: 32192 | C40: 394776.32 | E40: 16 | F40: 530278.5635 | G40: 52564.43649
A41: 40 | B41: 51238 | C41: 455804.96 | E41: 17 | F41: 416429.8082 | G41: 16756.11184
A42: 41 | B42: 59235 | C42: 526249.4 | E42: 18 | F42: 311704.4474 | G42: -40934.06735
A43: 42 | B43: 59329 | C43: 562602.56 | E43: 19 | F43: 170427.8175 | G43: -6006.397546
A44: 43 | B44: 22739 | C44: 180749.25 | E44: 20 | F44: 507259.9177 | G44: -29182.41767
A45: 44 | B45: 28654 | C45: 275506.98 | E45: 21 | F45: 291463.2035 | G45: 102375.8865
A46: 45 | B46: 36786 | C46: 372981.08 | E46: 22 | F46: 483161.6289 | G46: -53007.56893
A47: 46 | B47: 20813 | C47: 216087.74 | E47: 23 | F47: 157109.4747 | G47: 53683.34534
A48: 47 | B48: 57259 | C48: 470281.06 | E48: 24 | F48: 450071.8104 | G48: -106263.1304
A49: 48 | B49: 57707 | C49: 481071.29 | E49: 25 | F49: 492227.3326 | G49: 73283.15737
A50: 49 | B50: 61539 | C50: 612466.46 | E50: 26 | F50: 324849.7177 | G50: 5401.162283
A51: 50 | B51: 36635 | C51: 370922.6 | E51: 27 | F51: 254541.0648 | G51: 41363.96523
A52: 51 | B52: 39086 | C52: 448677.2 | E52: 28 | F52: 487340.0942 | G52: 74824.10582
A53: 52 | B53: 33062 | C53: 259282.46 | E53: 29 | F53: 332621.4983 | G53: -75553.50825
A54: 53 | B54: 42144 | C54: 354279.68 | E54: 30 | F54: 383175.1587 | G54: 891.7913101
A55: 54 | B55: 18828 | C55: 185749.88 | E55: 31 | F55: 427086.1308 | G55: 14490.09922
A56: 55 | B56: 57070 | C56: 415818.7 | E56: 32 | F56: 237654.1312 | G56: 14567.06876
A57: 56 | B57: 27991 | C57: 252095.02 | E57: 33 | F57: 518212.936 | G57: 34662.72396
A58: 57 | B58: 37876 | C58: 329524.88 | E58: 34 | F58: 462475.3414 | G58: -16373.5314
A59: 58 | B59: 16134 | C59: 233120.9 | E59: 35 | F59: 491089.9989 | G59: -15051.04889
A60: 59 | B60: 55466 | C60: 376140.08 | E60: 36 | F60: 328739.7288 | G60: 65149.63124
A61: 60 | B61: 26100 | C61: 208166 | E61: 37 | F61: 344052.5265 | G61: -15615.74646
A62: 61 | B62: 23787 | C62: 226261.67 | E62: 38 | F62: 334772.5425 | G62: 74177.09751
A63: 62 | B63: 30895 | C63: 249581.7 | E63: 39 | F63: 302168.9754 | G63: 92607.34463
A64: 63 | B64: 31845 | C64: 278010.2 | E64: 40 | F64: 459137.5141 | G64: -3332.55413
A65: 64 | B65: 50618 | C65: 537451.34 | E65: 41 | F65: 525045.18 | G65: 1204.219986
A66: 65 | B66: 62293 | C66: 448052.27 | E66: 42 | F66: 525819.8856 | G66: 36782.6744
A67: 66 | B67: 61228 | C67: 519618.76 | E67: 43 | F67: 224261.6144 | G67: -43512.36441
A68: 67 | B68: 32558 | C68: 364510.28 | E68: 44 | F68: 273010.3757 | G68: 2496.604338
A69: 68 | B69: 40694 | C69: 351135.6 | E69: 45 | F69: 340030.6506 | G69: 32950.42936
A70: 69 | B70: 46333 | C70: 390547.55 | E70: 46 | F70: 208388.3914 | G70: 7699.348606
A71: 70 | B71: 28415 | C71: 234129.2 | E71: 47 | F71: 508759.8796 | G71: -38478.81955
A72: 71 | B72: 19993 | C72: 224538.89 | E72: 48 | F72: 512452.0934 | G72: -31380.80342
A73: 72 | B73: 34414 | C73: 248912.92 | E73: 49 | F73: 544033.7085 | G73: 68432.75151
A74: 73 | B74: 52078 | C74: 328096.52 | E74: 50 | F74: 338786.1768 | G74: 32136.42323
A75: 74 | B75: 24507 | C75: 262965.83 | E75: 51 | F75: 358986.2129 | G75: 89690.98709
A76: 75 | B76: 28516 | C76: 334304.52 | E76: 52 | F76: 309339.1228 | G76: -50056.66284
A77: 76 | B77: 17554 | C77: 216060.84 | E77: 53 | F77: 384188.8692 | G77: -29909.18919
A78: 77 | B78: 16662 | C78: 183462.62 | E78: 54 | F78: 192028.917 | G78: -6279.036993
A79: 78 | B79: 57162 | C79: 517013.54 | E79: 55 | F79: 507202.2268 | G79: -91383.52683
A80: 79 | B80: 57297 | C80: 731834.3 | E80: 56 | F80: 267546.2288 | G80: -15451.2088
A81: 80 | B81: 64112 | C81: 439159.84 | E81: 57 | F81: 349013.9388 | G81: -19489.05885
A82: 81 | B82: 37237 | C82: 453649.08 | E82: 58 | F82: 169826.1845 | G82: 63294.71552
A83: 82 | B83: 55058 | C83: 495969.8 | E83: 59 | F83: 493982.7825 | G83: -117842.7025
A84: 83 | B84: 30791 | C84: 306489.03 | E84: 60 | F84: 251961.46 | G84: -43795.45999
A85: 84 | B85: 19784 | C85: 226868.96 | E85: 61 | F85: 232898.7576 | G85: -6637.087573
A86: 85 | B86: 32463 | C86: 316845.86 | E86: 62 | F86: 291479.6866 | G86: -41897.98656
A87: 86 | B87: 59364 | C87: 496417.28 | E87: 63 | F87: 299309.1579 | G87: -21298.95794
A88: 87 | B88: 64632 | C88: 527881.68 | E88: 64 | F88: 454027.7539 | G88: 83423.58614
A89: 88 | B89: 58106 | C89: 535766.16 | E89: 65 | F89: 550247.8363 | G89: -102195.5663
A90: 89 | B90: 60333 | C90: 469314.35 | E90: 66 | F90: 541470.5868 | G90: -21851.8268
A91: 90 | B91: 58353 | C91: 558254.63 | E91: 67 | F91: 305185.3822 | G91: 59324.89776
A92: 91 | B92: 22672 | C92: 197141.28 | E92: 68 | F92: 372238.6234 | G92: -21103.02341
A93: 92 | B93: 64325 | C93: 563313.5 | E93: 69 | F93: 418712.7172 | G93: -28165.16719
A94: 93 | B94: 32326 | C94: 365825.02 | E94: 70 | F94: 271040.6455 | G94: -36911.4455
A95: 94 | B95: 16138 | C95: 206538.6 | E95: 71 | F95: 201630.3214 | G95: 22908.56864
A96: 95 | B96: 34957 | C96: 320916.75 | E96: 72 | F96: 320481.6968 | G96: -71568.77684
A97: 96 | B97: 26159 | C97: 294325.06 | E97: 73 | F97: 466060.4151 | G97: -137963.8951
A98: 97 | B98: 42098 | C98: 329951.7 | E98: 74 | F98: 238832.6727 | G98: 24133.15728
A99: 98 | B99: 20582 | C99: 161277.7 | E99: 75 | F99: 271873.0419 | G99: 62431.47807
A100: 99 | B100: 45614 | C100: 428140.06 | E100: 76 | F100: 181529.1838 | G100: 34531.6562
A101: 100 | B101: 42729 | C101: 433279.13 | E101: 77 | F101: 174177.7223 | G101: 9284.897743
A102: 101 | B102: 40053 | C102: 346792.73 | E102: 78 | F102: 507960.4493 | G102: 9053.090683
A103: 102 | B103: 51749 | C103: 540063.03 | E103: 79 | F103: 509073.0584 | G103: 222761.2416
A104: 103 | B104: 59753 | C104: 588972.06 | E104: 80 | F104: 565239.2136 | G104: -126079.3736
A105: 104 | B105: 34045 | C105: 290698.15 | E105: 81 | F105: 343747.5892 | G105: 109901.4908
A106: 105 | B106: 56384 | C106: 544487.68 | E106: 82 | F106: 490620.2306 | G106: 5349.569392
A107: 106 | B107: 33242 | C107: 206569.82 | E107: 83 | F107: 290622.5655 | G107: 15866.46452
A108: 107 | B108: 49060 | C108: 550902.6 | E108: 84 | F108: 199907.8377 | G108: 26961.12234
A109: 108 | B109: 38219 | C109: 321737.09 | E109: 85 | F109: 304402.4351 | G109: 12443.4249
A110: 109 | B110: 56891 | C110: 568845.92 | E110: 86 | F110: 526108.3398 | G110: -29691.05981
A111: 110 | B111: 52906 | C111: 426690.72 | E111: 87 | F111: 569524.819 | G111: -41643.13898
A112: 111 | B112: 44835 | C112: 430649.15 | E112: 88 | F112: 515740.4714 | G112: 20025.6886
A113: 112 | B113: 45028 | C113: 400768.12 | E113: 89 | F113: 534094.4006 | G113: -64780.05061
A114: 113 | B114: 15988 | C114: 175665.68 | E114: 90 | F114: 517776.134 | G114: 40478.49604
A115: 114 | B115: 64717 | C115: 558028.45 | E115: 91 | F115: 223709.4306 | G115: -26568.15064
A116: 115 | B116: 15196 | C116: 163514.12 | E116: 92 | F116: 566994.6635 | G116: -3681.163489
A117: 116 | B117: 45093 | C117: 398568.89 | E117: 93 | F117: 303273.3429 | G117: 62551.67708
A118: 117 | B118: 51099 | C118: 483830.51 | E118: 94 | F118: 169859.1507 | G118: 36679.44932
A119: 118 | B119: 40839 | C119: 292958.72 | E119: 95 | F119: 324956.8579 | G119: -4040.107852
A120: 119 | B120: 29773 | C120: 275083.88 | E120: 96 | F120: 252447.7114 | G120: 41877.34863
A121: 120 | B121: 60954 | C121: 599805.08 | E121: 97 | F121: 383809.7579 | G121: -53858.05795
A122: 121 | B122: 53820 | C122: 524692.4 | E122: 98 | F122: 206484.5936 | G122: -45206.89362
A123: 122 | B123: 19365 | C123: 196012.1 | E123: 99 | F123: 412787.0436 | G123: 15353.01641
A124: 123 | B124: 39109 | C124: 360134.37 | E124: 100 | F124: 389010.1753 | G124: 44268.95475
A125: 124 | B125: 40439 | C125: 312044.72 | E125: 101 | F125: 366955.7906 | G125: -20163.06062
A126: 125 | B126: 35117 | C126: 268076.57 | E126: 102 | F126: 463348.9456 | G126: 76714.08443
A127: 126 | B127: 50624 | C127: 394243.2 | E127: 103 | F127: 529314.3023 | G127: 59657.7577
A128: 127 | B128: 55174 | C128: 474839.8 | E128: 104 | F128: 317440.5653 | G128: -26742.41533
A129: 128 | B129: 52278 | C129: 474497.36 | E129: 105 | F129: 501548.5243 | G129: 42939.15566
A130: 129 | B130: 30557 | C130: 301178.54 | E130: 106 | F130: 310822.6016 | G130: -104252.7816
A131: 130 | B131: 62145 | C131: 642241.85 | E131: 107 | F131: 441187.4208 | G131: 109715.1792
A132: 131 | B132: 58106 | C132: 475335.92 | E132: 108 | F132: 351840.7901 | G132: -30103.70009
A133: 132 | B133: 55233 | C133: 543230.69 | E133: 109 | F133: 505726.9896 | G133: 63118.93041
A134: 133 | B134: 51653 | C134: 343389.04 | E134: 110 | F134: 472884.4176 | G134: -46193.69756
A135: 134 | B135: 16221 | C135: 195989 | E135: 111 | F135: 406366.8771 | G135: 24282.27294
A136: 135 | B136: 28538 | C136: 295141.42 | E136: 112 | F136: 407957.496 | G136: -7189.37598
A137: 136 | B137: 33546 | C137: 355268.6 | E137: 113 | F137: 168622.9184 | G137: 7042.761645
A138: 137 | B138: 50539 | C138: 505356.39 | E138: 114 | F138: 570225.3506 | G138: -12196.90062
A139: 138 | B139: 14677 | C139: 180772.07 | E139: 115 | F139: 162095.6117 | G139: 1418.508307
A140: 139 | B140: 15835 | C140: 146751.85 | E140: 116 | F140: 408493.1967 | G140: -9924.306654
A141: 140 | B141: 24504 | C141: 198984.32 | E141: 117 | F141: 457991.9388 | G141: 25838.57116
A142: 141 | B142: 21816 | C142: 210783.92 | E142: 118 | F142: 373433.648 | G142: -80474.92799
A143: 142 | B143: 28370 | C143: 246604.1 | E143: 119 | F143: 282232.6688 | G143: -7148.788788
A144: 143 | B144: 46733 | C144: 430873.95 | E144: 120 | F144: 539212.4024 | G144: 60592.67757
A145: 144 | B145: 46568 | C145: 393671.84 | E145: 121 | F145: 480417.1932 | G145: 44275.20683
A146: 145 | B146: 42540 | C146: 363945.2 | E146: 122 | F146: 196454.6287 | G146: -442.5287078
A147: 146 | B147: 39348 | C147: 275857.52 | E147: 123 | F147: 359175.7685 | G147: 958.6014632
A148: 147 | B148: 34125 | C148: 350641.25 | E148: 124 | F148: 370137.0285 | G148: -58092.30846
A149: 148 | B149: 61572 | C149: 580750.64 | E149: 125 | F149: 326275.5057 | G149: -58198.93566
A150: 149 | B150: 54730 | C150: 410123.4 | E150: 126 | F150: 454077.2032 | G150: -59834.00316
A151: 150 | B151: 38799 | C151: 332068.73 | E151: 127 | F151: 491576.2503 | G151: -16736.45027
A152: 151 | B152: 22293 | C152: 208949.09 | E152: 128 | F152: 467708.7249 | G152: 6788.635101
A153: 152 | B153: 37202 | C153: 346499.94 | E153: 129 | F153: 288694.0431 | G153: 12484.49694
A154: 153 | B154: 53171 | C154: 474836.29 | E154: 130 | F154: 549028.0871 | G154: 93213.76293
A155: 154 | B155: 33287 | C155: 255380.79 | E155: 131 | F155: 515740.4714 | G155: -40404.5514
A156: 155 | B156: 35445 | C156: 237858.5 | E156: 132 | F156: 492062.5017 | G156: 51168.18835
A157: 156 | B157: 21723 | C157: 224001.23 | E157: 133 | F157: 462557.7569 | G157: -119168.7169
A158: 157 | B158: 40939 | C158: 439329.89 | E158: 134 | F158: 170543.1992 | G158: 25445.80077
A159: 158 | B159: 45048 | C159: 362182.64 | E159: 135 | F159: 272054.356 | G159: 23087.064
A160: 159 | B160: 30296 | C160: 299639.04 | E160: 136 | F160: 313328.0325 | G160: 41940.56753
A161: 160 | B161: 53521 | C161: 457210.54 | E161: 137 | F161: 453376.6715 | G161: 51979.71849
A162: 161 | B162: 24680 | C162: 209679.6 | E162: 138 | F162: 157818.2479 | G162: 22953.82214
A163: 162 | B163: 46956 | C163: 426587.12 | E163: 139 | F163: 167361.9614 | G163: -20610.11139
A164: 163 | B164: 16392 | C164: 200150.72 | E164: 140 | F164: 238807.9481 | G164: -39823.62807
A165: 164 | B165: 53761 | C165: 534924.22 | E165: 141 | F165: 216654.6649 | G165: -5870.744857
A166: 165 | B166: 56104 | C166: 460681.28 | E166: 142 | F166: 270669.7758 | G166: -24065.6758
A167: 166 | B167: 15241 | C167: 151200.24 | E167: 143 | F167: 422009.3367 | G167: 8864.613288
A168: 167 | B168: 19284 | C168: 212426.64 | E168: 144 | F168: 420649.4812 | G168: -26977.64116
A169: 168 | B169: 14673 | C169: 181763.54 | E169: 145 | F169: 387452.5225 | G169: -23507.32253
A170: 169 | B170: 57793 | C170: 497895.75 | E170: 146 | F170: 361145.4987 | G170: -85287.9787
A171: 170 | B171: 28259 | C171: 242161.2 | E171: 147 | F171: 318099.8892 | G171: 32541.36076
A172: 171 | B172: 30304 | C172: 206671.68 | E172: 148 | F172: 544305.6796 | G172: 36444.9604
A173: 172 | B173: 62568 | C173: 496735.52 | E173: 149 | F173: 487917.0026 | G173: -77793.6026
A174: 173 | B174: 56139 | C174: 513074.17 | E174: 150 | F174: 356620.8884 | G174: -24552.1584
A175: 174 | B175: 23120 | C175: 214614.4 | E175: 151 | F175: 220585.8836 | G175: -11636.79364
A176: 175 | B176: 17006 | C176: 110924.66 | E176: 152 | F176: 343459.1349 | G176: 3040.805056
A177: 176 | B177: 31596 | C177: 329940.56 | E177: 153 | F177: 475068.428 | G177: -232.1379916
A178: 177 | B178: 40607 | C178: 363486.04 | E178: 154 | F178: 311193.4713 | G178: -55812.68133
A179: 178 | B179: 61771 | C179: 569494.11 | E179: 155 | F179: 328978.7337 | G179: -91120.23367
A180: 179 | B180: 30412 | C180: 279610.6 | E180: 156 | F180: 215888.2008 | G180: 8113.029183
A181: 180 | B181: 36947 | C181: 361463.21 | E181: 157 | F181: 374257.8029 | G181: 65072.08713
A182: 181 | B182: 43194 | C182: 395552 | E182: 158 | F182: 408122.327 | G182: -45939.68696
A183: 182 | B183: 56866 | C183: 492417.48 | E183: 159 | F183: 286542.9988 | G183: 13096.04118
A184: 183 | B184: 39851 | C184: 367213.96 | E184: 160 | F184: 477952.9701 | G184: -20742.43008
A185: 184 | B185: 36617 | C185: 312177.72 | E185: 161 | F185: 240258.4607 | G185: -30578.86067
A186: 185 | B186: 46438 | C186: 331878.66 | E186: 162 | F186: 423847.2021 | G186: 2739.917902
A187: 186 | B187: 27520 | C187: 266032 | E187: 163 | F187: 171952.5041 | G187: 28198.21592
A188: 187 | B188: 28852 | C188: 311399.12 | E188: 164 | F188: 479930.9418 | G188: 54993.27821
A189: 188 | B189: 60878 | C189: 505367.44 | E189: 165 | F189: 499240.8907 | G189: -38559.61067
A190: 189 | B190: 32779 | C190: 211928.26 | E190: 166 | F190: 162466.4814 | G190: -11266.24139
A191: 190 | B191: 49959 | C191: 401211.77 | E191: 167 | F191: 195787.0633 | G191: 16639.57675
E192: 168 | F192: 157785.2817 | G192: 23978.25834
E193: 169 | F193: 513160.8666 | G193: -15265.11662
E194: 170 | F194: 269754.9639 | G194: -27593.76388
E195: 171 | F195: 286608.9312 | G195: -79937.25121
E196: 172 | F196: 552514.2622 | G196: -55778.74222
E197: 173 | F197: 499529.3449 | G197: 13544.82512
E198: 174 | F198: 227401.6445 | G198: -12787.24451
E199: 175 | F199: 177012.8151 | G199: -66088.15505
E200: 176 | F200: 297257.0123 | G200: 32683.54772
... 14 more rows

Sheet xWeight-YCost
D2: Particular X = Xi | E2: Particular Y = Yi
B3: BMX Race Bike: Year Manufacturer and Model | D3: BMX Race Bike Weight (lbs.) =x | E3: Price ($) = y
B4: 2015 SE Ripper | D4: 22.4 | E4: 299
B5: 2014 Redline MX | D5: 21 | E5: 462
B6: 2015 SE PK Ripper Elite | D6: 21 | E6: 549
B7: 2015 Grenade Launch Pro X | D7: 26 | E7: 180
B8: 2015 SE PK Ripper Elite XL | D8: 21.1 | E8: 549
B9: 2015 Grenade M1 | D9: 26 | E9: 240
B10: 2015 Framed Team | D10: 26.4 | E10: 180
B11: 2014 Redline MX | D11: 21 | E11: 431
B12: 2014 Framed Team | D12: 25.2 | E12: 360
B13: 2014 Grenade MX | D13: 26 | E13: 230
B14: 2014 Grenade Stealth Deep Sea Blue | D14: 25 | E14: 270
B15: 2014 Grenade Flare X | D15: 26.8 | E15: 150
B16: 2014 Grenade Launch Blue | D16: 25.2 | E16: 170
B17: 2014 Grenade Launch X | D17: 27 | E17: 160
B18: 2014 Framed Verdict Blank | D18: 25.4 | E18: 159
B19: 2014 SE PK Ripper Elite | D19: 20.7 | E19: 500
B20: 2013 Redline Proline Pro | D20: 21.9 | E20: 560
B21: 2012 Redline Proline Pro XL | D21: 22.5 | E21: 560
B22: 2013 Redline Proline Expert XL | D22: 20.1 | E22: 499
B23: 2013 Redline MX | D23: 23 | E23: 379

Sheet WeightCostRegTool(an)
A1: SUMMARY OUTPUT
A3: Regression Statistics
A4: Multiple R | B4: 0.8975435243
A5: R Square | B5: 0.805584378
A6: Adjusted R Square | B6: 0.7947835101
A7: Standard Error | B7: 71.23318937
A8: Observations | B8: 20
A10: ANOVA
B11: df | C11: SS | D11: MS | E11: F | F11: Significance F
A12: Regression | B12: 1 | C12: 378457.5392 | D12: 378457.5392 | E12: 74.58515245 | F12: 8.103895654e-08
A13: Residual | B13: 18 | C13: 91335.01081 | D13: 5074.167267
A14: Total | B14: 19 | C14: 469792.55
B16: Coefficients | C16: Standard Error | D16: t Stat | E16: P-value | F16: Lower 95% | G16: Upper 95% | H16: Lower 99.0% | I16: Upper 99.0%
A17: Intercept | B17: 1732.446778 | C17: 161.5160612 | D17: 10.72615791 | E17: 3.004720823e-09 | F17: 1393.114125 | G17: 2071.779431 | H17: 1267.532411 | I17: 2197.361146
A18: BMX Race Bike Weight (lbs.) =x | B18: -58.60657709 | C18: 6.786098613 | D18: -8.636269591 | E18: 8.103895654e-08 | F18: -72.86364123 | G18: -44.34951295 | H18: -78.13995799 | I18: -39.07319619
A22: RESIDUAL OUTPUT
A24: Observation | B24: Predicted Price ($) = y | C24: Residuals
A25: 1 | B25: 419.6594516 | C25: -120.6594516
A26: 2 | B26: 501.7086595 | C26: -39.70865949
A27: 3 | B27: 501.7086595 | C27: 47.29134051
A28: 4 | B28: 208.675774 | C28: -28.67577404
A29: 5 | B29: 495.8480018 | C29: 53.15199822
A30: 6 | B30: 208.675774 | C30: 31.32422596
A31: 7 | B31: 185.2331432 | C31: -5.233143199
A32: 8 | B32: 501.7086595 | C32: -70.70865949
A33: 9 | B33: 255.5610357 | C33: 104.4389643
A34: 10 | B34: 208.675774 | C34: 21.32422596
A35: 11 | B35: 267.2823511 | C35: 2.717648874
A36: 12 | B36: 161.7905124 | C36: -11.79051236
A37: 13 | B37: 255.5610357 | C37: -85.56103571
A38: 14 | B38: 150.0691969 | C38: 9.930803055
A39: 15 | B39: 243.8397203 | C39: -84.83972029
A40: 16 | B40: 519.2906326 | C40: -19.29063261
A41: 17 | B41: 448.9627401 | C41: 111.0372599
A42: 18 | B42: 413.7987939 | C42: 146.2012061
A43: 19 | B43: 554.4545789 | C43: -55.45457887
A44: 20 | B44: 384.4955053 | C44: -5.495505307

Sheet xWeight-YCostLongHand
E2: =_xlfn.IFNA(_xlfn.FORMULATEXT(E5:O6),"") -> =AVERAGE(D10:D29) | F2: =AVERAGE(E10:E29) | H2: =MIN(D10:D29) | I2: =$F$5 | K2: =$E$5 | L2: =MIN(E10:E29)
E3: =SQRT(H30/$C$34-1) | F3: =SQRT(I30/$C$34-1) | H3: =MAX(D10:D29) | I3: =$F$5 | K3: =$E$5 | L3: =MAX(E10:E29) | N3: =E5:F5
E4: X | F4: Y | H4: X Min Max | I4: Ybar | K4: Xbar | L4: Y Min Max | N4: XY Mean Plot
D5: Xbar | E5: =AVERAGE(D10:D29) -> 23.685 | F5: =AVERAGE(E10:E29) -> 344.35 | H5: =MIN(D10:D29) -> 20.1 | I5: =$F$5 -> 344.35 | K5: =$E$5 -> 23.685 | L5: =MIN(E10:E29) -> 150 | N5: Xbar | O5: Ybar
D6: Sample sx and sy | E6: =SQRT(H30/$C$34-1) -> 2.123505357 | F6: =SQRT(I30/$C$34-1) -> 153.2599997 | H6: =MAX(D10:D29) -> 27 | I6: =$F$5 -> 344.35 | K6: =$E$5 -> 23.685 | L6: =MAX(E10:E29) -> 560 | N6: =E5:F5 -> 23.685 | O6: 344.35
D8: Particular X = Xi | E8: Particular Y = Yi | F8: X Deviations | G8: Y Deviations | H8: (X Deviations)^2 | I8: (Y Deviations)^2 | J8: (X Deviations)* (Y Deviations) | K8: Estimated y value based on known x value | L8: Residual = How far is Yi from Predicted Yhat? | M8: Amount that Estimated Simple Linear Equation Explains Over Ybar Line | N8: Residual^2 | O8: Regression^2
B9: BMX Race Bike: Year Manufacturer and Model | D9: BMX Race Bike Weight (lbs.) =x | E9: Price ($) = y | F9: Xi - Xbar | G9: Yi - Ybar | H9: (Xi - Xbar)^2 | I9: (Yi - Ybar)^2 | J9: (Xi - Xbar)* (Yi - Ybar) | K9: Yhat = b1 * x + b0 | L9: Yi - Yhat | M9: Yhat - Ybar | N9: ="("&L9:M9&")^2" -> (Yi - Yhat)^2 | O9: (Yhat - Ybar)^2
B10: 2015 SE Ripper | D10: 22.4 | E10: 299 | F10: =D10:D29-E5 -> -1.285 | G10: =E10:E29-F5 -> -45.35 | H10: =_xlfn.ANCHORARRAY(F10)^2 -> 1.651225 | I10: =_xlfn.ANCHORARRAY(G10)^2 -> 2056.6225 | J10: =_xlfn.ANCHORARRAY(F10)*_xlfn.ANCHORARRAY(G10) -> 58.27475 | K10: =C38*D10:D29+C39 -> 419.6594516 | L10: =E10:E29-_xlfn.ANCHORARRAY(K10) -> -120.6594516 | M10: =_xlfn.ANCHORARRAY(K10)-F5 -> 75.30945156 | N10: =_xlfn.ANCHORARRAY(L10)^2 -> 14558.70325 | O10: =_xlfn.ANCHORARRAY(M10)^2 -> 5671.513494
B11: 2014 Redline MX | D11: 21 | E11: 462 | F11: -2.685 | G11: 117.65 | H11: 7.209225 | I11: 13841.5225 | J11: -315.89025 | K11: 501.7086595 | L11: -39.70865949 | M11: 157.3586595 | N11: 1576.777638 | O11: 24761.74772
B12: 2015 SE PK Ripper Elite | D12: 21 | E12: 549 | F12: -2.685 | G12: 204.65 | H12: 7.209225 | I12: 41881.6225 | J12: -549.48525 | K12: 501.7086595 | L12: 47.29134051 | M12: 157.3586595 | N12: 2236.470887 | O12: 24761.74772
B13: 2015 Grenade Launch Pro X | D13: 26 | E13: 180 | F13: 2.315 | G13: -164.35 | H13: 5.359225 | I13: 27010.9225 | J13: -380.47025 | K13: 208.675774 | L13: -28.67577404 | M13: -135.674226 | N13: 822.3000165 | O13: 18407.49559
B14: 2015 SE PK Ripper Elite XL | D14: 21.1 | E14: 549 | F14: -2.585 | G14: 204.65 | H14: 6.682225 | I14: 41881.6225 | J14: -529.02025 | K14: 495.8480018 | L14: 53.15199822 | M14: 151.4980018 | N14: 2825.134915 | O14: 22951.64454
B15: 2015 Grenade M1 | D15: 26 | E15: 240 | F15: 2.315 | G15: -104.35 | H15: 5.359225 | I15: 10888.9225 | J15: -241.57025 | K15: 208.675774 | L15: 31.32422596 | M15: -135.674226 | N15: 981.2071323 | O15: 18407.49559
B16: 2015 Framed Team | D16: 26.4 | E16: 180 | F16: 2.715 | G16: -164.35 | H16: 7.371225 | I16: 27010.9225 | J16: -446.21025 | K16: 185.2331432 | L16: -5.233143199 | M16: -159.1168568 | N16: 27.38578775 | O16: 25318.17412
B17: 2014 Redline MX | D17: 21 | E17: 431 | F17: -2.685 | G17: 86.65 | H17: 7.209225 | I17: 7508.2225 | J17: -232.65525 | K17: 501.7086595 | L17: -70.70865949 | M17: 157.3586595 | N17: 4999.714527 | O17: 24761.74772
B18: 2014 Framed Team | D18: 25.2 | E18: 360 | F18: 1.515 | G18: 15.65 | H18: 2.295225 | I18: 244.9225 | J18: 23.70975 | K18: 255.5610357 | L18: 104.4389643 | M18: -88.78896429 | N18: 10907.49726 | O18: 7883.48018
B19: 2014 Grenade MX | D19: 26 | E19: 230 | F19: 2.315 | G19: -114.35 | H19: 5.359225 | I19: 13075.9225 | J19: -264.72025 | K19: 208.675774 | L19: 21.32422596 | M19: -135.674226 | N19: 454.722613 | O19: 18407.49559
B20: 2014 Grenade Stealth Deep Sea Blue | D20: 25 | E20: 270 | F20: 1.315 | G20: -74.35 | H20: 1.729225 | I20: 5527.9225 | J20: -97.77025 | K20: 267.2823511 | L20: 2.717648874 | M20: -77.06764887 | N20: 7.385615402 | O20: 5939.422503
B21: 2014 Grenade Flare X | D21: 26.8 | E21: 150 | F21: 3.115 | G21: -194.35 | H21: 9.703225 | I21: 37771.9225 | J21: -605.40025 | K21: 161.7905124 | L21: -11.79051236 | M21: -182.5594876 | N21: 139.0161818 | O21: 33327.96653
B22: 2014 Grenade Launch Blue | D22: 25.2 | E22: 170 | F22: 1.515 | G22: -174.35 | H22: 2.295225 | I22: 30397.9225 | J22: -264.14025 | K22: 255.5610357 | L22: -85.56103571 | M22: -88.78896429 | N22: 7320.690831 | O22: 7883.48018
B23: 2014 Grenade Launch X | D23: 27 | E23: 160 | F23: 3.315 | G23: -184.35 | H23: 10.989225 | I23: 33984.9225 | J23: -611.12025 | K23: 150.0691969 | L23: 9.930803055 | M23: -194.2808031 | N23: 98.62084931 | O23: 37745.03044
B24: 2014 Framed Verdict Blank | D24: 25.4 | E24: 159 | F24: 1.715 | G24: -185.35 | H24: 2.941225 | I24: 34354.6225 | J24: -317.87525 | K24: 243.8397203 | L24: -84.83972029 | M24: -100.5102797 | N24: 7197.778139 | O24: 10102.31633
B25: 2014 SE PK Ripper Elite | D25: 20.7 | E25: 500 | F25: -2.985 | G25: 155.65 | H25: 8.910225 | I25: 24226.9225 | J25: -464.61525 | K25: 519.2906326 | L25: -19.29063261 | M25: 174.9406326 | N25: 372.1285067 | O25: 30604.22494
B26: 2013 Redline Proline Pro | D26: 21.9 | E26: 560 | F26: -1.785 | G26: 215.65 | H26: 3.186225 | I26: 46504.9225 | J26: -384.93525 | K26: 448.9627401 | L26: 111.0372599 | M26: 104.6127401 | N26: 12329.27308 | O26: 10943.82539
B27: 2012 Redline Proline Pro XL | D27: 22.5 | E27: 560 | F27: -1.185 | G27: 215.65 | H27: 1.404225 | I27: 46504.9225 | J27: -255.54525 | K27: 413.7987939 | L27: 146.2012061 | M27: 69.44879385 | N27: 21374.79268 | O27: 4823.134968
B28: 2013 Redline Proline Expert XL | D28: 20.1 | E28: 499 | F28: -3.585 | G28: 154.65 | H28: 12.852225 | I28: 23916.6225 | J28: -554.42025 | K28: 554.4545789 | L28: -55.45457887 | M28: 210.1045789 | N28: 3075.210318 | O28: 44143.93406
B29: 2013 Redline MX | D29: 23 | E29: 379 | F29: -0.685 | G29: 34.65 | H29: 0.469225 | I29: 1200.6225 | J29: -23.73525 | K29: 384.4955053 | L29: -5.495505307 | M29: 40.14550531 | N29: 30.20057858 | O29: 1611.661596
E30: Totals | F30: =SUM(_xlfn.ANCHORARRAY(F10)) -> 2.131628207e-14 | G30: =SUM(_xlfn.ANCHORARRAY(G10)) -> -4.547473509e-13 | H30: =SUM(_xlfn.ANCHORARRAY(H10)) -> 110.1855 | I30: =SUM(_xlfn.ANCHORARRAY(I10)) -> 469792.55 | J30: =SUM(_xlfn.ANCHORARRAY(J10)) -> -6457.595 | L30: =SUM(_xlfn.ANCHORARRAY(L10)) -> -2.955857781e-12 | M30: =SUM(_xlfn.ANCHORARRAY(M10)) -> 2.50111043e-12 | N30: =SUM(_xlfn.ANCHORARRAY(N10)) -> 91335.01081 | O30: =SUM(_xlfn.ANCHORARRAY(O10)) -> 378457.5392
H31: Σ(Xi - Xbar)^2 | I31: SST = Σ(Yi - Ybar)^2 | J31: Σ((Xi - Xbar)* (Yi - Ybar)) | N31: SSE = Σ(Yi - Yhat)^2 | O31: SSR = Σ(Yhat - Ybar)^2
A32: . | B32: Relationship from Visual? | C32: It looks like as Bike Weight increases, Price decreases | I32: Sum of Squares Total | N32: Sum of Squares Error | O32: Sum of Squares Regression
D33: Check:
B34: Sample size = n | C34: =ROWS(D10:D29) -> 20 | E34: =_xlfn.IFNA(_xlfn.FORMULATEXT(C34),"") -> =ROWS(D10:D29)
B35: Sample Covariance = sxy | C35: =J30/(C34-1) -> -339.8734211 | D35: =_xlfn.COVARIANCE.S(E10:E29,D10:D29) -> -339.8734211 | E35: =J30/(C34-1) | F35: =COVARIANCE.S(E10:E29,D10:D29)
B36: Coefficient of Correlation = rxy | C36: =C35/PRODUCT(E6:F6) -> -1.04432343 | D36: =PEARSON(E10:E29,D10:D29) -> -0.8975435243 | E36: =C35/PRODUCT(E6:F6) | F36: =PEARSON(E10:E29,D10:D29)
A37: . | B37: Type of relationship? | C37: Strong Negative (indirect) relationship. Numerically confirms the visual X-Y Scatter Chart.
B38: Slope = b1 | C38: =J30/H30 -> -58.60657709 | D38: =SLOPE(E10:E29,D10:D29) -> -58.60657709 | E38: =_xlfn.IFNA(_xlfn.FORMULATEXT(C38),"") -> =J30/H30 | F38: =_xlfn.IFNA(_xlfn.FORMULATEXT(D38),"") -> =SLOPE(E10:E29,D10:D29)
B39: Intercept = b0 | C39: =F5-C38*E5 -> 1732.446778 | D39: =INTERCEPT(E10:E29,D10:D29) -> 1732.446778 | E39: =_xlfn.IFNA(_xlfn.FORMULATEXT(C39),"") -> =F5-C38*E5 | F39: =_xlfn.IFNA(_xlfn.FORMULATEXT(D39),"") -> =INTERCEPT(E10:E29,D10:D29)
B40: Yhat = ŷ = Predicted Value | C40: ="Yaht = "&ROUND(C38,2)&" + "&ROUND(C39,2) -> Yaht = -58.61 + 1732.45 | E40: =_xlfn.IFNA(_xlfn.FORMULATEXT(C40),"") -> ="Yaht = "&ROUND(C38,2)&" + "&ROUND(C39,2)
B41: Min X | C41: =H5:H6 -> 20.1 | E41: =_xlfn.IFNA(_xlfn.FORMULATEXT(C41),"") -> =H5:H6 | F41: =_xlfn.IFNA(_xlfn.FORMULATEXT(D41),"") -> 
B42: Max X | C42: 27 | E42: =_xlfn.IFNA(_xlfn.FORMULATEXT(C42),"") ->  | F42: =_xlfn.IFNA(_xlfn.FORMULATEXT(D42),"") -> 
A43: . | B43: Experimental Region? | C43: ="The sample data provides evidence that there is an indirect relationship between "&D9&" and "&E9&" over the experimental range about "&C41&" and "&C42&" pounds." -> The sample data provides evidence that there is an indirect relationship between BMX Race Bike Weight (lbs.) =x and Price ($) = y over the experimental range about 20.1 and 27 pounds.
B44: What does slope mean? | C44: ="For every 1 bike pound added, the Estimated Equation predicts that the cost will decrease by "&DOLLAR(ABS(C38))&"." -> For every 1 bike pound added, the Estimated Equation predicts that the cost will decrease by $58.61.
B45: What does y-Intercept mean? | C45: ="At x = 0 the Estimated Equation predicts that cost will be: "&ROUND(C39,2)&". Because 0 is not in the Experimental Region, an extrapolation like this provides an unreliable estimate (not based on sample evidence)." -> At x = 0 the Estimated Equation predicts that cost will be: 1732.45. Because 0 is not in the Experimental Region, an extrapolation like this provides an unreliable estimate (not based on sample evidence).
B46: x to predict | C46: 50000
B47: Yhat = ŷ = Predicted Value | C47: =C38*C46+C39 -> -2928596.408 | D47: =_xlfn.FORECAST.LINEAR(C46,E10:E29,D10:D29) -> -2928596.408 | E47: =_xlfn.IFNA(_xlfn.FORMULATEXT(C47),"") -> =C38*C46+C39 | F47: =FORECAST.LINEAR(C46,E10:E29,D10:D29)
B48: Sum of Squares Total = SST | C48: =I30 -> 469792.55 | E48: =I30
B49: Sum of Squares Regression = SSR | C49: =O30 -> 378457.5392 | E49: =O30
B50: Sum of Squares Error (Residual) = SSE | C50: =N30 -> 91335.01081 | E50: =N30
B51: Coefficient of Determination = r^2 | C51: =C49/C48 -> 0.805584378 | E51: =C49/C48
B52: What does r^2 mean? | C52: ="It means that the estimated equation can explain about "&TEXT(C51,"0.00%")&" of the total variation between the particular y value and the Ybar mean. with a large r^2 value, the equation should predict well over the experimental range." -> It means that the estimated equation can explain about 80.56% of the total variation between the particular y value and the Ybar mean. with a large r^2 value, the equation should predict well over the experimental range.
B53: Mean Square Error = MSE | C53: =C50/(C34-2) -> 5074.167267 | E53: =_xlfn.IFNA(_xlfn.FORMULATEXT(C53),"") -> =C50/(C34-2)
B54: Standard Error of Estimate (y) = s | C54: =SQRT(C53) -> 71.23318937 | E54: =SQRT(C53)
B55: Mean Square Regression = MSR | C55: =C49/1 -> 378457.5392 | E55: =C49/1
B56: F Test Statistic to test | C56: =C55/C53 -> 74.58515245 | E56: =C55/C53
B57: p-value for F | C57: =_xlfn.F.DIST.RT(C56,1,C34-2) -> 8.103895654e-08 | E57: =F.DIST.RT(C56,1,C34-2)
B60: Goals: | D60: Bike Weight (pound) =x | E60: Price ($) = y
B61: 1) Visually plot relationship: X-Y Scatter | D61: =D10:D29 -> 22.4 | E61: =E10:E29 -> 299
B62: 2) Numerical measure for Correlation: rxy | D62: 21 | E62: 462
B63: 3) Numerical measure for slope: b1 | D63: 21 | E63: 549
B64: 4) Numerical measure for y-intercept: b0 | D64: 26 | E64: 180
B65: 5) Create estimated equation to predict y | D65: 21.1 | E65: 549
B66: based on x | D66: 26 | E66: 240
B67: ӯ = yhat = b1*x + b0 OR y = m*x + b | D67: 26.4 | E67: 180
B68: 6) Numerical measure for goodness of fit | D68: 21 | E68: 431
B69: of estimated equation/line to sample data | D69: 25.2 | E69: 360
B70: 7) Numerical measure for standard | D70: 26 | E70: 230
B71: deviation of estimated equation/line | D71: 25 | E71: 270
B72: 8) Test if it is reasonable to assume that | D72: 26.8 | E72: 150
B73: there is a realtionship between X and Y | D73: 25.2 | E73: 170
D74: 27 | E74: 160
D75: 25.4 | E75: 159
D76: 20.7 | E76: 500
D77: 21.9 | E77: 560
D78: 22.5 | E78: 560
D79: 20.1 | E79: 499
D80: 23 | E80: 379

Sheet Price-VariationCharts
E1: X | F1: Y | H1: X Min Max | I1: Ybar | K1: Xbar | L1: Y Min Max | N1: XY Mean Plot | R1: SUMMARY OUTPUT
D2: Xbar | E2: =AVERAGE(C7:C26) -> 23.685 | F2: =AVERAGE(D7:D26) -> 344.35 | H2: =MIN($C$7:$C$26) -> 20.1 | I2: =$F$2 -> 344.35 | K2: =$E$2 -> 23.685 | L2: =MIN(D7:D26) -> 150 | N2: Xbar | O2: Ybar
D3: Sample s | E3: =_xlfn.STDEV.S(C7:C26) -> 2.408160469 | F3: =_xlfn.STDEV.S(D7:D26) -> 157.2447891 | H3: =MAX($C$7:$C$26) -> 27 | I3: =$F$2 -> 344.35 | K3: =$E$2 -> 23.685 | L3: =MAX(D7:D26) -> 560 | N3: =E2:F2 -> 23.685 | O3: 344.35 | R3: Regression Statistics
R4: Multiple R | S4: 0.8975435243
E5: X Deviations | F5: Y Deviations | G5: ="("&E5:E6&")*("&F5:F6&")" -> (X Deviations)*(Y Deviations) | H5: ="("&E5:F6&")^2" -> (X Deviations)^2 | I5: (Y Deviations)^2 | J5: Predicted y value based on known x value | K5: Regression Line "Prediction Improvement" over Ybar ("Explained" by Est. Line) | L5: Residuals = Unexplained Error | M5: "Prediction Improvement"^2 "Explaiend"^2 | N5: Residuals^2 "Unexplained"^2 | R5: R Square | S5: 0.805584378
B6: BMX Race Bike: Year Manufacturer and Model | C6: Bike Weight (pound) =x | D6: Price ($) = y | E6: Xi - Xbar | F6: Yi - Ybar | G6: (Xi - Xbar)*(Yi - Ybar) | H6: (Xi - Xbar)^2 | I6: (Yi - Ybar)^2 | J6: =E40 -> Yhat = -58.61*x + 1,732.4 | K6: Yhat - Ybar | L6: Yi - Yhat | M6: ="("&K6:L6&")^2" -> (Yhat - Ybar)^2 | N6: (Yi - Yhat)^2 | R6: Adjusted R Square | S6: 0.7947835101
B7: 2015 SE Ripper | C7: 22.4 | D7: 299 | E7: =C7:C26-E2 -> -1.285 | F7: =D7:D26-F2 -> -45.35 | G7: =_xlfn.ANCHORARRAY(E7)*_xlfn.ANCHORARRAY(F7) -> 58.27475 | H7: =E7:F26^2 -> 1.651225 | I7: 2056.6225 | J7: =C7:C26*E38+E39 -> 419.6594516 | K7: =_xlfn.ANCHORARRAY(J7)-F2 -> 75.30945156 | L7: =D7:D26-_xlfn.ANCHORARRAY(J7) -> -120.6594516 | M7: =_xlfn.ANCHORARRAY(K7)^2 -> 5671.513494 | N7: =_xlfn.ANCHORARRAY(L7)^2 -> 14558.70325 | R7: Standard Error | S7: 71.23318937
B8: 2014 Redline MX | C8: 21 | D8: 462 | E8: -2.685 | F8: 117.65 | G8: -315.89025 | H8: 7.209225 | I8: 13841.5225 | J8: 501.7086595 | K8: 157.3586595 | L8: -39.70865949 | M8: 24761.74772 | N8: 1576.777638 | R8: Observations | S8: 20
B9: 2015 SE PK Ripper Elite | C9: 21 | D9: 549 | E9: -2.685 | F9: 204.65 | G9: -549.48525 | H9: 7.209225 | I9: 41881.6225 | J9: 501.7086595 | K9: 157.3586595 | L9: 47.29134051 | M9: 24761.74772 | N9: 2236.470887
B10: 2015 Grenade Launch Pro X | C10: 26 | D10: 180 | E10: 2.315 | F10: -164.35 | G10: -380.47025 | H10: 5.359225 | I10: 27010.9225 | J10: 208.675774 | K10: -135.674226 | L10: -28.67577404 | M10: 18407.49559 | N10: 822.3000165 | R10: ANOVA
B11: 2015 SE PK Ripper Elite XL | C11: 21.1 | D11: 549 | E11: -2.585 | F11: 204.65 | G11: -529.02025 | H11: 6.682225 | I11: 41881.6225 | J11: 495.8480018 | K11: 151.4980018 | L11: 53.15199822 | M11: 22951.64454 | N11: 2825.134915 | S11: df | T11: SS | U11: MS | V11: F | W11: Significance F
B12: 2015 Grenade M1 | C12: 26 | D12: 240 | E12: 2.315 | F12: -104.35 | G12: -241.57025 | H12: 5.359225 | I12: 10888.9225 | J12: 208.675774 | K12: -135.674226 | L12: 31.32422596 | M12: 18407.49559 | N12: 981.2071323 | R12: Regression | S12: 1 | T12: 378457.5392 | U12: 378457.5392 | V12: 74.58515245 | W12: 8.103895654e-08
B13: 2015 Framed Team | C13: 26.4 | D13: 180 | E13: 2.715 | F13: -164.35 | G13: -446.21025 | H13: 7.371225 | I13: 27010.9225 | J13: 185.2331432 | K13: -159.1168568 | L13: -5.233143199 | M13: 25318.17412 | N13: 27.38578775 | R13: Residual | S13: 18 | T13: 91335.01081 | U13: 5074.167267
B14: 2014 Redline MX | C14: 21 | D14: 431 | E14: -2.685 | F14: 86.65 | G14: -232.65525 | H14: 7.209225 | I14: 7508.2225 | J14: 501.7086595 | K14: 157.3586595 | L14: -70.70865949 | M14: 24761.74772 | N14: 4999.714527 | R14: Total | S14: 19 | T14: 469792.55
B15: 2014 Framed Team | C15: 25.2 | D15: 360 | E15: 1.515 | F15: 15.65 | G15: 23.70975 | H15: 2.295225 | I15: 244.9225 | J15: 255.5610357 | K15: -88.78896429 | L15: 104.4389643 | M15: 7883.48018 | N15: 10907.49726
B16: 2014 Grenade MX | C16: 26 | D16: 230 | E16: 2.315 | F16: -114.35 | G16: -264.72025 | H16: 5.359225 | I16: 13075.9225 | J16: 208.675774 | K16: -135.674226 | L16: 21.32422596 | M16: 18407.49559 | N16: 454.722613 | S16: Coefficients | T16: Standard Error | U16: t Stat | V16: P-value | W16: Lower 95% | X16: Upper 95% | Y16: Lower 99.0% | Z16: Upper 99.0%
B17: 2014 Grenade Stealth Deep Sea Blue | C17: 25 | D17: 270 | E17: 1.315 | F17: -74.35 | G17: -97.77025 | H17: 1.729225 | I17: 5527.9225 | J17: 267.2823511 | K17: -77.06764887 | L17: 2.717648874 | M17: 5939.422503 | N17: 7.385615402 | R17: Intercept | S17: 1732.446778 | T17: 161.5160612 | U17: 10.72615791 | V17: 3.004720823e-09 | W17: 1393.114125 | X17: 2071.779431 | Y17: 1267.532411 | Z17: 2197.361146
B18: 2014 Grenade Flare X | C18: 26.8 | D18: 150 | E18: 3.115 | F18: -194.35 | G18: -605.40025 | H18: 9.703225 | I18: 37771.9225 | J18: 161.7905124 | K18: -182.5594876 | L18: -11.79051236 | M18: 33327.96653 | N18: 139.0161818 | R18: Bike Weight (pound) =x | S18: -58.60657709 | T18: 6.786098613 | U18: -8.636269591 | V18: 8.103895654e-08 | W18: -72.86364123 | X18: -44.34951295 | Y18: -78.13995799 | Z18: -39.07319619
B19: 2014 Grenade Launch Blue | C19: 25.2 | D19: 170 | E19: 1.515 | F19: -174.35 | G19: -264.14025 | H19: 2.295225 | I19: 30397.9225 | J19: 255.5610357 | K19: -88.78896429 | L19: -85.56103571 | M19: 7883.48018 | N19: 7320.690831
B20: 2014 Grenade Launch X | C20: 27 | D20: 160 | E20: 3.315 | F20: -184.35 | G20: -611.12025 | H20: 10.989225 | I20: 33984.9225 | J20: 150.0691969 | K20: -194.2808031 | L20: 9.930803055 | M20: 37745.03044 | N20: 98.62084931
B21: 2014 Framed Verdict Blank | C21: 25.4 | D21: 159 | E21: 1.715 | F21: -185.35 | G21: -317.87525 | H21: 2.941225 | I21: 34354.6225 | J21: 243.8397203 | K21: -100.5102797 | L21: -84.83972029 | M21: 10102.31633 | N21: 7197.778139
B22: 2014 SE PK Ripper Elite | C22: 20.7 | D22: 500 | E22: -2.985 | F22: 155.65 | G22: -464.61525 | H22: 8.910225 | I22: 24226.9225 | J22: 519.2906326 | K22: 174.9406326 | L22: -19.29063261 | M22: 30604.22494 | N22: 372.1285067 | R22: RESIDUAL OUTPUT
B23: 2013 Redline Proline Pro | C23: 21.9 | D23: 560 | E23: -1.785 | F23: 215.65 | G23: -384.93525 | H23: 3.186225 | I23: 46504.9225 | J23: 448.9627401 | K23: 104.6127401 | L23: 111.0372599 | M23: 10943.82539 | N23: 12329.27308
B24: 2012 Redline Proline Pro XL | C24: 22.5 | D24: 560 | E24: -1.185 | F24: 215.65 | G24: -255.54525 | H24: 1.404225 | I24: 46504.9225 | J24: 413.7987939 | K24: 69.44879385 | L24: 146.2012061 | M24: 4823.134968 | N24: 21374.79268 | R24: Observation | S24: Predicted Price ($) = y | T24: Residuals
B25: 2013 Redline Proline Expert XL | C25: 20.1 | D25: 499 | E25: -3.585 | F25: 154.65 | G25: -554.42025 | H25: 12.852225 | I25: 23916.6225 | J25: 554.4545789 | K25: 210.1045789 | L25: -55.45457887 | M25: 44143.93406 | N25: 3075.210318 | R25: 1 | S25: 419.6594516 | T25: -120.6594516
B26: 2013 Redline MX | C26: 23 | D26: 379 | E26: -0.685 | F26: 34.65 | G26: -23.73525 | H26: 0.469225 | I26: 1200.6225 | J26: 384.4955053 | K26: 40.14550531 | L26: -5.495505307 | M26: 1611.661596 | N26: 30.20057858 | R26: 2 | S26: 501.7086595 | T26: -39.70865949
D27: Totals | E27: =SUM(E7:E26) -> 2.131628207e-14 | F27: =SUM(F7:F26) -> -4.547473509e-13 | G27: =SUM(_xlfn.ANCHORARRAY(G7)) -> -6457.595 | H27: =SUM(H7:H26) -> 110.1855 | I27: =SUM(I7:I26) -> 469792.55 | K27: =SUM(_xlfn.ANCHORARRAY(K7)) -> 2.50111043e-12 | L27: =SUM(_xlfn.ANCHORARRAY(L7)) -> -2.955857781e-12 | M27: =SUM(_xlfn.ANCHORARRAY(M7)) -> 378457.5392 | N27: =SUM(_xlfn.ANCHORARRAY(N7)) -> 91335.01081 | R27: 3 | S27: 501.7086595 | T27: 47.29134051
E28: ΣXi - Xbar | F28: ΣYi - Ybar | G28: Σ((Xi - Xbar)* (Yi - Ybar)) | H28: Σ(Xi - Xbar)^2 | I28: SST = Σ(Yi - Ybar)^2 | K28: ΣYhat - Ybar | L28: ΣYi - Yhat | M28: SSR = Σ(Yhat-Ybar)^2 | N28: SSE = Σ(Yi - Yhat)^2 | R28: 4 | S28: 208.675774 | T28: -28.67577404
I29: Sum of Squares Total = SST = SSR + SSE | M29: SSR = Sum of Squares Regression | N29: SSR = Sum of Squares Error | R29: 5 | S29: 495.8480018 | T29: 53.15199822
C30: Relationship from Visual? | E30: It looks like as Bike Weight increases, Price decreases | R30: 6 | S30: 208.675774 | T30: 31.32422596
F31: Check: | R31: 7 | S31: 185.2331432 | T31: -5.233143199
C32: Sample size = n | E32: =COUNT(C7:C26) -> 20 | G32: =_xlfn.IFNA(_xlfn.FORMULATEXT(E32:F36),"") -> =COUNT(C7:C26) | R32: 8 | S32: 501.7086595 | T32: -70.70865949
C33: df when 1 parameter is estimated = n - 1 | E33: =E32-1 -> 19 | G33: =E32-1 | R33: 9 | S33: 255.5610357 | T33: 104.4389643
C34: df when 2 parameter is estimated = n - 2 | E34: =E32-2 -> 18 | G34: =E32-2 | R34: 10 | S34: 208.675774 | T34: 21.32422596
A35: sxy = Σ((Xi - Xbar)*(Yi - Ybar))/(n-1) | C35: Sample Covariance = sxy | E35: =G27/E33 -> -339.8734211 | F35: =_xlfn.COVARIANCE.S(D7:D26,C7:C26) -> -339.8734211 | G35: =G27/E33 | H35: =COVARIANCE.S(D7:D26,C7:C26) | R35: 11 | S35: 267.2823511 | T35: 2.717648874
A36: rxy = sxy/(sx*sy) | C36: Coefficient of Correlation = rxy | E36: =E35/PRODUCT(E3:F3) -> -0.8975435243 | F36: =PEARSON(D7:D26,C7:C26) -> -0.8975435243 | G36: =E35/PRODUCT(E3:F3) | H36: =PEARSON(D7:D26,C7:C26) | R36: 12 | S36: 161.7905124 | T36: -11.79051236
C37: Type of relationship? | E37: Strong Negative (indirect) relationship. Numerically confirms the visual X-Y Scatter Chart. | R37: 13 | S37: 255.5610357 | T37: -85.56103571
A38: b1 = Σ((Xi - Xbar)*(Yi - Ybar))/Σ((Xi - Xbar)^2) | C38: Slope = b1 | E38: =G27/H27 -> -58.60657709 | F38: =SLOPE(D7:D26,C7:C26) -> -58.60657709 | G38: =_xlfn.IFNA(_xlfn.FORMULATEXT(E38:F39),"") -> =G27/H27 | H38: =SLOPE(D7:D26,C7:C26) | R38: 14 | S38: 150.0691969 | T38: 9.930803055
A39: b0 = Ybar-b1 - Xbar | C39: Intercept = b0 | E39: =F2-E38*E2 -> 1732.446778 | F39: =INTERCEPT(D7:D26,C7:C26) -> 1732.446778 | G39: =F2-E38*E2 | H39: =INTERCEPT(D7:D26,C7:C26) | R39: 15 | S39: 243.8397203 | T39: -84.83972029
C40: Yhat = ŷ = Predicted Value | E40: ="Yhat = "&ROUND(E38,2)&"*x + "&TEXT(E39,"#,##.0")&"" -> Yhat = -58.61*x + 1,732.4 | R40: 16 | S40: 519.2906326 | T40: -19.29063261
C41: Min X | E41: =MIN(C7:C26) -> 20.1 | G41: =_xlfn.IFNA(_xlfn.FORMULATEXT(E41:F42),"") -> =MIN(C7:C26) | R41: 17 | S41: 448.9627401 | T41: 111.0372599
C42: Max X | E42: =MAX(C7:C26) -> 27 | G42: =MAX(C7:C26) | R42: 18 | S42: 413.7987939 | T42: 146.2012061
C43: Experimental Region? | E43: ="The sample data provides evidence that there is a direct relationship between "&C6&" and "&D6&" over the experimental range about "&E41&" and "&E42&" pounds." -> The sample data provides evidence that there is a direct relationship between Bike Weight (pound) =x and Price ($) = y over the experimental range about 20.1 and 27 pounds. | R43: 19 | S43: 554.4545789 | T43: -55.45457887
C44: What does slope mean? | E44: ="For every 1 lbs added to bike, the Estimated Equation predicts that the BMX bike price will decrease by "&DOLLAR(ABS(E38))&"." -> For every 1 lbs added to bike, the Estimated Equation predicts that the BMX bike price will decrease by $58.61. | R44: 20 | S44: 384.4955053 | T44: -5.495505307
C45: What does y-Intercept mean? | E45: At x = 0 the Estimated Equation predicts that the bike will cost $1,732. Because 0 is not in the
E46: Experimental Region, an extrapolation like this provides an unreliable estimate (not based on sample evidence).
C47: x to predict | E47: 25 | F47: BMX Race Bike lbs.
C48: Yhat = ŷ = Predicted Value | E48: =E38*E47+E39 -> 267.2823511 | F48: Predicted Price for Bike | G48: =_xlfn.IFNA(_xlfn.FORMULATEXT(E48:F52),"") -> =E38*E47+E39
A49: SST = Σ((Yi - Ybar)^2) | C49: Sum of Squares Total = SST | E49: =I27 -> 469792.55 | F49: =SUMSQ(D7:D26-F2) -> 469792.55 | G49: =I27 | H49: =SUMSQ(D7:D26-F2)
A50: SSE = Σ(Yi - Yhat)^2 | C50: Sum of Squares Regression = SSR | E50: =M27 -> 378457.5392 | F50: =SUMSQ(_xlfn.FORECAST.LINEAR(C7:C26,D7:D26,C7:C26)-F2) -> 378457.5392 | G50: =M27 | H50: =SUMSQ(FORECAST.LINEAR(C7:C26,D7:D26,C7:C26)-F2)
A51: SSR = Σ(Yhat - Ybar)^2 | C51: Sum of Squares Error (Residual) = SSE | E51: =N27 -> 91335.01081 | F51: =SUMSQ(D7:D26-_xlfn.FORECAST.LINEAR(C7:C26,D7:D26,C7:C26)) -> 91335.01081 | G51: =N27 | H51: =SUMSQ(D7:D26-FORECAST.LINEAR(C7:C26,D7:D26,C7:C26))
A52: r^2 = SSR/SST = 1 - SSE/SST = rxy^2 | C52: Coefficient of Determination = r^2 | E52: =E50/E49 -> 0.805584378 | F52: =RSQ(D7:D26,C7:C26) -> 0.805584378 | G52: =E50/E49 | H52: =RSQ(D7:D26,C7:C26)
C53: What does r^2 mean? | E53: It means that the estimated equation can explain about 81% of the total variation between the particular y value and the Ybar mean
E54: with a large r^2 value, the equation should predict well over the experimental range.
A55: MSE = Σ(Yi - Yhat)^2/(n-2) = SSE/(n-2) | C55: Mean Square Error = MSE | E55: =E51/E34 -> 5074.167267 | F55: =SUMSQ(D7:D26-_xlfn.FORECAST.LINEAR(C7:C26,D7:D26,C7:C26))/E34 -> 5074.167267 | G55: =_xlfn.IFNA(_xlfn.FORMULATEXT(E55:F60),"") -> =E51/E34 | H55: =SUMSQ(D7:D26-FORECAST.LINEAR(C7:C26,D7:D26,C7:C26))/E34
A56: s = SQRT(MSE) | C56: Standard Error of Estimate (y) = s | E56: =SQRT(E55) -> 71.23318937 | F56: =STEYX(D7:D26,C7:C26) -> 71.23318937 | G56: =SQRT(E55) | H56: =STEYX(D7:D26,C7:C26)
A57: MRS = SSR/(number independent variables) = SSR/1 | C57: Mean Square Regression = MSR | E57: =E50/1 -> 378457.5392 | F57: =SUMSQ(_xlfn.FORECAST.LINEAR(C7:C26,D7:D26,C7:C26)-F2)/1 -> 378457.5392 | G57: =E50/1 | H57: =SUMSQ(FORECAST.LINEAR(C7:C26,D7:D26,C7:C26)-F2)/1
A58: sb1 = s/SQRT(Σ(Xi - Xbar)^2) | C58: Standard Deviation of Slope = Sb1 | E58: =E56/SQRT(H27) -> 6.786098613 | F58: =SQRT(SUMSQ(D7:D26-_xlfn.FORECAST.LINEAR(C7:C26,D7:D26,C7:C26))/E34)/SQRT(SUMSQ(C7:C26-E2)) -> 6.786098613 | G58: =E56/SQRT(H27) | H58: =SQRT(SUMSQ(D7:D26-FORECAST.LINEAR(C7:C26,D7:D26,C7:C26))/E34)/SQRT(SUMSQ(C7:C26-E2))
A59: F Test Statistic = MSR/MSE | C59: F Test Statistic to test | E59: =E57/E55 -> 74.58515245 | F59: =SUMSQ(_xlfn.FORECAST.LINEAR(C7:C26,D7:D26,C7:C26)-F2)/(SUMSQ(D7:D26-_xlfn.FORECAST.LINEAR(C7:C26,D7:D26,C7:C26))/E34) -> 74.58515245 | G59: =E57/E55 | H59: =SUMSQ(FORECAST.LINEAR(C7:C26,D7:D26,C7:C26)-F2)/(SUMSQ(D7:D26-FORECAST.LINEAR(C7:C26,D7:D26,C7:C26))/E34)
A60: p-value for F = F.DIST.RT(F,df MSR, df MSE) | C60: p-value for F | E60: =_xlfn.F.DIST.RT(E59,1,E34) -> 8.103895654e-08 | G60: =F.DIST.RT(E59,1,E34)
E61: Chart Values:
D63: + Ybar Deviations | E63: - Ybar Deviations | F63: X | G63: Residuals | H63: + Residuals | I63: - Residuals | J63: Y | K63: Yhat | L63: Yhat-Ybar | M63: Ybar Deviation-Residual | N63: +Yhat - Ybar | O63: -Yhat - Ybar
D64: =IF(_xlfn.ANCHORARRAY(F7)>0,-_xlfn.ANCHORARRAY(F7),"") ->  | E64: =IF(ISNUMBER(_xlfn.ANCHORARRAY(D64)),"",_xlfn.ANCHORARRAY(F7)) -> -45.35 | F64: =C7:C26 -> 22.4 | G64: =D7:D26-_xlfn.FORECAST.LINEAR(C7:C26,D7:D26,C7:C26) -> -120.6594516 | H64: =IF(_xlfn.ANCHORARRAY(G64)>0,-_xlfn.ANCHORARRAY(G64),"") ->  | I64: =IF(ISNUMBER(_xlfn.ANCHORARRAY(H64)),"",_xlfn.ANCHORARRAY(G64)) -> -120.6594516 | J64: =D7:D26 -> 299 | K64: =_xlfn.FORECAST.LINEAR(C7:C26,D7:D26,C7:C26) -> 419.6594516 | L64: =_xlfn.FORECAST.LINEAR(C7:C26,D7:D26,C7:C26)-F2 -> 75.30945156 | M64: =_xlfn.ANCHORARRAY(F7)-_xlfn.ANCHORARRAY(G64) -> 75.30945156 | N64: =IF(_xlfn.ANCHORARRAY(L64)>0,-_xlfn.ANCHORARRAY(L64),"") -> -75.30945156 | O64: =IF(ISNUMBER(_xlfn.ANCHORARRAY(N64)),"",_xlfn.ANCHORARRAY(M64)) -> 
D65: -117.65 | F65: 21 | G65: -39.70865949 | I65: -39.70865949 | J65: 462 | K65: 501.7086595 | L65: 157.3586595 | M65: 157.3586595 | N65: -157.3586595
D66: -204.65 | F66: 21 | G66: 47.29134051 | H66: -47.29134051 | J66: 549 | K66: 501.7086595 | L66: 157.3586595 | M66: 157.3586595 | N66: -157.3586595
E67: -164.35 | F67: 26 | G67: -28.67577404 | I67: -28.67577404 | J67: 180 | K67: 208.675774 | L67: -135.674226 | M67: -135.674226 | O67: -135.674226
D68: -204.65 | F68: 21.1 | G68: 53.15199822 | H68: -53.15199822 | J68: 549 | K68: 495.8480018 | L68: 151.4980018 | M68: 151.4980018 | N68: -151.4980018
E69: -104.35 | F69: 26 | G69: 31.32422596 | H69: -31.32422596 | J69: 240 | K69: 208.675774 | L69: -135.674226 | M69: -135.674226 | O69: -135.674226
E70: -164.35 | F70: 26.4 | G70: -5.233143199 | I70: -5.233143199 | J70: 180 | K70: 185.2331432 | L70: -159.1168568 | M70: -159.1168568 | O70: -159.1168568
D71: -86.65 | F71: 21 | G71: -70.70865949 | I71: -70.70865949 | J71: 431 | K71: 501.7086595 | L71: 157.3586595 | M71: 157.3586595 | N71: -157.3586595
D72: -15.65 | F72: 25.2 | G72: 104.4389643 | H72: -104.4389643 | J72: 360 | K72: 255.5610357 | L72: -88.78896429 | M72: -88.78896429 | O72: -88.78896429
E73: -114.35 | F73: 26 | G73: 21.32422596 | H73: -21.32422596 | J73: 230 | K73: 208.675774 | L73: -135.674226 | M73: -135.674226 | O73: -135.674226
E74: -74.35 | F74: 25 | G74: 2.717648874 | H74: -2.717648874 | J74: 270 | K74: 267.2823511 | L74: -77.06764887 | M74: -77.06764887 | O74: -77.06764887
E75: -194.35 | F75: 26.8 | G75: -11.79051236 | I75: -11.79051236 | J75: 150 | K75: 161.7905124 | L75: -182.5594876 | M75: -182.5594876 | O75: -182.5594876
E76: -174.35 | F76: 25.2 | G76: -85.56103571 | I76: -85.56103571 | J76: 170 | K76: 255.5610357 | L76: -88.78896429 | M76: -88.78896429 | O76: -88.78896429
E77: -184.35 | F77: 27 | G77: 9.930803055 | H77: -9.930803055 | J77: 160 | K77: 150.0691969 | L77: -194.2808031 | M77: -194.2808031 | O77: -194.2808031
E78: -185.35 | F78: 25.4 | G78: -84.83972029 | I78: -84.83972029 | J78: 159 | K78: 243.8397203 | L78: -100.5102797 | M78: -100.5102797 | O78: -100.5102797
D79: -155.65 | F79: 20.7 | G79: -19.29063261 | I79: -19.29063261 | J79: 500 | K79: 519.2906326 | L79: 174.9406326 | M79: 174.9406326 | N79: -174.9406326
D80: -215.65 | F80: 21.9 | G80: 111.0372599 | H80: -111.0372599 | J80: 560 | K80: 448.9627401 | L80: 104.6127401 | M80: 104.6127401 | N80: -104.6127401
D81: -215.65 | F81: 22.5 | G81: 146.2012061 | H81: -146.2012061 | J81: 560 | K81: 413.7987939 | L81: 69.44879385 | M81: 69.44879385 | N81: -69.44879385
D82: -154.65 | F82: 20.1 | G82: -55.45457887 | I82: -55.45457887 | J82: 499 | K82: 554.4545789 | L82: 210.1045789 | M82: 210.1045789 | N82: -210.1045789
D83: -34.65 | F83: 23 | G83: -5.495505307 | I83: -5.495505307 | J83: 379 | K83: 384.4955053 | L83: 40.14550531 | M83: 40.14550531 | N83: -40.14550531
J102: Unexplained
J103: X | K103: Y
J104: =C23:D23 -> 21.9 | K104: 560
J105: =F80 -> 21.9 | K105: =K80 -> 448.9627401
J107: Explained
J108: X | K108: Y
J109: =J105:K105 -> 21.9 | K109: 448.9627401
J110: =J109 -> 21.9 | K110: =F2 -> 344.35
